date,department/service,beneficiary,amount,summary of purpose,category,transaction number,SAP vendor number
01.01.2020,ADULT SOCIAL CARE,SYKES CHOICE LTD,"2,036.00",SAFEGUARDING & DOLS,OTHER CONTRACTORS,5902396000,1000082690
02.01.2020,CHIEF EXECUTIVE,DIE SOCIALISTEN,"3,709.91",E-COMMUNICATIONS,CONSULTANTS SERVICES,6101918559,INTERNATIONAL PAYMENT
02.01.2020,ENVIRONMENT DIRECTORATE,GO PRO CHEMICALS LTD,"2,371.68",MANAGEMENT TEAM,MATERIALS,5902395973,1000079528
02.01.2020,HOUSING HRA,PROPERTY FACILITIES GROUP PLC,"7,004.13",CAPITAL PS (HRA),CONST'N MAIN CONTRACT - NON CERTIFICATED,2103046017,3000001420
03.01.2020,ADULT SOCIAL CARE,LINK AGE SOUTHWARK,"30,812.50",LOCAL COMMUNITY OFFER,EXTERNAL AGENCIES AND BODIES,5902396160,1000034150
03.01.2020,ADULT SOCIAL CARE,SWK DISABLEMENT ASSN,"20,000.00",LOCAL COMMUNITY OFFER,EXTERNAL AGENCIES AND BODIES,5902396157,1000011698
03.01.2020,ADULT SOCIAL CARE,GS LAUNDRIES,336,OLDER PEOPLE MGMT,"CLOTHING, UNIFORMS & LAUNDRY",5902396228,1000050418
03.01.2020,ADULT SOCIAL CARE,SERVESOUL LTD,642.57,PHY LTS 65+,HOMECARE - SPOT,2103046085,1000081503
03.01.2020,ADULT SOCIAL CARE,SERVESOUL LTD,642.57,PHY LTS 65+,HOMECARE - SPOT,2103046097,1000081503
03.01.2020,ADULT SOCIAL CARE,SERVESOUL LTD,579.98,PHY LTS 65+,HOMECARE - SPOT,2103046072,1000081503
03.01.2020,ADULT SOCIAL CARE,SERVESOUL LTD,579.98,PHY LTS 65+,HOMECARE - SPOT,2103046109,1000081503
03.01.2020,ADULT SOCIAL CARE,SERVESOUL LTD,559.12,PHY LTS 65+,HOMECARE - SPOT,2103046055,1000081503
03.01.2020,ADULT SOCIAL CARE,SERVESOUL LTD,559.12,PHY LTS 65+,HOMECARE - SPOT,2103046105,1000081503
03.01.2020,ADULT SOCIAL CARE,SERVESOUL LTD,525.74,PHY LTS 65+,HOMECARE - SPOT,2103046053,1000081503
03.01.2020,ADULT SOCIAL CARE,SERVESOUL LTD,525.74,PHY LTS 65+,HOMECARE - SPOT,2103046066,1000081503
03.01.2020,ADULT SOCIAL CARE,SERVESOUL LTD,525.74,PHY LTS 65+,HOMECARE - SPOT,2103046120,1000081503
03.01.2020,ADULT SOCIAL CARE,SERVESOUL LTD,525.74,PHY LTS 65+,HOMECARE - SPOT,2103046122,1000081503
03.01.2020,ADULT SOCIAL CARE,SERVESOUL LTD,517.39,PHY LTS 65+,HOMECARE - SPOT,2103046081,1000081503
03.01.2020,ADULT SOCIAL CARE,SERVESOUL LTD,517.39,PHY LTS 65+,HOMECARE - SPOT,2103046115,1000081503
03.01.2020,ADULT SOCIAL CARE,SERVESOUL LTD,433.94,PHY LTS 65+,HOMECARE - SPOT,2103046060,1000081503
03.01.2020,ADULT SOCIAL CARE,SERVESOUL LTD,433.94,PHY LTS 65+,HOMECARE - SPOT,2103046092,1000081503
03.01.2020,ADULT SOCIAL CARE,SERVESOUL LTD,421.42,PHY LTS 65+,HOMECARE - SPOT,2103046074,1000081503
03.01.2020,ADULT SOCIAL CARE,SERVESOUL LTD,421.42,PHY LTS 65+,HOMECARE - SPOT,2103046127,1000081503
03.01.2020,ADULT SOCIAL CARE,SERVESOUL LTD,346.32,PHY LTS 65+,HOMECARE - SPOT,2103046067,1000081503
03.01.2020,ADULT SOCIAL CARE,SERVESOUL LTD,346.32,PHY LTS 65+,HOMECARE - SPOT,2103046095,1000081503
03.01.2020,ADULT SOCIAL CARE,SERVESOUL LTD,308.77,PHY LTS 65+,HOMECARE - SPOT,2103046064,1000081503
03.01.2020,ADULT SOCIAL CARE,SERVESOUL LTD,308.77,PHY LTS 65+,HOMECARE - SPOT,2103046110,1000081503
03.01.2020,ADULT SOCIAL CARE,SERVESOUL LTD,305.19,PHY LTS 65+,HOMECARE - SPOT,2103046103,1000081503
03.01.2020,ADULT SOCIAL CARE,SERVESOUL LTD,292.08,PHY LTS 65+,HOMECARE - SPOT,2103046073,1000081503
03.01.2020,ADULT SOCIAL CARE,SERVESOUL LTD,292.08,PHY LTS 65+,HOMECARE - SPOT,2103046100,1000081503
03.01.2020,ADULT SOCIAL CARE,SERVESOUL LTD,262.87,PHY LTS 65+,HOMECARE - SPOT,2103046083,1000081503
03.01.2020,ADULT SOCIAL CARE,SERVESOUL LTD,262.87,PHY LTS 65+,HOMECARE - SPOT,2103046118,1000081503
03.01.2020,ADULT SOCIAL CARE,SERVESOUL LTD,408.91,PHY STS 18-64,HOMECARE - IC,2103046062,1000081503
03.01.2020,ADULT SOCIAL CARE,THAMES HOMECARE SERVICE LTD,"27,300.00",REABLEMENT CONTRACT,HOMECARE - C&V,5902396184,1000079295
03.01.2020,ADULT SOCIAL CARE,THAMES HOMECARE SERVICE LTD,"27,300.00",REABLEMENT CONTRACT,HOMECARE - C&V,5902396185,1000079295
03.01.2020,ADULT SOCIAL CARE,THAMES HOMECARE SERVICE LTD,"27,300.00",REABLEMENT CONTRACT,HOMECARE - C&V,5902396186,1000079295
03.01.2020,ADULT SOCIAL CARE,THAMES HOMECARE SERVICE LTD,"27,300.00",REABLEMENT CONTRACT,HOMECARE - C&V,5902396187,1000079295
03.01.2020,ADULT SOCIAL CARE,SERVESOUL LTD,375.53,SUB LTS 18-64,HOMECARE - SPOT,2103046065,1000081503
03.01.2020,ADULT SOCIAL CARE,SERVESOUL LTD,375.53,SUB LTS 18-64,HOMECARE - SPOT,2103046114,1000081503
03.01.2020,CHILDREN'S SERVICES,JULIA HUGHES LTD,"2,057.25",FAMILY ASSESSMENTS,RESIDENTIAL CARE,5902396203,1000057965
03.01.2020,CHILDREN'S SERVICES,ZENITH CARS LTD,280,S & FAM SUPP - PRAC GRP D SET 23-25,OTHER PAYMENTS FOR CLIENTS,5902396198,1000070570
03.01.2020,CHILDREN'S SERVICES,ZENITH CARS LTD,"1,041.00",S & FAM SUPP - PRAC GRP F SET 29-31,HIRED VEHICLES,5902396198,1000070570
03.01.2020,CHILDREN'S SERVICES,CROSS EDUCATION SUPPORT SERVS LTD,"2,600.00",SCHOOLS FORUM,CONSULTANTS SERVICES,5902396193,1000046629
03.01.2020,CHILDREN'S SERVICES,CORAL COMMUNITY ASSESSMENTS LTD,"1,408.00",SPECIAL GUARDIANSHIP,RESIDENTIAL CARE,5902396206,1000056464
03.01.2020,CHILDREN'S SERVICES,REDACTED PERSONAL DATA,300,SPECIAL GUARDIANSHIP,EXTERNAL AGENCIES AND BODIES,REDACTED,REDACTED
03.01.2020,COLLECTION FUNDS,GREATER LONDON AUTHORITY,"3,432,170.06",GLA PRECEPT,LEVIES,5902396177,1000015827
03.01.2020,COMMUNITIES PROJECTS,CHANGE GROW LIVE SERVICES LTD,"235,831.13",ADULT SM SERVICE,MEDICAL / HEALTH & SAFETY SERVICES,5902396230,1000082721
03.01.2020,CUSTOMER EXPERIENCE HGF,COPELAND JERK CENTRE,"1,100.00",HOUSING OPTIONS,REFRESHMENTS FOR MEETINGS,5902396217,1000080659
03.01.2020,CUSTOMER EXPERIENCE HGF,COPELAND JERK CENTRE,780,HOUSING OPTIONS,REFRESHMENTS FOR MEETINGS,5902396218,1000080659
03.01.2020,ENVIRONMENT AND LEISURE,LDA DESIGN CONSULTING LTD,"22,562.83",CAPITAL PS (LEISURE),CONSTRUCTION FEES  - EXTERNAL,5902396194,1000031830
03.01.2020,ENVIRONMENT AND LEISURE,LABOSPORT LTD,"1,600.00",CAPITAL PS (LEISURE),CONSTRUCTION FEES,5902396200,1000081859
03.01.2020,ENVIRONMENT DIRECTORATE,BELL BRUSH COMPANY,342,MANAGEMENT TEAM,MATERIALS,5902396223,1259776
03.01.2020,ENVIRONMENT DIRECTORATE,BELL BRUSH COMPANY,274.35,MANAGEMENT TEAM,MATERIALS,5902396224,1259776
03.01.2020,ENVIRONMENT DIRECTORATE,ELLIOT ENVIRONMENTAL LTD,400,STREET CLEANING-GENERAL,OTHER CONTRACTORS,5902396221,1000047392
03.01.2020,FINANCE & GOVERNANCE,LAND REGISTRY,459,REGENERATION,LEGAL & COURT FEES,6101918913,DIRECT DEBIT PAYMENT
03.01.2020,HOUSING HRA,CALFORD SEADEN LLP,"11,112.91",CAPITAL PS (HRA),CONSTRUCTION FEES  - EXTERNAL,5902396229,1061592
03.01.2020,HSG&MOD,SOMALI INTEGRATION & DEVELOPMENT ASSOCIATION,"14,000.00",VCS GRANTS,GRANTS,5902396149,11048946
03.01.2020,HSG&MOD,THE MANNA CENTRE,"13,750.00",VCS GRANTS,GRANTS,5902396164,1000048508
03.01.2020,HSG&MOD,BEORMUND COMMUNITY CENTRE,"12,437.25",VCS GRANTS,GRANTS,5902396150,11048982
03.01.2020,HSG&MOD,SWK DAY CTR FOR ASYLUM SEEKERS,"11,330.25",VCS GRANTS,GRANTS,5902396161,1000040491
03.01.2020,HSG&MOD,SURREY DOCKS FARM PROVIDENT SOCIETY,"10,000.00",VCS GRANTS,GRANTS,5902396155,1000000958
03.01.2020,HSG&MOD,AAINA WOMEN GROUP,"8,018.25",VCS GRANTS,GRANTS,5902396156,1000002442
03.01.2020,HSG&MOD,LONDON WILDLIFE TRUST,"7,500.00",VCS GRANTS,GRANTS,5902396147,1832374
03.01.2020,HSG&MOD,PECAN LTD,"7,250.00",VCS GRANTS,GRANTS,5902396153,11263114
03.01.2020,HSG&MOD,PECAN LTD,"6,500.00",VCS GRANTS,GRANTS,5902396154,11263114
03.01.2020,HSG&MOD,SOUTHWARK TRAVELLERS' ACTION,"5,750.00",VCS GRANTS,GRANTS,5902396174,1000077795
03.01.2020,HSG&MOD,SOUTHWARK CITIZENS ADVICE,"5,600.00",VCS GRANTS,GRANTS,5902396148,1874379
03.01.2020,HSG&MOD,SOUTHWARK EVERY WOMAN'S CENTRE,"5,250.00",VCS GRANTS,GRANTS,5902396162,1000042216
03.01.2020,HSG&MOD,ST FAITHS COMMUNITY CENTRE,"5,000.00",VCS GRANTS,GRANTS,5902396144,1039446
03.01.2020,HSG&MOD,AGE UK LEWISHAM & SOUTHWARK,"4,500.00",VCS GRANTS,GRANTS,5902396145,1507154
03.01.2020,HSG&MOD,TIME & TALENTS ASSOCIATION,"4,500.00",VCS GRANTS,GRANTS,5902396146,1757632
03.01.2020,HSG&MOD,BEDE HSE,"4,500.00",VCS GRANTS,GRANTS,5902396151,11248731
03.01.2020,HSG&MOD,CAMBRIDGE HOUSE & TALBOT,"4,500.00",VCS GRANTS,GRANTS,5902396152,11248874
03.01.2020,HSG&MOD,LATIN AMERICAN DISABLED PEOPLE PROJECT,"4,500.00",VCS GRANTS,GRANTS,5902396167,1000058588
03.01.2020,HSG&MOD,LATIN AMERICAN WOMEN'S RIGHTS SERVICES,"4,500.00",VCS GRANTS,GRANTS,5902396168,1000068356
03.01.2020,HSG&MOD,BLACKFRIARS SETTLEMENT,"4,500.00",VCS GRANTS,GRANTS,5902396170,1000071456
03.01.2020,HSG&MOD,PEMBROKE COLLEGE SETTLEMENT,"4,500.00",VCS GRANTS,GRANTS,5902396171,1000073444
03.01.2020,HSG&MOD,BANKSIDE OPEN SPACES TRUST,"4,208.00",VCS GRANTS,GRANTS,5902396158,1000018290
03.01.2020,HSG&MOD,FUTURE MEN,"4,000.00",VCS GRANTS,GRANTS,5902396163,1000046010
03.01.2020,HSG&MOD,PAXTON GREEN TIME BANK,"3,937.50",VCS GRANTS,GRANTS,5902396169,1000070648
03.01.2020,HSG&MOD,BERMONDSEY COMMUNITY KITCHEN,"3,750.00",VCS GRANTS,GRANTS,5902396172,1000075477
03.01.2020,HSG&MOD,THE BIKE PROJECT,"3,750.00",VCS GRANTS,GRANTS,5902396173,1000077217
03.01.2020,HSG&MOD,CRYSTAL PALACE COMM DEV TRUST,"3,000.00",VCS GRANTS,GRANTS,5902396166,1000054200
03.01.2020,HSG&MOD,MENTAL FIGHT CLUB,"2,250.00",VCS GRANTS,GRANTS,5902396165,1000051170
03.01.2020,HSG&MOD,LITTLE VILLAGE SOUTHWARK,"1,250.00",VCS GRANTS,GRANTS,5902396175,1000082344
03.01.2020,LAW & DEMOCRACY,JOHN RUSKIN SCHOOL,486.25,GENERAL ELECTION,HIRE OF ROOMS/HALLS,5902395957,1000022324
03.01.2020,LAW & DEMOCRACY,BERMONDSEY VILLAGE HALL,350,GENERAL ELECTION,HIRE OF ROOMS/HALLS,5902396178,11281816
03.01.2020,LEISURE DIRECTORATE,P D CONSTRUCTION LTD,"3,520.00",BURGESS AREA TEAM,GROUNDS MAINTENANCE,5902396215,1000000390
03.01.2020,LEISURE DIRECTORATE,P D CONSTRUCTION LTD,"2,903.00",BURGESS AREA TEAM,GROUNDS MAINTENANCE,5902396214,1000000390
03.01.2020,MODERNISATION HGF,ARCH CONSULTING,925,APPLICATIONS,SOFTWARE,5902396204,1000056829
03.01.2020,MODERNISATION HGF,COMENSURA LTD,"212,588.30",WEEKLY PAYMENTS,AGENCY STAFF,5902396196,1000051261
03.01.2020,RESIDENT SERVICES,KENT COUNTY COUNCIL - LASER,"2,021.74",TA HOSTELS,ELECTRICITY,5902396180,1000012926
03.01.2020,RESIDENT SERVICES,KENT COUNTY COUNCIL - LASER,921.41,TA HOSTELS,ELECTRICITY,5902396181,1000012926
03.01.2020,RESIDENT SERVICES,KENT COUNTY COUNCIL - LASER,851.54,TA HOSTELS,ELECTRICITY,5902396179,1000012926
03.01.2020,RESIDENT SERVICES,KENT COUNTY COUNCIL - LASER,460.11,TA HOSTELS,ELECTRICITY,5902396231,1000012926
03.01.2020,RESIDENT SERVICES,KENT COUNTY COUNCIL - LASER,458.56,TA HOSTELS,ELECTRICITY,5902396233,1000012926
03.01.2020,RESIDENT SERVICES,KENT COUNTY COUNCIL - LASER,383.53,TA HOSTELS,ELECTRICITY,5902396182,1000012926
03.01.2020,RESIDENT SERVICES,KENT COUNTY COUNCIL - LASER,270.75,TA HOSTELS,ELECTRICITY,5902396235,1000012926
03.01.2020,RESIDENT SERVICES,NORBURY PROPERTY SERVICES (LONDON) LTD,"5,983.00",TA PLACEMENTS,EXTERNAL AGENCIES AND BODIES,5902396225,1000075566
03.01.2020,RESIDENT SERVICES,NORBURY PROPERTY SERVICES (LONDON) LTD,"5,790.00",TA PLACEMENTS,EXTERNAL AGENCIES AND BODIES,5902396219,1000075566
04.01.2020,ADULT SOCIAL CARE,REDACTED PERSONAL DATA,277.3,APPOINTEESHIPS,OTHER PAYMENTS FOR CLIENTS,REDACTED,REDACTED
04.01.2020,ADULT SOCIAL CARE,ALZHEIMER'S SOCIETY,"41,000.00",LOCAL COMMUNITY OFFER,EXTERNAL AGENCIES AND BODIES,5902396270,1000005179
04.01.2020,ADULT SOCIAL CARE,TIME & TALENTS ASSOCIATION,"23,104.25",LOCAL COMMUNITY OFFER,EXTERNAL AGENCIES AND BODIES,5902396303,1757632
04.01.2020,ADULT SOCIAL CARE,THAMES HOMECARE SERVICE LTD,519.1,MEM STS 18-64,HOMECARE - IC,2103046174,1000079295
04.01.2020,ADULT SOCIAL CARE,THAMES HOMECARE SERVICE LTD,268.5,MH LTS 18-64,HOMECARE - SPOT,2103046236,1000079295
04.01.2020,ADULT SOCIAL CARE,AGE UK LEWISHAM & SOUTHWARK,"52,825.00",OLDER PEOPLES HUBS,EXTERNAL AGENCIES AND BODIES,5902396302,1507154
04.01.2020,ADULT SOCIAL CARE,THAMES HOMECARE SERVICE LTD,814.45,PHY LTS 18-64,HOMECARE - SPOT,2103046178,1000079295
04.01.2020,ADULT SOCIAL CARE,THAMES HOMECARE SERVICE LTD,639.93,PHY LTS 18-64,HOMECARE - SPOT,2103046194,1000079295
04.01.2020,ADULT SOCIAL CARE,THAMES HOMECARE SERVICE LTD,626.5,PHY LTS 18-64,HOMECARE - SPOT,2103046179,1000079295
04.01.2020,ADULT SOCIAL CARE,THAMES HOMECARE SERVICE LTD,563.85,PHY LTS 18-64,HOMECARE - SPOT,2103046219,1000079295
04.01.2020,ADULT SOCIAL CARE,THAMES HOMECARE SERVICE LTD,380.38,PHY LTS 18-64,HOMECARE - SPOT,2103046196,1000079295
04.01.2020,ADULT SOCIAL CARE,THAMES HOMECARE SERVICE LTD,322.2,PHY LTS 18-64,HOMECARE - SPOT,2103046192,1000079295
04.01.2020,ADULT SOCIAL CARE,THAMES HOMECARE SERVICE LTD,308.78,PHY LTS 18-64,HOMECARE - SPOT,2103046190,1000079295
04.01.2020,ADULT SOCIAL CARE,THAMES HOMECARE SERVICE LTD,295.35,PHY LTS 18-64,HOMECARE - SPOT,2103046224,1000079295
04.01.2020,ADULT SOCIAL CARE,THAMES HOMECARE SERVICE LTD,286.4,PHY LTS 18-64,HOMECARE - SPOT,2103046229,1000079295
04.01.2020,ADULT SOCIAL CARE,THAMES HOMECARE SERVICE LTD,250.6,PHY LTS 18-64,HOMECARE - SPOT,2103046180,1000079295
04.01.2020,ADULT SOCIAL CARE,THAMES HOMECARE SERVICE LTD,"1,029.25",PHY LTS 65+,HOMECARE - SPOT,2103046206,1000079295
04.01.2020,ADULT SOCIAL CARE,THAMES HOMECARE SERVICE LTD,921.85,PHY LTS 65+,HOMECARE - SPOT,2103046198,1000079295
04.01.2020,ADULT SOCIAL CARE,THAMES HOMECARE SERVICE LTD,783.13,PHY LTS 65+,HOMECARE - SPOT,2103046237,1000079295
04.01.2020,ADULT SOCIAL CARE,THAMES HOMECARE SERVICE LTD,689.15,PHY LTS 65+,HOMECARE - SPOT,2103046175,1000079295
04.01.2020,ADULT SOCIAL CARE,THAMES HOMECARE SERVICE LTD,662.3,PHY LTS 65+,HOMECARE - SPOT,2103046232,1000079295
04.01.2020,ADULT SOCIAL CARE,THAMES HOMECARE SERVICE LTD,635.45,PHY LTS 65+,HOMECARE - C&V,2103046177,1000079295
04.01.2020,ADULT SOCIAL CARE,THAMES HOMECARE SERVICE LTD,599.65,PHY LTS 65+,HOMECARE - SPOT,2103046238,1000079295
04.01.2020,ADULT SOCIAL CARE,THAMES HOMECARE SERVICE LTD,568.33,PHY LTS 65+,HOMECARE - SPOT,2103046207,1000079295
04.01.2020,ADULT SOCIAL CARE,THAMES HOMECARE SERVICE LTD,563.85,PHY LTS 65+,HOMECARE - SPOT,2103046199,1000079295
04.01.2020,ADULT SOCIAL CARE,THAMES HOMECARE SERVICE LTD,563.85,PHY LTS 65+,HOMECARE - SPOT,2103046202,1000079295
04.01.2020,ADULT SOCIAL CARE,THAMES HOMECARE SERVICE LTD,563.85,PHY LTS 65+,HOMECARE - SPOT,2103046221,1000079295
04.01.2020,ADULT SOCIAL CARE,THAMES HOMECARE SERVICE LTD,563.85,PHY LTS 65+,HOMECARE - SPOT,2103046228,1000079295
04.01.2020,ADULT SOCIAL CARE,THAMES HOMECARE SERVICE LTD,537,PHY LTS 65+,HOMECARE - SPOT,2103046176,1000079295
04.01.2020,ADULT SOCIAL CARE,THAMES HOMECARE SERVICE LTD,519.1,PHY LTS 65+,HOMECARE - SPOT,2103046245,1000079295
04.01.2020,ADULT SOCIAL CARE,THAMES HOMECARE SERVICE LTD,501.2,PHY LTS 65+,HOMECARE - SPOT,2103046220,1000079295
04.01.2020,ADULT SOCIAL CARE,THAMES HOMECARE SERVICE LTD,438.55,PHY LTS 65+,HOMECARE - SPOT,2103046211,1000079295
04.01.2020,ADULT SOCIAL CARE,THAMES HOMECARE SERVICE LTD,407.23,PHY LTS 65+,HOMECARE - SPOT,2103046231,1000079295
04.01.2020,ADULT SOCIAL CARE,THAMES HOMECARE SERVICE LTD,407.23,PHY LTS 65+,HOMECARE - SPOT,2103046234,1000079295
04.01.2020,ADULT SOCIAL CARE,THAMES HOMECARE SERVICE LTD,344.58,PHY LTS 65+,HOMECARE - SPOT,2103046186,1000079295
04.01.2020,ADULT SOCIAL CARE,THAMES HOMECARE SERVICE LTD,344.58,PHY LTS 65+,HOMECARE - SPOT,2103046243,1000079295
04.01.2020,ADULT SOCIAL CARE,THAMES HOMECARE SERVICE LTD,313.25,PHY LTS 65+,HOMECARE - SPOT,2103046242,1000079295
04.01.2020,ADULT SOCIAL CARE,THAMES HOMECARE SERVICE LTD,281.93,PHY LTS 65+,HOMECARE - SPOT,2103046201,1000079295
04.01.2020,ADULT SOCIAL CARE,THAMES HOMECARE SERVICE LTD,281.93,PHY LTS 65+,HOMECARE - SPOT,2103046208,1000079295
04.01.2020,ADULT SOCIAL CARE,THAMES HOMECARE SERVICE LTD,281.93,PHY LTS 65+,HOMECARE - SPOT,2103046240,1000079295
04.01.2020,ADULT SOCIAL CARE,THAMES HOMECARE SERVICE LTD,268.5,PHY LTS 65+,HOMECARE - SPOT,2103046213,1000079295
04.01.2020,ADULT SOCIAL CARE,THAMES HOMECARE SERVICE LTD,255.08,PHY LTS 65+,HOMECARE - SPOT,2103046188,1000079295
04.01.2020,ADULT SOCIAL CARE,THAMES HOMECARE SERVICE LTD,250.6,PHY LTS 65+,HOMECARE - SPOT,2103046226,1000079295
04.01.2020,ADULT SOCIAL CARE,THAMES HOMECARE SERVICE LTD,250.6,PHY LTS 65+,HOMECARE - SPOT,2103046230,1000079295
04.01.2020,ADULT SOCIAL CARE,THAMES HOMECARE SERVICE LTD,935.28,PHY STS 65+,HOMECARE - IC,2103046185,1000079295
04.01.2020,ADULT SOCIAL CARE,THAMES HOMECARE SERVICE LTD,268.5,SOCIAL ISOLATION,HOMECARE - SPOT,2103046214,1000079295
04.01.2020,ASSET MANAGEMENT,CAMERON CONSULTING (UK) LTD,"1,425.00",INVESTMENT MANAGER,PROFESSIONAL FEES,5902396310,1000064510
04.01.2020,CENTRAL FUNCTIONS,EDF ENERGY PLC,"1,296.43",LEDBURY ESTATE,ELECTRICITY,5902396274,1008746
04.01.2020,CHILDREN AND ADULT,JOH DESIGN,"1,407.50",CAPITAL PS (SOC SERV),CONSTRUCTION FEES,5902396360,1000082540
04.01.2020,CHILDREN'S SERVICES,REDACTED PERSONAL DATA,300,CARE LEAVERS SERVICES 16+,OTHER PAYMENTS FOR CLIENTS,REDACTED,REDACTED
04.01.2020,CHILDREN'S SERVICES,GATENBY SANDERSON LTD,"14,945.00",DIRECTOR OF EDUCATION,RECRUITMENT ADVERTISING,5902396318,1000061171
04.01.2020,CHILDREN'S SERVICES,ST JAMES CE SCHOOL,"3,400.00",IN YEAR STATEMENTS & REORGS,STATEMENTED FEES,2103046396,5001000070
04.01.2020,CHILDREN'S SERVICES,REDACTED PERSONAL DATA,"2,000.00",LEAVING CARE GRANT,OTHER PAYMENTS FOR CLIENTS,REDACTED,REDACTED
04.01.2020,CHILDREN'S SERVICES,KM MANAGEMENT AND CONSULTANCY LTD,"2,225.00",MANAGEMENT INFORMATION UNIT,PROFESSIONAL FEES,5902396365,1000078756
04.01.2020,CHILDREN'S SERVICES,OWNLIFE LTD,"19,564.20",SEMI INDEPENDENT CARE LEAVERS,EXTERNAL AGENCIES AND BODIES,2103046142,1000056219
04.01.2020,CHILDREN'S SERVICES,OWNLIFE LTD,"7,705.00",SEMI INDEPENDENT CARE LEAVERS,EXTERNAL AGENCIES AND BODIES,2103046155,1000056219
04.01.2020,CHILDREN'S SERVICES,YOUNG FUTURES,"3,941.34",SEMI INDEPENDENT CARE LEAVERS,EXTERNAL AGENCIES AND BODIES,2103046148,1000059563
04.01.2020,CHILDREN'S SERVICES,YOUNG FUTURES,"3,941.34",SEMI INDEPENDENT CARE LEAVERS,EXTERNAL AGENCIES AND BODIES,2103046160,1000059563
04.01.2020,CHILDREN'S SERVICES,YOUNG FUTURES,"3,365.67",SEMI INDEPENDENT CARE LEAVERS,EXTERNAL AGENCIES AND BODIES,2103046161,1000059563
04.01.2020,CHILDREN'S SERVICES,YOUNG FUTURES,"2,790.00",SEMI INDEPENDENT CARE LEAVERS,EXTERNAL AGENCIES AND BODIES,2103046159,1000059563
04.01.2020,CHILDREN'S SERVICES,OWNLIFE LTD,"2,357.13",SEMI INDEPENDENT CARE LEAVERS,EXTERNAL AGENCIES AND BODIES,2103046149,1000056219
04.01.2020,CHILDREN'S SERVICES,YOUNG FUTURES,"2,214.33",SEMI INDEPENDENT CARE LEAVERS,EXTERNAL AGENCIES AND BODIES,2103046151,1000059563
04.01.2020,CHILDREN'S SERVICES,YOUNG FUTURES,"2,214.33",SEMI INDEPENDENT CARE LEAVERS,EXTERNAL AGENCIES AND BODIES,2103046157,1000059563
04.01.2020,CHILDREN'S SERVICES,HEARTWOOD OUTREACH SERVICES LTD,"1,887.59",SEMI INDEPENDENT CARE LEAVERS,EXTERNAL AGENCIES AND BODIES,2103046141,1000075021
04.01.2020,CHILDREN'S SERVICES,OWNLIFE LTD,737.14,SEMI INDEPENDENT CARE LEAVERS,EXTERNAL AGENCIES AND BODIES,2103046156,1000056219
04.01.2020,CHILDREN'S SERVICES,REDACTED PERSONAL DATA,300,SEMI INDEPENDENT CARE LEAVERS,OTHER PAYMENTS FOR CLIENTS,REDACTED,REDACTED
04.01.2020,CHILDREN'S SERVICES,YOUNG FUTURES,-903.34,SEMI INDEPENDENT CARE LEAVERS,EXTERNAL AGENCIES AND BODIES,2103046147,1000059563
04.01.2020,CHILDREN'S SERVICES,HEARTWOOD OUTREACH SERVICES LTD,"13,985.76",SEMI INDEPENDENT LAC,EXTERNAL AGENCIES AND BODIES,2103046166,1000075021
04.01.2020,CHILDREN'S SERVICES,YOUNG FUTURES,"8,192.68",SEMI INDEPENDENT LAC,EXTERNAL AGENCIES AND BODIES,2103046162,1000059563
04.01.2020,CHILDREN'S SERVICES,YOUNG FUTURES,"2,790.00",SEMI INDEPENDENT LAC,EXTERNAL AGENCIES AND BODIES,2103046158,1000059563
04.01.2020,CHILDREN'S SERVICES,SILVER BIRCH CARE LTD,925.71,SEMI INDEPENDENT LAC,OTHER PAYMENTS FOR CLIENTS,2103046165,1000076525
04.01.2020,CHILDREN'S SERVICES,REDACTED PERSONAL DATA,367.14,SEMI INDEPENDENT LAC,OTHER PAYMENTS FOR CLIENTS,REDACTED,REDACTED
04.01.2020,CHILDREN'S SERVICES,YOUNG FUTURES,300,SEMI INDEPENDENT LAC,OTHER PAYMENTS FOR CLIENTS,2103046168,1000059563
04.01.2020,CHILDREN'S SERVICES,UNIVERSITY ENGINEERING ACADEMY,"10,109.06",SEN - ACADEMY AND FREE SCHOOLS,STATEMENTED FEES,2103046276,1000074104
04.01.2020,CHILDREN'S SERVICES,UNIVERSITY ENGINEERING ACADEMY,"8,498.29",SEN - ACADEMY AND FREE SCHOOLS,STATEMENTED FEES,2103046273,1000074104
04.01.2020,CHILDREN'S SERVICES,UNIVERSITY ENGINEERING ACADEMY,"8,498.29",SEN - ACADEMY AND FREE SCHOOLS,STATEMENTED FEES,2103046277,1000074104
04.01.2020,CHILDREN'S SERVICES,UNIVERSITY ENGINEERING ACADEMY,"8,498.29",SEN - ACADEMY AND FREE SCHOOLS,STATEMENTED FEES,2103046278,1000074104
04.01.2020,CHILDREN'S SERVICES,UNIVERSITY ENGINEERING ACADEMY,"8,498.29",SEN - ACADEMY AND FREE SCHOOLS,STATEMENTED FEES,2103046309,1000074104
04.01.2020,CHILDREN'S SERVICES,UNIVERSITY ENGINEERING ACADEMY,"8,020.41",SEN - ACADEMY AND FREE SCHOOLS,STATEMENTED FEES,2103046275,1000074104
04.01.2020,CHILDREN'S SERVICES,UNIVERSITY ENGINEERING ACADEMY,"8,020.41",SEN - ACADEMY AND FREE SCHOOLS,STATEMENTED FEES,2103046280,1000074104
04.01.2020,CHILDREN'S SERVICES,UNIVERSITY ENGINEERING ACADEMY,"5,346.94",SEN - ACADEMY AND FREE SCHOOLS,STATEMENTED FEES,2103046259,1000074104
04.01.2020,CHILDREN'S SERVICES,UNIVERSITY ENGINEERING ACADEMY,"5,346.94",SEN - ACADEMY AND FREE SCHOOLS,STATEMENTED FEES,2103046274,1000074104
04.01.2020,CHILDREN'S SERVICES,UNIVERSITY ENGINEERING ACADEMY,"5,346.94",SEN - ACADEMY AND FREE SCHOOLS,STATEMENTED FEES,2103046279,1000074104
04.01.2020,CHILDREN'S SERVICES,UNIVERSITY ENGINEERING ACADEMY,"5,346.94",SEN - ACADEMY AND FREE SCHOOLS,STATEMENTED FEES,2103046310,1000074104
04.01.2020,CHILDREN'S SERVICES,UNIVERSITY ENGINEERING ACADEMY,"2,673.47",SEN - ACADEMY AND FREE SCHOOLS,STATEMENTED FEES,2103046272,1000074104
04.01.2020,CHILDREN'S SERVICES,SPA EDUCATION TRUST,"26,066.33",SEN - ACADEMY SPECIAL,STATEMENTED FEES,2103046454,1000081600
04.01.2020,CHILDREN'S SERVICES,SPA EDUCATION TRUST,"22,724.49",SEN - ACADEMY SPECIAL,STATEMENTED FEES,2103046450,1000081600
04.01.2020,CHILDREN'S SERVICES,SPA EDUCATION TRUST,"22,724.49",SEN - ACADEMY SPECIAL,STATEMENTED FEES,2103046451,1000081600
04.01.2020,CHILDREN'S SERVICES,SPA EDUCATION TRUST,"19,382.65",SEN - ACADEMY SPECIAL,STATEMENTED FEES,2103046449,1000081600
04.01.2020,CHILDREN'S SERVICES,SPA EDUCATION TRUST,"19,382.65",SEN - ACADEMY SPECIAL,STATEMENTED FEES,2103046452,1000081600
04.01.2020,CHILDREN'S SERVICES,SPA EDUCATION TRUST,"19,382.65",SEN - ACADEMY SPECIAL,STATEMENTED FEES,2103046453,1000081600
04.01.2020,CHILDREN'S SERVICES,THE COMPLETE WORKS INDEPENDENT SCHOOL,"3,021.12",SEN - AEP,STATEMENTED FEES,2103046258,1000033256
04.01.2020,CHILDREN'S SERVICES,THE COMPLETE WORKS INDEPENDENT SCHOOL,"2,665.00",SEN - AEP,STATEMENTED FEES,2103046381,1000033256
04.01.2020,CHILDREN'S SERVICES,THE COMPLETE WORKS INDEPENDENT SCHOOL,"2,643.48",SEN - AEP,STATEMENTED FEES,2103046369,1000033256
04.01.2020,CHILDREN'S SERVICES,THE COMPLETE WORKS INDEPENDENT SCHOOL,-944.1,SEN - AEP,STATEMENTED FEES,2103046455,1000033256
04.01.2020,CHILDREN'S SERVICES,THE COMPLETE WORKS INDEPENDENT SCHOOL,"-2,265.84",SEN - AEP,STATEMENTED FEES,2103046456,1000033256
04.01.2020,CHILDREN'S SERVICES,BEYONDAUTISM,"21,347.66",SEN - INDEPENDENT,STATEMENTED FEES,2103046263,1000080312
04.01.2020,CHILDREN'S SERVICES,BEYONDAUTISM,"21,347.66",SEN - INDEPENDENT,STATEMENTED FEES,2103046264,1000080312
04.01.2020,CHILDREN'S SERVICES,BEYONDAUTISM,"21,347.66",SEN - INDEPENDENT,STATEMENTED FEES,2103046265,1000080312
04.01.2020,CHILDREN'S SERVICES,OCTAVIA HOUSE SCHOOLS LTD,"20,000.00",SEN - INDEPENDENT,STATEMENTED FEES,2103046360,1000073579
04.01.2020,CHILDREN'S SERVICES,OCTAVIA HOUSE SCHOOLS LTD,"16,000.00",SEN - INDEPENDENT,STATEMENTED FEES,2103046344,1000073579
04.01.2020,CHILDREN'S SERVICES,OCTAVIA HOUSE SCHOOLS LTD,"16,000.00",SEN - INDEPENDENT,STATEMENTED FEES,2103046345,1000073579
04.01.2020,CHILDREN'S SERVICES,OCTAVIA HOUSE SCHOOLS LTD,"16,000.00",SEN - INDEPENDENT,STATEMENTED FEES,2103046347,1000073579
04.01.2020,CHILDREN'S SERVICES,OCTAVIA HOUSE SCHOOLS LTD,"16,000.00",SEN - INDEPENDENT,STATEMENTED FEES,2103046348,1000073579
04.01.2020,CHILDREN'S SERVICES,OCTAVIA HOUSE SCHOOLS LTD,"16,000.00",SEN - INDEPENDENT,STATEMENTED FEES,2103046355,1000073579
04.01.2020,CHILDREN'S SERVICES,BLOSSOM LOWER SCHOOL,"15,250.00",SEN - INDEPENDENT,STATEMENTED FEES,2103046306,1000040002
04.01.2020,CHILDREN'S SERVICES,BLOSSOM LOWER SCHOOL,"15,250.00",SEN - INDEPENDENT,STATEMENTED FEES,2103046307,1000040002
04.01.2020,CHILDREN'S SERVICES,RIVERSTON SCHOOL,"14,158.80",SEN - INDEPENDENT,STATEMENTED FEES,2103046335,11213696
04.01.2020,CHILDREN'S SERVICES,RIVERSTON SCHOOL,"14,040.00",SEN - INDEPENDENT,STATEMENTED FEES,2103046328,11213696
04.01.2020,CHILDREN'S SERVICES,OCTAVIA HOUSE SCHOOLS LTD,"14,000.00",SEN - INDEPENDENT,STATEMENTED FEES,2103046342,1000073579
04.01.2020,CHILDREN'S SERVICES,OCTAVIA HOUSE SCHOOLS LTD,"14,000.00",SEN - INDEPENDENT,STATEMENTED FEES,2103046343,1000073579
04.01.2020,CHILDREN'S SERVICES,OCTAVIA HOUSE SCHOOLS LTD,"14,000.00",SEN - INDEPENDENT,STATEMENTED FEES,2103046346,1000073579
04.01.2020,CHILDREN'S SERVICES,OCTAVIA HOUSE SCHOOLS LTD,"14,000.00",SEN - INDEPENDENT,STATEMENTED FEES,2103046349,1000073579
04.01.2020,CHILDREN'S SERVICES,OCTAVIA HOUSE SCHOOLS LTD,"14,000.00",SEN - INDEPENDENT,STATEMENTED FEES,2103046350,1000073579
04.01.2020,CHILDREN'S SERVICES,OCTAVIA HOUSE SCHOOLS LTD,"14,000.00",SEN - INDEPENDENT,STATEMENTED FEES,2103046352,1000073579
04.01.2020,CHILDREN'S SERVICES,OCTAVIA HOUSE SCHOOLS LTD,"14,000.00",SEN - INDEPENDENT,STATEMENTED FEES,2103046353,1000073579
04.01.2020,CHILDREN'S SERVICES,OCTAVIA HOUSE SCHOOLS LTD,"14,000.00",SEN - INDEPENDENT,STATEMENTED FEES,2103046354,1000073579
04.01.2020,CHILDREN'S SERVICES,OCTAVIA HOUSE SCHOOLS LTD,"14,000.00",SEN - INDEPENDENT,STATEMENTED FEES,2103046356,1000073579
04.01.2020,CHILDREN'S SERVICES,OCTAVIA HOUSE SCHOOLS LTD,"14,000.00",SEN - INDEPENDENT,STATEMENTED FEES,2103046357,1000073579
04.01.2020,CHILDREN'S SERVICES,OCTAVIA HOUSE SCHOOLS LTD,"14,000.00",SEN - INDEPENDENT,STATEMENTED FEES,2103046358,1000073579
04.01.2020,CHILDREN'S SERVICES,OCTAVIA HOUSE SCHOOLS LTD,"14,000.00",SEN - INDEPENDENT,STATEMENTED FEES,2103046359,1000073579
04.01.2020,CHILDREN'S SERVICES,RIVERSTON SCHOOL,"13,904.40",SEN - INDEPENDENT,STATEMENTED FEES,2103046334,11213696
04.01.2020,CHILDREN'S SERVICES,RIVERSTON SCHOOL,"13,396.00",SEN - INDEPENDENT,STATEMENTED FEES,2103046336,11213696
04.01.2020,CHILDREN'S SERVICES,OCTAVIA HOUSE SCHOOLS LTD,"13,000.00",SEN - INDEPENDENT,STATEMENTED FEES,2103046340,1000073579
04.01.2020,CHILDREN'S SERVICES,OCTAVIA HOUSE SCHOOLS LTD,"13,000.00",SEN - INDEPENDENT,STATEMENTED FEES,2103046341,1000073579
04.01.2020,CHILDREN'S SERVICES,OCTAVIA HOUSE SCHOOLS LTD,"13,000.00",SEN - INDEPENDENT,STATEMENTED FEES,2103046362,1000073579
04.01.2020,CHILDREN'S SERVICES,OCTAVIA HOUSE SCHOOLS LTD,"13,000.00",SEN - INDEPENDENT,STATEMENTED FEES,2103046363,1000073579
04.01.2020,CHILDREN'S SERVICES,OCTAVIA HOUSE SCHOOLS LTD,"13,000.00",SEN - INDEPENDENT,STATEMENTED FEES,2103046364,1000073579
04.01.2020,CHILDREN'S SERVICES,RIVERSTON SCHOOL,"12,263.70",SEN - INDEPENDENT,STATEMENTED FEES,2103046332,11213696
04.01.2020,CHILDREN'S SERVICES,RIVERSTON SCHOOL,"11,785.70",SEN - INDEPENDENT,STATEMENTED FEES,2103046331,11213696
04.01.2020,CHILDREN'S SERVICES,RIVERSTON SCHOOL,"11,458.00",SEN - INDEPENDENT,STATEMENTED FEES,2103046333,11213696
04.01.2020,CHILDREN'S SERVICES,RIVERSTON SCHOOL,"11,179.70",SEN - INDEPENDENT,STATEMENTED FEES,2103046325,11213696
04.01.2020,CHILDREN'S SERVICES,RIVERSTON SCHOOL,"11,065.00",SEN - INDEPENDENT,STATEMENTED FEES,2103046327,11213696
04.01.2020,CHILDREN'S SERVICES,RIVERSTON SCHOOL,"11,055.00",SEN - INDEPENDENT,STATEMENTED FEES,2103046330,11213696
04.01.2020,CHILDREN'S SERVICES,TREASURE HOUSE (LONDON) CIC,"11,000.00",SEN - INDEPENDENT,STATEMENTED FEES,2103046269,1000061163
04.01.2020,CHILDREN'S SERVICES,FAIRLEY HOUSE SCHOOL,"10,980.00",SEN - INDEPENDENT,STATEMENTED FEES,2103046398,1000030807
04.01.2020,CHILDREN'S SERVICES,FAIRLEY HOUSE SCHOOL,"10,980.00",SEN - INDEPENDENT,STATEMENTED FEES,2103046399,1000030807
04.01.2020,CHILDREN'S SERVICES,FAIRLEY HOUSE SCHOOL,"10,980.00",SEN - INDEPENDENT,STATEMENTED FEES,2103046400,1000030807
04.01.2020,CHILDREN'S SERVICES,FAIRLEY HOUSE SCHOOL,"10,980.00",SEN - INDEPENDENT,STATEMENTED FEES,2103046401,1000030807
04.01.2020,CHILDREN'S SERVICES,FAIRLEY HOUSE SCHOOL,"10,980.00",SEN - INDEPENDENT,STATEMENTED FEES,2103046402,1000030807
04.01.2020,CHILDREN'S SERVICES,FAIRLEY HOUSE SCHOOL,"10,980.00",SEN - INDEPENDENT,STATEMENTED FEES,2103046403,1000030807
04.01.2020,CHILDREN'S SERVICES,FAIRLEY HOUSE SCHOOL,"10,980.00",SEN - INDEPENDENT,STATEMENTED FEES,2103046404,1000030807
04.01.2020,CHILDREN'S SERVICES,FAIRLEY HOUSE SCHOOL,"10,980.00",SEN - INDEPENDENT,STATEMENTED FEES,2103046405,1000030807
04.01.2020,CHILDREN'S SERVICES,FAIRLEY HOUSE SCHOOL,"10,980.00",SEN - INDEPENDENT,STATEMENTED FEES,2103046406,1000030807
04.01.2020,CHILDREN'S SERVICES,FAIRLEY HOUSE SCHOOL,"10,980.00",SEN - INDEPENDENT,STATEMENTED FEES,2103046407,1000030807
04.01.2020,CHILDREN'S SERVICES,BEYONDAUTISM,"10,800.00",SEN - INDEPENDENT,STATEMENTED FEES,2103046459,1000080312
04.01.2020,CHILDREN'S SERVICES,RIVERSTON SCHOOL,"10,334.30",SEN - INDEPENDENT,STATEMENTED FEES,2103046329,11213696
04.01.2020,CHILDREN'S SERVICES,CAVENDISH SCHOOL,"9,000.00",SEN - INDEPENDENT,STATEMENTED FEES,2103046295,1000024278
04.01.2020,CHILDREN'S SERVICES,CAVENDISH SCHOOL,"9,000.00",SEN - INDEPENDENT,STATEMENTED FEES,2103046296,1000024278
04.01.2020,CHILDREN'S SERVICES,CAVENDISH SCHOOL,"9,000.00",SEN - INDEPENDENT,STATEMENTED FEES,2103046297,1000024278
04.01.2020,CHILDREN'S SERVICES,CAVENDISH SCHOOL,"9,000.00",SEN - INDEPENDENT,STATEMENTED FEES,2103046298,1000024278
04.01.2020,CHILDREN'S SERVICES,CAVENDISH SCHOOL,"9,000.00",SEN - INDEPENDENT,STATEMENTED FEES,2103046323,1000024278
04.01.2020,CHILDREN'S SERVICES,CAVENDISH SCHOOL,"9,000.00",SEN - INDEPENDENT,STATEMENTED FEES,2103046324,1000024278
04.01.2020,CHILDREN'S SERVICES,RIVERSTON SCHOOL,"7,648.00",SEN - INDEPENDENT,STATEMENTED FEES,2103046268,11213696
04.01.2020,CHILDREN'S SERVICES,CAVENDISH SCHOOL,"7,363.64",SEN - INDEPENDENT,STATEMENTED FEES,2103046283,1000024278
04.01.2020,CHILDREN'S SERVICES,CAVENDISH SCHOOL,"7,363.64",SEN - INDEPENDENT,STATEMENTED FEES,2103046284,1000024278
04.01.2020,CHILDREN'S SERVICES,CAVENDISH SCHOOL,"7,363.64",SEN - INDEPENDENT,STATEMENTED FEES,2103046285,1000024278
04.01.2020,CHILDREN'S SERVICES,CAVENDISH SCHOOL,"7,363.64",SEN - INDEPENDENT,STATEMENTED FEES,2103046286,1000024278
04.01.2020,CHILDREN'S SERVICES,CAVENDISH SCHOOL,"7,363.64",SEN - INDEPENDENT,STATEMENTED FEES,2103046287,1000024278
04.01.2020,CHILDREN'S SERVICES,CAVENDISH SCHOOL,"7,363.64",SEN - INDEPENDENT,STATEMENTED FEES,2103046288,1000024278
04.01.2020,CHILDREN'S SERVICES,CAVENDISH SCHOOL,"7,363.64",SEN - INDEPENDENT,STATEMENTED FEES,2103046289,1000024278
04.01.2020,CHILDREN'S SERVICES,CAVENDISH SCHOOL,"7,363.64",SEN - INDEPENDENT,STATEMENTED FEES,2103046290,1000024278
04.01.2020,CHILDREN'S SERVICES,CAVENDISH SCHOOL,"7,363.64",SEN - INDEPENDENT,STATEMENTED FEES,2103046291,1000024278
04.01.2020,CHILDREN'S SERVICES,CAVENDISH SCHOOL,"7,363.64",SEN - INDEPENDENT,STATEMENTED FEES,2103046292,1000024278
04.01.2020,CHILDREN'S SERVICES,CAVENDISH SCHOOL,"7,363.64",SEN - INDEPENDENT,STATEMENTED FEES,2103046293,1000024278
04.01.2020,CHILDREN'S SERVICES,BEYONDAUTISM,"6,600.00",SEN - INDEPENDENT,STATEMENTED FEES,2103046458,1000080312
04.01.2020,CHILDREN'S SERVICES,CAVENDISH SCHOOL,"5,625.00",SEN - INDEPENDENT,STATEMENTED FEES,2103046267,1000024278
04.01.2020,CHILDREN'S SERVICES,CAVENDISH SCHOOL,"5,625.00",SEN - INDEPENDENT,STATEMENTED FEES,2103046271,1000024278
04.01.2020,CHILDREN'S SERVICES,CAVENDISH SCHOOL,"5,625.00",SEN - INDEPENDENT,STATEMENTED FEES,2103046282,1000024278
04.01.2020,CHILDREN'S SERVICES,BEYONDAUTISM,"5,400.00",SEN - INDEPENDENT,STATEMENTED FEES,2103046462,1000080312
04.01.2020,CHILDREN'S SERVICES,PHOENIXPLACE,"4,564.00",SEN - INDEPENDENT,STATEMENTED FEES,2103046351,1000075565
04.01.2020,CHILDREN'S SERVICES,CAVENDISH SCHOOL,"4,500.00",SEN - INDEPENDENT,STATEMENTED FEES,2103046262,1000024278
04.01.2020,CHILDREN'S SERVICES,CAVENDISH SCHOOL,"4,500.00",SEN - INDEPENDENT,STATEMENTED FEES,2103046270,1000024278
04.01.2020,CHILDREN'S SERVICES,PHOENIXPLACE,"4,400.00",SEN - INDEPENDENT,STATEMENTED FEES,2103046361,1000075565
04.01.2020,CHILDREN'S SERVICES,BEYONDAUTISM,"4,166.67",SEN - INDEPENDENT,STATEMENTED FEES,2103046308,1000080312
04.01.2020,CHILDREN'S SERVICES,PHOENIXPLACE,"3,840.00",SEN - INDEPENDENT,STATEMENTED FEES,2103046326,1000075565
04.01.2020,CHILDREN'S SERVICES,BEYONDAUTISM,"2,400.00",SEN - INDEPENDENT,STATEMENTED FEES,2103046461,1000080312
04.01.2020,CHILDREN'S SERVICES,BEYONDAUTISM,"1,200.00",SEN - INDEPENDENT,STATEMENTED FEES,2103046457,1000080312
04.01.2020,CHILDREN'S SERVICES,BEYONDAUTISM,"1,200.00",SEN - INDEPENDENT,STATEMENTED FEES,2103046460,1000080312
04.01.2020,CHILDREN'S SERVICES,BEYONDAUTISM,"1,200.00",SEN - INDEPENDENT,STATEMENTED FEES,2103046463,1000080312
04.01.2020,CHILDREN'S SERVICES,BEYONDAUTISM,"1,200.00",SEN - INDEPENDENT,STATEMENTED FEES,2103046464,1000080312
04.01.2020,CHILDREN'S SERVICES,BEYONDAUTISM,"1,200.00",SEN - INDEPENDENT,STATEMENTED FEES,2103046465,1000080312
04.01.2020,CHILDREN'S SERVICES,BEYONDAUTISM,"1,200.00",SEN - INDEPENDENT,STATEMENTED FEES,2103046466,1000080312
04.01.2020,CHILDREN'S SERVICES,BEYONDAUTISM,"1,200.00",SEN - INDEPENDENT,STATEMENTED FEES,2103046467,1000080312
04.01.2020,CHILDREN'S SERVICES,CAVENDISH SCHOOL,755,SEN - INDEPENDENT,STATEMENTED FEES,2103046294,1000024278
04.01.2020,CHILDREN'S SERVICES,KEYS CHILDCARE LTD,"10,830.00",SEN - OTHER,STATEMENTED FEES,2103046305,1000081582
04.01.2020,CHILDREN'S SERVICES,FLEET TUTORS,"4,852.00",SEN - OTHER,STATEMENTED FEES,2103046368,1000044820
04.01.2020,CHILDREN'S SERVICES,FLEET TUTORS,"4,530.00",SEN - OTHER,STATEMENTED FEES,2103046366,1000044820
04.01.2020,CHILDREN'S SERVICES,PECULIAR CARE HOMES LTD,"4,487.50",SEN - OTHER,STATEMENTED FEES,2103046299,1000076991
04.01.2020,CHILDREN'S SERVICES,NEW START TRAINING LTD,"4,225.00",SEN - OTHER,STATEMENTED FEES,2103046367,1000045132
04.01.2020,CHILDREN'S SERVICES,FLEET TUTORS,"4,216.00",SEN - OTHER,STATEMENTED FEES,2103046311,1000044820
04.01.2020,CHILDREN'S SERVICES,FLEET TUTORS,"4,044.00",SEN - OTHER,STATEMENTED FEES,2103046313,1000044820
04.01.2020,CHILDREN'S SERVICES,CARBONE CLINIC UK LTD,"3,750.00",SEN - OTHER,STATEMENTED FEES,2103046266,1000080937
04.01.2020,CHILDREN'S SERVICES,FLEET TUTORS,"3,624.00",SEN - OTHER,STATEMENTED FEES,2103046314,1000044820
04.01.2020,CHILDREN'S SERVICES,PECULIAR CARE HOMES LTD,"3,590.50",SEN - OTHER,STATEMENTED FEES,2103046300,1000076991
04.01.2020,CHILDREN'S SERVICES,FLEET TUTORS,"3,162.00",SEN - OTHER,STATEMENTED FEES,2103046376,1000044820
04.01.2020,CHILDREN'S SERVICES,FLEET TUTORS,"3,162.00",SEN - OTHER,STATEMENTED FEES,2103046410,1000044820
04.01.2020,CHILDREN'S SERVICES,FLEET TUTORS,"3,076.00",SEN - OTHER,STATEMENTED FEES,2103046408,1000044820
04.01.2020,CHILDREN'S SERVICES,FLEET TUTORS,"3,014.00",SEN - OTHER,STATEMENTED FEES,2103046416,1000044820
04.01.2020,CHILDREN'S SERVICES,CARBONE CLINIC UK LTD,"3,000.00",SEN - OTHER,STATEMENTED FEES,2103046379,1000080937
04.01.2020,CHILDREN'S SERVICES,FLEET TUTORS,"2,879.00",SEN - OTHER,STATEMENTED FEES,2103046317,1000044820
04.01.2020,CHILDREN'S SERVICES,FLEET TUTORS,"2,736.00",SEN - OTHER,STATEMENTED FEES,2103046319,1000044820
04.01.2020,CHILDREN'S SERVICES,FLEET TUTORS,"2,667.00",SEN - OTHER,STATEMENTED FEES,2103046414,1000044820
04.01.2020,CHILDREN'S SERVICES,VIBE TEACHER RECRUITMENT LTD,"2,660.00",SEN - OTHER,STATEMENTED FEES,2103046431,1000081423
04.01.2020,CHILDREN'S SERVICES,VIBE TEACHER RECRUITMENT LTD,"2,580.00",SEN - OTHER,STATEMENTED FEES,2103046437,1000081423
04.01.2020,CHILDREN'S SERVICES,VIBE TEACHER RECRUITMENT LTD,"2,500.00",SEN - OTHER,STATEMENTED FEES,2103046422,1000081423
04.01.2020,CHILDREN'S SERVICES,VIBE TEACHER RECRUITMENT LTD,"2,390.00",SEN - OTHER,STATEMENTED FEES,2103046443,1000081423
04.01.2020,CHILDREN'S SERVICES,CHARLIE CHAPLIN ADVENTURE PLAYGROUND,"2,356.00",SEN - OTHER,STATEMENTED FEES,2103046281,1000058003
04.01.2020,CHILDREN'S SERVICES,VIBE TEACHER RECRUITMENT LTD,"2,300.00",SEN - OTHER,STATEMENTED FEES,2103046424,1000081423
04.01.2020,CHILDREN'S SERVICES,VIBE TEACHER RECRUITMENT LTD,"2,300.00",SEN - OTHER,STATEMENTED FEES,2103046427,1000081423
04.01.2020,CHILDREN'S SERVICES,VIBE TEACHER RECRUITMENT LTD,"2,300.00",SEN - OTHER,STATEMENTED FEES,2103046430,1000081423
04.01.2020,CHILDREN'S SERVICES,VIBE TEACHER RECRUITMENT LTD,"2,300.00",SEN - OTHER,STATEMENTED FEES,2103046448,1000081423
04.01.2020,CHILDREN'S SERVICES,FLEET TUTORS,"2,295.00",SEN - OTHER,STATEMENTED FEES,2103046318,1000044820
04.01.2020,CHILDREN'S SERVICES,FLEET TUTORS,"2,295.00",SEN - OTHER,STATEMENTED FEES,2103046421,1000044820
04.01.2020,CHILDREN'S SERVICES,FLEET TUTORS,"2,171.00",SEN - OTHER,STATEMENTED FEES,2103046415,1000044820
04.01.2020,CHILDREN'S SERVICES,VIBE TEACHER RECRUITMENT LTD,"2,140.00",SEN - OTHER,STATEMENTED FEES,2103046440,1000081423
04.01.2020,CHILDREN'S SERVICES,VIBE TEACHER RECRUITMENT LTD,"2,100.00",SEN - OTHER,STATEMENTED FEES,2103046423,1000081423
04.01.2020,CHILDREN'S SERVICES,VIBE TEACHER RECRUITMENT LTD,"2,100.00",SEN - OTHER,STATEMENTED FEES,2103046426,1000081423
04.01.2020,CHILDREN'S SERVICES,VIBE TEACHER RECRUITMENT LTD,"2,100.00",SEN - OTHER,STATEMENTED FEES,2103046429,1000081423
04.01.2020,CHILDREN'S SERVICES,VIBE TEACHER RECRUITMENT LTD,"2,100.00",SEN - OTHER,STATEMENTED FEES,2103046433,1000081423
04.01.2020,CHILDREN'S SERVICES,VIBE TEACHER RECRUITMENT LTD,"2,100.00",SEN - OTHER,STATEMENTED FEES,2103046435,1000081423
04.01.2020,CHILDREN'S SERVICES,VIBE TEACHER RECRUITMENT LTD,"2,100.00",SEN - OTHER,STATEMENTED FEES,2103046439,1000081423
04.01.2020,CHILDREN'S SERVICES,VIBE TEACHER RECRUITMENT LTD,"2,100.00",SEN - OTHER,STATEMENTED FEES,2103046442,1000081423
04.01.2020,CHILDREN'S SERVICES,VIBE TEACHER RECRUITMENT LTD,"2,100.00",SEN - OTHER,STATEMENTED FEES,2103046445,1000081423
04.01.2020,CHILDREN'S SERVICES,FLEET TUTORS,"1,976.00",SEN - OTHER,STATEMENTED FEES,2103046312,1000044820
04.01.2020,CHILDREN'S SERVICES,FLEET TUTORS,"1,976.00",SEN - OTHER,STATEMENTED FEES,2103046315,1000044820
04.01.2020,CHILDREN'S SERVICES,VIBE TEACHER RECRUITMENT LTD,"1,930.00",SEN - OTHER,STATEMENTED FEES,2103046436,1000081423
04.01.2020,CHILDREN'S SERVICES,FLEET TUTORS,"1,781.00",SEN - OTHER,STATEMENTED FEES,2103046411,1000044820
04.01.2020,CHILDREN'S SERVICES,FLEET TUTORS,"1,711.00",SEN - OTHER,STATEMENTED FEES,2103046417,1000044820
04.01.2020,CHILDREN'S SERVICES,VIBE TEACHER RECRUITMENT LTD,"1,680.00",SEN - OTHER,STATEMENTED FEES,2103046447,1000081423
04.01.2020,CHILDREN'S SERVICES,FLEET TUTORS,"1,606.00",SEN - OTHER,STATEMENTED FEES,2103046413,1000044820
04.01.2020,CHILDREN'S SERVICES,FLEET TUTORS,"1,535.00",SEN - OTHER,STATEMENTED FEES,2103046420,1000044820
04.01.2020,CHILDREN'S SERVICES,CARBONE CLINIC UK LTD,"1,500.00",SEN - OTHER,STATEMENTED FEES,2103046370,1000080937
04.01.2020,CHILDREN'S SERVICES,CARBONE CLINIC UK LTD,"1,500.00",SEN - OTHER,STATEMENTED FEES,2103046378,1000080937
04.01.2020,CHILDREN'S SERVICES,FLEET TUTORS,"1,482.00",SEN - OTHER,STATEMENTED FEES,2103046409,1000044820
04.01.2020,CHILDREN'S SERVICES,FLEET TUTORS,"1,482.00",SEN - OTHER,STATEMENTED FEES,2103046412,1000044820
04.01.2020,CHILDREN'S SERVICES,FLEET TUTORS,"1,482.00",SEN - OTHER,STATEMENTED FEES,2103046418,1000044820
04.01.2020,CHILDREN'S SERVICES,FLEET TUTORS,"1,477.00",SEN - OTHER,STATEMENTED FEES,2103046322,1000044820
04.01.2020,CHILDREN'S SERVICES,FLEET TUTORS,"1,400.00",SEN - OTHER,STATEMENTED FEES,2103046375,1000044820
04.01.2020,CHILDREN'S SERVICES,VIBE TEACHER RECRUITMENT LTD,"1,250.00",SEN - OTHER,STATEMENTED FEES,2103046425,1000081423
04.01.2020,CHILDREN'S SERVICES,VIBE TEACHER RECRUITMENT LTD,"1,250.00",SEN - OTHER,STATEMENTED FEES,2103046428,1000081423
04.01.2020,CHILDREN'S SERVICES,VIBE TEACHER RECRUITMENT LTD,"1,250.00",SEN - OTHER,STATEMENTED FEES,2103046432,1000081423
04.01.2020,CHILDREN'S SERVICES,VIBE TEACHER RECRUITMENT LTD,"1,250.00",SEN - OTHER,STATEMENTED FEES,2103046434,1000081423
04.01.2020,CHILDREN'S SERVICES,VIBE TEACHER RECRUITMENT LTD,"1,250.00",SEN - OTHER,STATEMENTED FEES,2103046438,1000081423
04.01.2020,CHILDREN'S SERVICES,VIBE TEACHER RECRUITMENT LTD,"1,250.00",SEN - OTHER,STATEMENTED FEES,2103046441,1000081423
04.01.2020,CHILDREN'S SERVICES,VIBE TEACHER RECRUITMENT LTD,"1,250.00",SEN - OTHER,STATEMENTED FEES,2103046444,1000081423
04.01.2020,CHILDREN'S SERVICES,VIBE TEACHER RECRUITMENT LTD,"1,250.00",SEN - OTHER,STATEMENTED FEES,2103046446,1000081423
04.01.2020,CHILDREN'S SERVICES,FLEET TUTORS,"1,144.00",SEN - OTHER,STATEMENTED FEES,2103046303,1000044820
04.01.2020,CHILDREN'S SERVICES,MP HABILITATION SERVICES LTD,"1,086.00",SEN - OTHER,STATEMENTED FEES,2103046392,1000082223
04.01.2020,CHILDREN'S SERVICES,FLEET TUTORS,"1,007.00",SEN - OTHER,STATEMENTED FEES,2103046316,1000044820
04.01.2020,CHILDREN'S SERVICES,PULSE HEALTHCARE LTD,"1,001.00",SEN - OTHER,STATEMENTED FEES,2103046337,1000035063
04.01.2020,CHILDREN'S SERVICES,PULSE HEALTHCARE LTD,"1,001.00",SEN - OTHER,STATEMENTED FEES,2103046338,1000035063
04.01.2020,CHILDREN'S SERVICES,REDACTED PERSONAL DATA,"1,000.00",SEN - OTHER,STATEMENTED FEES,REDACTED,REDACTED
04.01.2020,CHILDREN'S SERVICES,FLEET TUTORS,988,SEN - OTHER,STATEMENTED FEES,2103046377,1000044820
04.01.2020,CHILDREN'S SERVICES,FLEET TUTORS,657,SEN - OTHER,STATEMENTED FEES,2103046321,1000044820
04.01.2020,CHILDREN'S SERVICES,FLEET TUTORS,513,SEN - OTHER,STATEMENTED FEES,2103046301,1000044820
04.01.2020,CHILDREN'S SERVICES,FLEET TUTORS,513,SEN - OTHER,STATEMENTED FEES,2103046419,1000044820
04.01.2020,CHILDREN'S SERVICES,ADVANCEMENTS ABA LTD,500,SEN - OTHER,STATEMENTED FEES,2103046373,1000081719
04.01.2020,CHILDREN'S SERVICES,ADVANCEMENTS ABA LTD,500,SEN - OTHER,STATEMENTED FEES,2103046374,1000081719
04.01.2020,CHILDREN'S SERVICES,REDACTED PERSONAL DATA,500,SEN - OTHER,STATEMENTED FEES,REDACTED,REDACTED
04.01.2020,CHILDREN'S SERVICES,FLEET TUTORS,480,SEN - OTHER,STATEMENTED FEES,2103046320,1000044820
04.01.2020,CHILDREN'S SERVICES,ADVANCEMENTS ABA LTD,400,SEN - OTHER,STATEMENTED FEES,2103046260,1000081719
04.01.2020,CHILDREN'S SERVICES,ADVANCEMENTS ABA LTD,400,SEN - OTHER,STATEMENTED FEES,2103046302,1000081719
04.01.2020,CHILDREN'S SERVICES,ADVANCEMENTS ABA LTD,400,SEN - OTHER,STATEMENTED FEES,2103046339,1000081719
04.01.2020,CHILDREN'S SERVICES,CAMBIAN ASPERGER SYNDROME SERVICES,"46,333.33",SEN - OTHER SPECIAL,STATEMENTED FEES,2103046371,1000077659
04.01.2020,CHILDREN'S SERVICES,AMBITIOUS ABOUT AUTISM,"26,446.97",SEN - SPECIAL POST 16,STATEMENTED FEES,2103046394,1000035784
04.01.2020,CHILDREN'S SERVICES,AMBITIOUS ABOUT AUTISM,"25,388.57",SEN - SPECIAL POST 16,STATEMENTED FEES,2103046261,1000035784
04.01.2020,CHILDREN'S SERVICES,AMBITIOUS ABOUT AUTISM,"25,388.57",SEN - SPECIAL POST 16,STATEMENTED FEES,2103046383,1000035784
04.01.2020,CHILDREN'S SERVICES,AMBITIOUS ABOUT AUTISM,"25,388.57",SEN - SPECIAL POST 16,STATEMENTED FEES,2103046384,1000035784
04.01.2020,CHILDREN'S SERVICES,AMBITIOUS ABOUT AUTISM,"25,388.57",SEN - SPECIAL POST 16,STATEMENTED FEES,2103046385,1000035784
04.01.2020,CHILDREN'S SERVICES,AMBITIOUS ABOUT AUTISM,"25,388.57",SEN - SPECIAL POST 16,STATEMENTED FEES,2103046386,1000035784
04.01.2020,CHILDREN'S SERVICES,AMBITIOUS ABOUT AUTISM,"25,388.57",SEN - SPECIAL POST 16,STATEMENTED FEES,2103046387,1000035784
04.01.2020,CHILDREN'S SERVICES,AMBITIOUS ABOUT AUTISM,"25,388.57",SEN - SPECIAL POST 16,STATEMENTED FEES,2103046388,1000035784
04.01.2020,CHILDREN'S SERVICES,AMBITIOUS ABOUT AUTISM,"25,388.57",SEN - SPECIAL POST 16,STATEMENTED FEES,2103046389,1000035784
04.01.2020,CHILDREN'S SERVICES,AMBITIOUS ABOUT AUTISM,"25,388.57",SEN - SPECIAL POST 16,STATEMENTED FEES,2103046390,1000035784
04.01.2020,CHILDREN'S SERVICES,AMBITIOUS ABOUT AUTISM,"25,388.57",SEN - SPECIAL POST 16,STATEMENTED FEES,2103046393,1000035784
04.01.2020,CHILDREN'S SERVICES,AMBITIOUS ABOUT AUTISM,"18,960.15",SEN - SPECIAL POST 16,STATEMENTED FEES,2103046382,1000035784
04.01.2020,CHILDREN'S SERVICES,AMBITIOUS ABOUT AUTISM,"18,960.15",SEN - SPECIAL POST 16,STATEMENTED FEES,2103046391,1000035784
04.01.2020,CHILDREN'S SERVICES,AMBITIOUS ABOUT AUTISM,"10,439.01",SEN - SPECIAL POST 16,STATEMENTED FEES,2103046395,1000035784
04.01.2020,CHILDREN'S SERVICES,AMBITIOUS ABOUT AUTISM,"10,439.01",SEN - SPECIAL POST 16,STATEMENTED FEES,2103046397,1000035784
04.01.2020,CHILDREN'S SERVICES,AMBITIOUS ABOUT AUTISM,"-12,384.67",SEN - SPECIAL POST 16,STATEMENTED FEES,2103046468,1000035784
04.01.2020,CHILDREN'S SERVICES,YOUNG FUTURES,"3,277.01",UASC CARE LEAVERS,EXTERNAL AGENCIES AND BODIES,2103046150,1000059563
04.01.2020,CHILDREN'S SERVICES,YOUNG FUTURES,"2,214.33",UASC CARE LEAVERS,EXTERNAL AGENCIES AND BODIES,2103046152,1000059563
04.01.2020,CHILDREN'S SERVICES,YOUNG LONDON TODAY,639.49,UASC CARE LEAVERS,EXTERNAL AGENCIES AND BODIES,2103046144,1000071232
04.01.2020,CHILDREN'S SERVICES,YOUNG FUTURES,-903.34,UASC CARE LEAVERS,EXTERNAL AGENCIES AND BODIES,2103046153,1000059563
04.01.2020,CHILDREN'S SERVICES,REDACTED PERSONAL DATA,500,UASC FURTHER EDUCATION SUPPORT,OTHER PAYMENTS FOR CLIENTS,REDACTED,REDACTED
04.01.2020,CHILDREN'S SERVICES,REDACTED PERSONAL DATA,400,UASC FURTHER EDUCATION SUPPORT,OTHER PAYMENTS FOR CLIENTS,REDACTED,REDACTED
04.01.2020,CHILDREN'S SERVICES,REDACTED PERSONAL DATA,300,UASC FURTHER EDUCATION SUPPORT,CLIENT TRANSPORT,REDACTED,REDACTED
04.01.2020,COMMISSIONING & CENTRAL,HASCA LTD,"1,300.00",COMMISSIONING TEAM,EXTERNAL AGENCIES AND BODIES,5902396237,1000053056
04.01.2020,COMMUNITIES,SOUTHWARK GROUP OF TENANTS ORGANISATION,"57,115.93",TENANTS FUND,EXTERNAL AGENCIES AND BODIES,5902396301,1479419
04.01.2020,COMMUNITIES,WILLIAM BOOTH COLLEGE,"3,306.67",TENANTS FUND,MARKETING & PUBLICITY SERVICES,5902396342,1000037085
04.01.2020,COMMUNITIES,WILLIAM BOOTH COLLEGE,"2,500.00",TENANTS FUND,MARKETING & PUBLICITY SERVICES,5902396342,1000037085
04.01.2020,COMMUNITIES PROJECTS,THAMES HOMECARE SERVICE LTD,"1,315.65",NO RECOURSE TO PUBLIC FUNDS,HOMECARE - C&V,2103046233,1000079295
04.01.2020,COMMUNITIES PROJECTS,THAMES HOMECARE SERVICE LTD,250.6,NO RECOURSE TO PUBLIC FUNDS,HOMECARE - C&V,2103046210,1000079295
04.01.2020,COMMUNITIES PROJECTS,PENIFICENT LTD,"7,390.00",SOUTHWARK ANTI VIOLENCE UNIT,GRANTS,5902396300,1000083124
04.01.2020,CUSTOMER EXPERIENCE HGF,CIVICA UK LTD,"1,165.00",CORONER'S,PROFESSIONAL FEES,5902396272,1730625
04.01.2020,CUSTOMER EXPERIENCE HGF,SOUTH LONDON ESTATE LTD,"2,425.80",HOMELESS PROJECTS,GRANTS,5902396188,1000046096
04.01.2020,CUSTOMER EXPERIENCE HGF,REACH-OUT HOUSING LTD,"2,366.16",HOMELESS PROJECTS,GRANTS,5902396245,1000071129
04.01.2020,CUSTOMER EXPERIENCE HGF,SPEEDMOVE PROPERTY SERVICES,"1,150.00",HOMELESS PROJECTS,GRANTS,5902395813,1000082392
04.01.2020,CUSTOMER EXPERIENCE HGF,LET- BUY- INVEST PROPERTIES LTD,339.72,HOMELESS PROJECTS,GRANTS,5902395732,1000083731
04.01.2020,CUSTOMER EXPERIENCE HGF,LET- BUY- INVEST PROPERTIES LTD,339.72,HOMELESS PROJECTS,GRANTS,5902395732,1000083731
04.01.2020,CUSTOMER EXPERIENCE HGF,SECURENT LTD,"14,398.20",NIGHTLY TA (NSC),EXTERNAL AGENCIES AND BODIES,5902396273,1000079400
04.01.2020,CUSTOMER EXPERIENCE HGF,IDEAL QUARTERS LTD,"89,019.41",PSL PLACEMENTS,EXTERNAL AGENCIES AND BODIES,5902396350,1000079241
04.01.2020,CUSTOMER EXPERIENCE HGF,IDEAL QUARTERS LTD,-500,PSL PLACEMENTS,EXTERNAL AGENCIES AND BODIES,5902396354,1000079241
04.01.2020,CUSTOMER EXPERIENCE HGF,IDEAL QUARTERS LTD,-500,PSL PLACEMENTS,EXTERNAL AGENCIES AND BODIES,5902396355,1000079241
04.01.2020,CUSTOMER EXPERIENCE HGF,IDEAL QUARTERS LTD,"-3,123.67",PSL PLACEMENTS,EXTERNAL AGENCIES AND BODIES,5902396353,1000079241
04.01.2020,DEPT DORMANT AND DEAD CODES,P D CONSTRUCTION LTD,"1,650.00",PLAY CENTRAL,BUILDING R&M,5902396255,1000000390
04.01.2020,DEPT DORMANT AND DEAD CODES,P D CONSTRUCTION LTD,620,PLAY CENTRAL,EQUIPMENT PURCHASE & REPAIR,5902396249,1000000390
04.01.2020,DEPT DORMANT AND DEAD CODES,P D CONSTRUCTION LTD,490,PLAY CENTRAL,BUILDING R&M,5902396257,1000000390
04.01.2020,ENVIRONMENT AND LEISURE,STREET TREE CARE LTD,"2,440.00",CAPITAL PS (LEISURE),CONSTRUCTION FEES  - EXTERNAL,5902396240,1000055901
04.01.2020,ENVIRONMENT DIRECTORATE,LOOKERS LEASING LTD,688.8,CAR LEASING CTRL A/C,VEHICLE LEASING CHARGES,5902396325,1000079286
04.01.2020,ENVIRONMENT DIRECTORATE,LOOKERS LEASING LTD,678.92,CAR LEASING CTRL A/C,VEHICLE LEASING CHARGES,5902396325,1000079286
04.01.2020,ENVIRONMENT DIRECTORATE,E. H. ROBERTS - PENET GROUP LTD,"1,575.00",COMMERCIAL VEH CTRL A/C,HIRED VEHICLES,5902396338,1000082787
04.01.2020,ENVIRONMENT DIRECTORATE,ACCESS HIRE NATIONWIDE LTD,"1,505.71",COMMERCIAL VEH CTRL A/C,HIRED VEHICLES,5902396359,1000048527
04.01.2020,ENVIRONMENT DIRECTORATE,ACCESS HIRE NATIONWIDE LTD,"1,505.71",COMMERCIAL VEH CTRL A/C,HIRED VEHICLES,5902396361,1000048527
04.01.2020,ENVIRONMENT DIRECTORATE,TIPPERHIRE LTD,"1,100.00",COMMERCIAL VEH CTRL A/C,HIRED VEHICLES,5902396319,1000055357
04.01.2020,ENVIRONMENT DIRECTORATE,TIPPERHIRE LTD,"1,100.00",COMMERCIAL VEH CTRL A/C,HIRED VEHICLES,5902396321,1000055357
04.01.2020,ENVIRONMENT DIRECTORATE,TIPPERHIRE LTD,"1,100.00",COMMERCIAL VEH CTRL A/C,HIRED VEHICLES,5902396322,1000055357
04.01.2020,ENVIRONMENT DIRECTORATE,E. H. ROBERTS - PENET GROUP LTD,945,COMMERCIAL VEH CTRL A/C,HIRED VEHICLES,5902396339,1000082787
04.01.2020,ENVIRONMENT DIRECTORATE,E. H. ROBERTS - PENET GROUP LTD,945,COMMERCIAL VEH CTRL A/C,HIRED VEHICLES,5902396340,1000082787
04.01.2020,ENVIRONMENT DIRECTORATE,E. H. ROBERTS - PENET GROUP LTD,462,COMMERCIAL VEH CTRL A/C,HIRED VEHICLES,5902396336,1000082787
04.01.2020,ENVIRONMENT DIRECTORATE,CLOSE BROTHERS VEHICLE HIRE LTD,302.4,COMMERCIAL VEH CTRL A/C,HIRED VEHICLES,5902396362,1000074394
04.01.2020,ENVIRONMENT DIRECTORATE,E. H. ROBERTS - PENET GROUP LTD,266,COMMERCIAL VEH CTRL A/C,HIRED VEHICLES,5902396337,1000082787
04.01.2020,ENVIRONMENT DIRECTORATE,DAWSONGROUP VANS LTD,250.5,COMMERCIAL VEH CTRL A/C,HIRED VEHICLES,5902396311,1000082230
04.01.2020,ENVIRONMENT DIRECTORATE,GREENHAM TRADING LTD,"4,277.12",ESTATE CLEANING-GENERAL,MATERIALS,5902396292,1000006610
04.01.2020,ENVIRONMENT DIRECTORATE,IMPERIAL JANITORIAL SUPPLIES LTD,754.22,ESTATE CLEANING-GENERAL,MATERIALS,5902396352,1000038126
04.01.2020,ENVIRONMENT DIRECTORATE,TRILO (UK) T/A THE GRASS GROUP,"3,540.00",MANAGEMENT TEAM,MATERIALS,5902396282,1000067481
04.01.2020,ENVIRONMENT DIRECTORATE,KENT COUNTY COUNCIL - LASER,590.48,SANDGATE STREET,ELECTRICITY,5902396363,1000012926
04.01.2020,HOUSING GENERAL FUND,C & C BUILDERS LTD,"7,371.83",CAPITAL PS (HOUSING GF),CAPITAL GRANTS,5902396289,1000079100
04.01.2020,HOUSING GENERAL FUND,FREEWAY LIFT SERVICES LTD,"5,035.00",CAPITAL PS (HOUSING GF),CAPITAL GRANTS,5902396334,1363482
04.01.2020,HOUSING HRA,CALFORD SEADEN LLP,"20,955.69",CAPITAL PS (HRA),CONSTRUCTION FEES  - EXTERNAL,5902396243,1061592
04.01.2020,HOUSING HRA,CALFORD SEADEN LLP,"10,498.65",CAPITAL PS (HRA),CONSTRUCTION FEES  - EXTERNAL,5902396241,1061592
04.01.2020,HOUSING HRA,ROBINSON LOW FRANCIS LLP,"6,411.99",CAPITAL PS (HRA),CONSTRUCTION FEES  - EXTERNAL,5902396335,1000025405
04.01.2020,HOUSING HRA,JOH DESIGN,"4,222.50",CAPITAL PS (HRA),CONSTRUCTION FEES,5902396360,1000082540
04.01.2020,HOUSING HRA,FARRER HUXLEY ASSOCIATES,"3,300.00",CAPITAL PS (HRA),CONSTRUCTION FEES  - EXTERNAL,5902396242,1000052362
04.01.2020,HOUSING HRA,TRENTON FIRE LTD,"2,450.00",CAPITAL PS (HRA),CONSTRUCTION FEES  - EXTERNAL,5902396351,1000082619
04.01.2020,HOUSING HRA,PROJECT CENTRE LTD,"1,745.00",CAPITAL PS (HRA),CONSTRUCTION MAIN CONTRACT -CERTIFICATED,5902396315,1000072621
04.01.2020,HOUSING HRA,CALFORD SEADEN LLP,"1,075.00",CAPITAL PS (HRA),CONSTRUCTION FEES  - EXTERNAL,5902396358,1061592
04.01.2020,HOUSING HRA,MINT STRUCTURES LTD,"1,008.80",CAPITAL PS (HRA),CONSTRUCTION FEES  - EXTERNAL,5902394427,1000083714
04.01.2020,HOUSING HRA,PROJECT CENTRE LTD,800,CAPITAL PS (HRA),CONSTRUCTION MAIN CONTRACT -CERTIFICATED,5902396314,1000072621
04.01.2020,LAW & DEMOCRACY,UNWIN AND FRIARY T&RA,850,MEMBERS EXPENSES,HIRE OF ROOMS/HALLS,5902395307,11310619
04.01.2020,LEISURE DIRECTORATE,KENT COUNTY COUNCIL - LASER,"1,361.60",CAMBERWELL LIBRARY,ELECTRICITY,5902396261,1000012926
04.01.2020,LEISURE DIRECTORATE,EDF ENERGY PLC,730.72,CEMETERIES,ELECTRICITY,5902396291,1008746
04.01.2020,LEISURE DIRECTORATE,FACULTATIEVE TECHNOLOGIES LTD,"10,638.24",CREMATORIUM,PLANNED MAINTENANCE,5902396293,1000077525
04.01.2020,LEISURE DIRECTORATE,WESTMINSTER WASTE,"1,448.00",CREMATORIUM,OTHER CONTRACTORS,5902396299,1000080933
04.01.2020,LEISURE DIRECTORATE,LEE SNASHFOLD CREMETORIA MANAGEMENT,"1,122.90",CREMATORIUM,PROFESSIONAL FEES,5902396294,1000077845
04.01.2020,LEISURE DIRECTORATE,VIVEDIA LIMITED,"1,116.65",CREMATORIUM,SUBSCRIPTIONS,5902396320,1000064867
04.01.2020,LEISURE DIRECTORATE,TELESHORE UK LTD,684.5,CREMATORIUM,MATERIALS,5902396345,1000075290
04.01.2020,MODERNISATION HGF,PITNEY BOWES LTD,311,160 TOOLEY ST.,POSTAGES,5902396236,1000016780
04.01.2020,MODERNISATION HGF,HAPPY COMPUTERS LTD,"1,950.00",CORPORATE TRAINING BUDGETS,TRAINING,5902396298,11008543
04.01.2020,RESIDENT SERVICES,EDF ENERGY PLC,333.69,OPERATIONS/OFFICES ACCOMMODATION,ELECTRICITY,5902396278,1008746
04.01.2020,RESIDENT SERVICES,KENT COUNTY COUNCIL - LASER,849.66,SUPPORTED HOSTELS,GAS,5902396262,1000012926
04.01.2020,RESIDENT SERVICES,KENT COUNTY COUNCIL - LASER,792.29,SUPPORTED HOSTELS,GAS,5902396268,1000012926
04.01.2020,RESIDENT SERVICES,KENT COUNTY COUNCIL - LASER,660.42,SUPPORTED HOSTELS,GAS,5902396259,1000012926
04.01.2020,RESIDENT SERVICES,SYNTONIC CONSTRUCTION LTD,604.95,SUPPORTED HOSTELS,BUILDING R&M,5902396341,1000023918
04.01.2020,RESIDENT SERVICES,KENT COUNTY COUNCIL - LASER,359.23,SUPPORTED HOSTELS,GAS,5902396256,1000012926
04.01.2020,RESIDENT SERVICES,NPOWER,958.07,TA HOSTELS,ELECTRICITY,5902396264,1000064203
04.01.2020,RESIDENT SERVICES,KENT COUNTY COUNCIL - LASER,868.47,TA HOSTELS,ELECTRICITY,5902396253,1000012926
04.01.2020,RESIDENT SERVICES,KENT COUNTY COUNCIL - LASER,641.63,TA HOSTELS,ELECTRICITY,5902396247,1000012926
04.01.2020,RESIDENT SERVICES,KENT COUNTY COUNCIL - LASER,545.97,TA HOSTELS,ELECTRICITY,5902396251,1000012926
04.01.2020,RESIDENT SERVICES,KENT COUNTY COUNCIL - LASER,494.33,TA HOSTELS,ELECTRICITY,5902396252,1000012926
04.01.2020,RESIDENT SERVICES,KENT COUNTY COUNCIL - LASER,266.95,TA HOSTELS,ELECTRICITY,5902396254,1000012926
04.01.2020,RESIDENT SERVICES,EDEN ESTATES LONDON LTD,"3,690.00",TA PLACEMENTS,EXTERNAL AGENCIES AND BODIES,5902396238,1000061217
04.01.2020,RESIDENT SERVICES HGF,CALFORD SEADEN LLP,"9,658.80",SPRINGTIDE CLOSE,PROFESSIONAL FEES,5902396269,1061592
06.01.2020,CHILDREN'S SERVICES,AV OUTCOMES LTD,"3,050.00",MANAGEMENT INFORMATION UNIT,PROFESSIONAL FEES,5902396364,1000054641
06.01.2020,HOUSING HRA,KENT COUNTY COUNCIL - LASER,"35,202.69",RESIDENT SERVICES BUSINESS SUPPORT,ELECTRICITY,6101919045,DIRECT DEBIT PAYMENT
06.01.2020,HOUSING HRA,NPOWER,"1,569.64",RESIDENT SERVICES BUSINESS SUPPORT,ELECTRICITY,6101919047,DIRECT DEBIT PAYMENT
06.01.2020,HOUSING HRA,NPOWER,512.96,RESIDENT SERVICES BUSINESS SUPPORT,ELECTRICITY,6101919046,DIRECT DEBIT PAYMENT
07.01.2020,ADULT SOCIAL CARE,REDACTED PERSONAL DATA,400,APPOINTEESHIPS,OTHER PAYMENTS FOR CLIENTS,REDACTED,REDACTED
07.01.2020,ADULT SOCIAL CARE,REDACTED PERSONAL DATA,388.6,APPOINTEESHIPS,OTHER PAYMENTS FOR CLIENTS,REDACTED,REDACTED
07.01.2020,ADULT SOCIAL CARE,HEALTH ADVOCACY UK LTD,740,CHC ADVOCACY- LD,ADVOCACY,5902396448,1000082156
07.01.2020,ADULT SOCIAL CARE,HEALTH ADVOCACY UK LTD,650,CHC ADVOCACY- LD,ADVOCACY,5902396460,1000082156
07.01.2020,ADULT SOCIAL CARE,POHWER,"9,763.76",INDEPENDENT MC ADVOCACY,ADVOCACY,5902396438,1000070508
07.01.2020,ADULT SOCIAL CARE,BRISEN COMPANY LTD,"9,271.10",LD LTS 18-64,SUPPORTED LIVING,2103046475,1000083000
07.01.2020,ADULT SOCIAL CARE,BRISEN COMPANY LTD,"8,234.48",LD LTS 18-64,SUPPORTED LIVING,2103046492,1000083000
07.01.2020,ADULT SOCIAL CARE,BRISEN COMPANY LTD,821.1,LD LTS 18-64,SUPPORTED LIVING,2103046493,1000083000
07.01.2020,ADULT SOCIAL CARE,REDACTED PERSONAL DATA,604.5,LD LTS 18-64,SUPPORTED LIVING,REDACTED,REDACTED
07.01.2020,ADULT SOCIAL CARE,REDACTED PERSONAL DATA,604.5,LD LTS 18-64,SUPPORTED LIVING,REDACTED,REDACTED
07.01.2020,ADULT SOCIAL CARE,REDACTED PERSONAL DATA,422.75,LD LTS 18-64,SUPPORTED LIVING,REDACTED,REDACTED
07.01.2020,ADULT SOCIAL CARE,CARE DIRECT UK LTD,347.51,LD LTS 18-64,SUPPORTED LIVING,2103046495,1000066322
07.01.2020,ADULT SOCIAL CARE,CARE DIRECT UK LTD,347.51,LD LTS 18-64,SUPPORTED LIVING,2103046505,1000066322
07.01.2020,ADULT SOCIAL CARE,SWEETTREE HOME CARE SERVICES LTD,344.8,LD LTS 18-64,SUPPORTED LIVING,2103046508,1000058171
07.01.2020,ADULT SOCIAL CARE,BUDDI LTD,420,MEM LTS 65+,EQUIPMENT PURCHASE & REPAIR,2103046511,1000067243
07.01.2020,ADULT SOCIAL CARE,BUDDI LTD,420,MEM LTS 65+,EQUIPMENT PURCHASE & REPAIR,2103046512,1000067243
07.01.2020,ADULT SOCIAL CARE,ANDREW RELIABLE REMOVAL,450,MH LTS 18-64,REMOVAL EXPENSES,5902396468,1000071141
07.01.2020,ADULT SOCIAL CARE,METROPOLITAN SUPPORT TRUST,"21,825.17",OLDER PEOPLES HUBS,EXTERNAL AGENCIES AND BODIES,5902396442,1000047547
07.01.2020,ADULT SOCIAL CARE,NPOWER LTD,"2,000.00",ORIENT ST � RESPITE,ELECTRICITY,5902396478,1000078994
07.01.2020,ADULT SOCIAL CARE,PROFAD CARE AGENCY,"2,808.60",PHY LTS 18-64,HOMECARE - SPOT,2103046483,1000079032
07.01.2020,ADULT SOCIAL CARE,REDACTED PERSONAL DATA,791.84,PHY LTS 18-64,PAYMENTS TO CLIENTS (DIRECT PAYMENTS),REDACTED,REDACTED
07.01.2020,ADULT SOCIAL CARE,PROFAD CARE AGENCY,739.35,PHY LTS 18-64,HOMECARE - SPOT,2103046499,1000079032
07.01.2020,ADULT SOCIAL CARE,BUDDI LTD,430,PHY LTS 18-64,EQUIPMENT PURCHASE & REPAIR,2103046510,1000067243
07.01.2020,ADULT SOCIAL CARE,REDACTED PERSONAL DATA,"1,837.77",PHY LTS 65+,PAYMENTS TO CLIENTS (DIRECT PAYMENTS),REDACTED,REDACTED
07.01.2020,ADULT SOCIAL CARE,CARE DIRECT UK LTD,559.13,PHY LTS 65+,HOMECARE - SPOT,2103046487,1000066322
07.01.2020,ADULT SOCIAL CARE,CARE DIRECT UK LTD,559.13,PHY LTS 65+,HOMECARE - SPOT,2103046501,1000066322
07.01.2020,ADULT SOCIAL CARE,CARE DIRECT UK LTD,505.88,PHY LTS 65+,HOMECARE - SPOT,2103046497,1000066322
07.01.2020,ADULT SOCIAL CARE,CARE DIRECT UK LTD,505.88,PHY LTS 65+,HOMECARE - SPOT,2103046498,1000066322
07.01.2020,ADULT SOCIAL CARE,CARE DIRECT UK LTD,497,PHY LTS 65+,HOMECARE - SPOT,2103046481,1000066322
07.01.2020,ADULT SOCIAL CARE,CARE DIRECT UK LTD,497,PHY LTS 65+,HOMECARE - SPOT,2103046504,1000066322
07.01.2020,ADULT SOCIAL CARE,PROFAD CARE AGENCY,427.8,PHY LTS 65+,HOMECARE - SPOT,2103046503,1000079032
07.01.2020,ADULT SOCIAL CARE,CAREMARK LTD,541.65,SOCIAL ISOLATION,HOMECARE - SPOT,2103046494,1000081358
07.01.2020,ASSET MANAGEMENT,ANTONY HODARI  SOLICITORS,"6,375.00",DISREPAIR,PAYMENTS FOR LEGAL SERVICES,2103046532,1000031040
07.01.2020,ASSET MANAGEMENT,ANTONY HODARI  SOLICITORS,"1,750.00",DISREPAIR,PAYMENTS FOR LEGAL SERVICES,2103046531,1000031040
07.01.2020,ASSET MANAGEMENT,HIGH STREET SOLICITORS LTD,260,DISREPAIR,PAYMENTS FOR LEGAL SERVICES,2103046530,1000083576
07.01.2020,CENTRAL FUNCTIONS,NPOWER LTD,619.63,HEATING ACCOUNT,ELECTRICITY,5902395852,1000078994
07.01.2020,CHIEF EXECUTIVE,ORU SPACE LTD,"75,000.00",CAPITAL PS (REGEN),CONSTRUCTION FEES  - EXTERNAL,5902396521,1000083105
07.01.2020,CHIEF EXECUTIVE,HAYATSU ARCHITECTS LTD,"14,500.00",CAPITAL PS (REGEN),CONSTRUCTION FEES,5902396446,1000082843
07.01.2020,CHIEF EXECUTIVE,JOMAS ASSOCIATES LTD,"12,225.00",CAPITAL PS (REGEN),CONSTRUCTION FEES,5902396384,1000077413
07.01.2020,CHIEF EXECUTIVE,JOMAS ASSOCIATES LTD,"2,995.00",CAPITAL PS (REGEN),CONSTRUCTION FEES,5902396384,1000077413
07.01.2020,CHIEF EXECUTIVE,JOMAS ASSOCIATES LTD,"2,495.00",CAPITAL PS (REGEN),CONSTRUCTION FEES,5902396384,1000077413
07.01.2020,CHIEF EXECUTIVE,JOMAS ASSOCIATES LTD,"1,995.00",CAPITAL PS (REGEN),CONSTRUCTION FEES,5902396384,1000077413
07.01.2020,CHIEF EXECUTIVE,JOMAS ASSOCIATES LTD,"1,950.00",CAPITAL PS (REGEN),CONSTRUCTION FEES,5902396384,1000077413
07.01.2020,CHIEF EXECUTIVE,JOMAS ASSOCIATES LTD,"1,495.00",CAPITAL PS (REGEN),CONSTRUCTION FEES,5902396384,1000077413
07.01.2020,CHIEF EXECUTIVE,JOMAS ASSOCIATES LTD,"1,295.00",CAPITAL PS (REGEN),CONSTRUCTION FEES,5902396384,1000077413
07.01.2020,CHIEF EXECUTIVE,JOMAS ASSOCIATES LTD,545,CAPITAL PS (REGEN),CONSTRUCTION FEES,5902396384,1000077413
07.01.2020,CUSTOMER EXPERIENCE,CORAM VOICE,826.24,COMPLAINTS,EXTERNAL AGENCIES AND BODIES,5902396418,1000076392
07.01.2020,CUSTOMER EXPERIENCE HGF,ACCESS INDEPENDENT LTD,"1,926.25",BLUE BADGES,PROFESSIONAL FEES,5902396377,1000059141
07.01.2020,CUSTOMER EXPERIENCE HGF,ACCESS INDEPENDENT LTD,756,BLUE BADGES,PROFESSIONAL FEES,5902396378,1000059141
07.01.2020,CUSTOMER EXPERIENCE HGF,CEDAR HOUSING SOLUTIONS LTD,"2,000.00",HOMELESS PROJECTS,GRANTS,5902396416,1000080014
07.01.2020,CUSTOMER EXPERIENCE HGF,NORBURY PROPERTY SERVICES (LONDON) LTD,"47,678.00",NIGHTLY TA (NSC),EXTERNAL AGENCIES AND BODIES,5902396388,1000075566
07.01.2020,CUSTOMER EXPERIENCE HGF,APEX HOUSING SOLUTIONS LTD,"43,556.90",NIGHTLY TA (NSC),EXTERNAL AGENCIES AND BODIES,5902396495,1000079786
07.01.2020,CUSTOMER EXPERIENCE HGF,SOUTH OF THE RIVER INVESTMENTS LTD,"13,430.60",NIGHTLY TA (NSC),EXTERNAL AGENCIES AND BODIES,5902396489,1000073638
07.01.2020,CUSTOMER EXPERIENCE HGF,CROWN HOUSING LTD,"12,152.00",NIGHTLY TA (NSC),EXTERNAL AGENCIES AND BODIES,5902396501,1000075070
07.01.2020,CUSTOMER EXPERIENCE HGF,REDACTED PERSONAL DATA,"8,036.00",NIGHTLY TA (NSC),EXTERNAL AGENCIES AND BODIES,REDACTED,REDACTED
07.01.2020,CUSTOMER EXPERIENCE HGF,NORBURY PROPERTY SERVICES (LONDON) LTD,712,NIGHTLY TA (NSC),EXTERNAL AGENCIES AND BODIES,5902396419,1000075566
07.01.2020,ENVIRONMENT AND LEISURE,ADAPTAINER LTD,260,CAPITAL PS (LEISURE),CONST'N MAIN CONTRACT - NON CERTIFICATED,5902396373,1000074474
07.01.2020,ENVIRONMENT DIRECTORATE,SHELL UK OIL PRODUCTS LTD,"1,998.39",COMMERCIAL VEH CTRL A/C,VEHICLE FUEL,5902396437,1000081254
07.01.2020,ENVIRONMENT DIRECTORATE,LONDON HIRE LIMITED,"1,280.00",COMMERCIAL VEH CTRL A/C,HIRED VEHICLES,5902396398,1383812
07.01.2020,ENVIRONMENT DIRECTORATE,SHELL UK OIL PRODUCTS LTD,"1,227.44",COMMERCIAL VEH CTRL A/C,VEHICLE FUEL,5902396436,1000081254
07.01.2020,ENVIRONMENT DIRECTORATE,LONDON HIRE LIMITED,859.34,COMMERCIAL VEH CTRL A/C,HIRED VEHICLES,5902396403,1383812
07.01.2020,ENVIRONMENT DIRECTORATE,LONDON HIRE LIMITED,854.01,COMMERCIAL VEH CTRL A/C,HIRED VEHICLES,5902396397,1383812
07.01.2020,ENVIRONMENT DIRECTORATE,SHELL UK OIL PRODUCTS LTD,815.98,COMMERCIAL VEH CTRL A/C,VEHICLE FUEL,5902396427,1000081254
07.01.2020,ENVIRONMENT DIRECTORATE,LONDON HIRE LIMITED,675,COMMERCIAL VEH CTRL A/C,HIRED VEHICLES,5902396404,1383812
07.01.2020,ENVIRONMENT DIRECTORATE,SHELL UK OIL PRODUCTS LTD,592.55,COMMERCIAL VEH CTRL A/C,VEHICLE FUEL,5902396439,1000081254
07.01.2020,ENVIRONMENT DIRECTORATE,SHELL UK OIL PRODUCTS LTD,580.5,COMMERCIAL VEH CTRL A/C,VEHICLE FUEL,5902396458,1000081254
07.01.2020,ENVIRONMENT DIRECTORATE,SHELL UK OIL PRODUCTS LTD,430.3,COMMERCIAL VEH CTRL A/C,VEHICLE FUEL,5902396444,1000081254
07.01.2020,ENVIRONMENT DIRECTORATE,LONDON HIRE LIMITED,310,COMMERCIAL VEH CTRL A/C,HIRED VEHICLES,5902396399,1383812
07.01.2020,ENVIRONMENT DIRECTORATE,SHELL UK OIL PRODUCTS LTD,306.91,COMMERCIAL VEH CTRL A/C,VEHICLE FUEL,5902396440,1000081254
07.01.2020,ENVIRONMENT DIRECTORATE,LONDON HIRE LIMITED,290,COMMERCIAL VEH CTRL A/C,HIRED VEHICLES,5902396396,1383812
07.01.2020,ENVIRONMENT DIRECTORATE,LONDON HIRE T/A R J MOTORS,443.09,FLEET INSURANCE WORKS,TRANSPORT INSURANCE COSTS,5902396523,1000047106
07.01.2020,ENVIRONMENT DIRECTORATE,LONDON HIRE T/A R J MOTORS,422.62,FLEET INSURANCE WORKS,TRANSPORT INSURANCE COSTS,5902396526,1000047106
07.01.2020,ENVIRONMENT DIRECTORATE,KYBOCORP LTD,"6,950.00",PEST CONTROL-CDN A/C,SOFTWARE,5902396417,1000074513
07.01.2020,ENVIRONMENT DIRECTORATE,MSJ DRAIN CLEARANCE LTD,"8,644.98",SBS - HOLDING ACCOUNT,OTHER CONTRACTORS,2103046533,3000002124
07.01.2020,ENVIRONMENT DIRECTORATE,NPOWER LTD,"-1,038.87",STREET TRADING A/C,ELECTRICITY,5902395815,1000078994
07.01.2020,FINANCIAL AND INFORMATION GOVERNANCE,ALARM THE PUBLIC RISK MANAGEMENT ASSOCIATION,"1,008.00",RISK ADMIN,SUBSCRIPTIONS,5902396483,11160119
07.01.2020,HOUSING HRA,OVE ARUP & PARTNERS LTD,"30,988.50",CAPITAL PS (HRA),CONSTRUCTION MAIN CONTRACT,5902396385,1000066606
07.01.2020,HOUSING HRA,CALFORD SEADEN LLP,"11,293.00",CAPITAL PS (HRA),CONSTRUCTION FEES  - EXTERNAL,5902396382,1061592
07.01.2020,HOUSING HRA,PHILIP PANK PARTNERSHIP,"10,515.91",CAPITAL PS (HRA),CONSTRUCTION FEES  - EXTERNAL,5902396502,1015501
07.01.2020,HOUSING HRA,ENGIE REGENERATION (APOLLO) LTD,"4,818.44",CAPITAL PS (HRA),CONSTRUCTION MAIN CONTRACT -CERTIFICATED,2103046535,4000449
07.01.2020,HOUSING HRA,ENGIE REGENERATION (APOLLO) LTD,"1,962.74",CAPITAL PS (HRA),CONSTRUCTION MAIN CONTRACT -CERTIFICATED,2103046534,4000449
07.01.2020,HOUSING HRA,CALFORD SEADEN LLP,"1,205.40",CAPITAL PS (HRA),CONSTRUCTION FEES  - EXTERNAL,5902396381,1061592
07.01.2020,HSG&MOD,SOUTHWARK CITIZENS ADVICE,"101,550.00",LEGAL GRANTS,EXTERNAL AGENCIES AND BODIES,5902396457,1874379
07.01.2020,HSG&MOD,SOUTHWARK LAW CENTRE,"92,400.00",LEGAL GRANTS,EXTERNAL AGENCIES AND BODIES,5902396491,1981325
07.01.2020,LEISURE DIRECTORATE,NPOWER LTD,430.31,CEMETERIES,ELECTRICITY,5902396394,1000078994
07.01.2020,LEISURE DIRECTORATE,ASKEWS & HOLTS LIBRARY SERVICES LTD,"1,736.49",STOCK SERVICES,BOOKS & PUBLICATIONS,5902396414,1494168
07.01.2020,MODERNISATION HGF,RCA BUSINESS PSYCHOLOGISTS LTD,"3,150.00",OCCUPATIONAL ASSESSMENT,CONSULTANTS SERVICES,5902396369,1000080957
07.01.2020,NEW BUILD,BEACON PARTNERSHIP LLP,"4,165.00",DEVELOPMENT DELIVERY,PROFESSIONAL FEES,5902396366,1000082300
07.01.2020,REGENERATION,PELLINGS LLP,"10,629.00",BLACKFRIARS ROAD PROJECT,PROFESSIONAL FEES,5902396527,1009262
07.01.2020,RESIDENT SERVICES,MADEIRA FLOWER LTD T/A MARIAS KITCHEN,626.25,OPERATIONS/OFFICES ACCOMMODATION,CATERING MATERIALS & SUPPLIES,5902396510,1000058840
07.01.2020,RESIDENT SERVICES,KENT COUNTY COUNCIL - LASER,473.46,TA HOSTELS,ELECTRICITY,5902396367,1000012926
08.01.2020,ADULT SOCIAL CARE,GET ASSIGNED LTD,"32,860.00",DISABILITIES LAC,RESIDENTIAL CARE,5902396753,1000081697
08.01.2020,ADULT SOCIAL CARE,GET ASSIGNED LTD,"32,860.00",DISABILITIES LAC,RESIDENTIAL CARE,5902396756,1000081697
08.01.2020,ADULT SOCIAL CARE,GET ASSIGNED LTD,"31,900.00",DISABILITIES LAC,RESIDENTIAL CARE,5902396754,1000081697
08.01.2020,ADULT SOCIAL CARE,CREATING CARE CHOICES LTD,"17,400.00",DISABILITIES LAC,EXTERNAL AGENCIES AND BODIES,2103047117,1000076738
08.01.2020,ADULT SOCIAL CARE,FOOTSTEPS CARE LTD,"15,726.96",DISABILITIES LAC,RESIDENTIAL CARE,2103047107,1000045464
08.01.2020,ADULT SOCIAL CARE,THE BEECHES UK LTD,"10,376.14",DISABILITIES LAC,RESIDENTIAL CARE,2103047118,1000083173
08.01.2020,ADULT SOCIAL CARE,THE BEECHES UK LTD,"10,041.43",DISABILITIES LAC,RESIDENTIAL CARE,2103047093,1000083173
08.01.2020,ADULT SOCIAL CARE,ALL4U FOSTERING LTD,"6,443.04",DISABILITIES LAC,EXTERNAL AGENCIES AND BODIES,2103047171,1000080663
08.01.2020,ADULT SOCIAL CARE,BY THE BRIDGE LTD,"6,231.00",DISABILITIES LAC,EXTERNAL AGENCIES AND BODIES,2103047189,1000043961
08.01.2020,ADULT SOCIAL CARE,BY THE BRIDGE LTD,"5,757.14",DISABILITIES LAC,EXTERNAL AGENCIES AND BODIES,2103047161,1000043961
08.01.2020,ADULT SOCIAL CARE,HELP ME GROW FOSTERING SERVICES LTD,"5,757.01",DISABILITIES LAC,EXTERNAL AGENCIES AND BODIES,2103047240,1000079302
08.01.2020,ADULT SOCIAL CARE,FOSTERING SUPPORT GROUP LTD,"4,799.76",DISABILITIES LAC,EXTERNAL AGENCIES AND BODIES,2103047178,1000065830
08.01.2020,ADULT SOCIAL CARE,THE DRIVE CARE HOMES LTD,"3,967.68",DISABILITIES LAC,RESIDENTIAL CARE,2103047110,1000003889
08.01.2020,ADULT SOCIAL CARE,JACQUELINE FEARON LTD,"3,801.50",SAFEGUARDING & DOLS,EXTERNAL AGENCIES AND BODIES,5902396723,1000077775
08.01.2020,ADULT SOCIAL CARE,LENUS GLOBAL LIMITED,"1,062.00",SAFEGUARDING & DOLS,OTHER CONTRACTORS,5902396598,1000083112
08.01.2020,ADULT SOCIAL CARE,RADHA CONSULTING LTD,539.25,SAFEGUARDING & DOLS,OTHER CONTRACTORS,5902396580,1000061154
08.01.2020,ADULT SOCIAL CARE,LENUS GLOBAL LIMITED,348,SAFEGUARDING & DOLS,OTHER CONTRACTORS,5902396609,1000083112
08.01.2020,ADULT SOCIAL CARE,LUCAS CONSULT LTD,272.95,SAFEGUARDING & DOLS,EXTERNAL AGENCIES AND BODIES,5902396621,1000078082
08.01.2020,ADULT SOCIAL CARE,REDACTED PERSONAL DATA,"1,272.92",SPEC NEEDS CHILDREN,PAYMENTS TO CLIENTS (DIRECT PAYMENTS),REDACTED,REDACTED
08.01.2020,ADULT SOCIAL CARE,INTERSERVE HEALTHCARE,"1,421.05",SPECIALIST CARE,SECTION 17 PAYMENTS TO AGENCIES/CARERS,2103047012,1000049612
08.01.2020,ADULT SOCIAL CARE,INTERSERVE HEALTHCARE,678.43,SPECIALIST CARE,SECTION 17 PAYMENTS TO AGENCIES/CARERS,2103047062,1000049612
08.01.2020,ADULT SOCIAL CARE,HCP STAFFING SERVICES LTD,458.12,SPECIALIST CARE,SECTION 17 PAYMENTS TO AGENCIES/CARERS,2103046991,1000078329
08.01.2020,ADULT SOCIAL CARE,CONTACT PROFESSIONALS,380,SPECIALIST CARE,SECTION 17 PAYMENTS TO AGENCIES/CARERS,2103047056,1000057263
08.01.2020,ADULT SOCIAL CARE,CONTACT PROFESSIONALS,342,SPECIALIST CARE,SECTION 17 PAYMENTS TO AGENCIES/CARERS,2103046978,1000057263
08.01.2020,ADULT SOCIAL CARE,CONTACT PROFESSIONALS,342,SPECIALIST CARE,SECTION 17 PAYMENTS TO AGENCIES/CARERS,2103047080,1000057263
08.01.2020,ADULT SOCIAL CARE,INTERSERVE HEALTHCARE,322.69,SPECIALIST CARE,SECTION 17 PAYMENTS TO AGENCIES/CARERS,2103047064,1000049612
08.01.2020,ADULT SOCIAL CARE,CONTACT PROFESSIONALS,304,SPECIALIST CARE,SECTION 17 PAYMENTS TO AGENCIES/CARERS,2103046986,1000057263
08.01.2020,ADULT SOCIAL CARE,CONTACT PROFESSIONALS,304,SPECIALIST CARE,SECTION 17 PAYMENTS TO AGENCIES/CARERS,2103047015,1000057263
08.01.2020,ADULT SOCIAL CARE,HCP STAFFING SERVICES LTD,282.36,SPECIALIST CARE,SECTION 17 PAYMENTS TO AGENCIES/CARERS,2103046972,1000078329
08.01.2020,ADULT SOCIAL CARE,CONTACT PROFESSIONALS,266,SPECIALIST CARE,SECTION 17 PAYMENTS TO AGENCIES/CARERS,2103047007,1000057263
08.01.2020,ADULT SOCIAL CARE,REDACTED PERSONAL DATA,"2,369.40",TRANSITIONS 14-18YRS,PAYMENTS TO CLIENTS (DIRECT PAYMENTS),REDACTED,REDACTED
08.01.2020,ADULT SOCIAL CARE,HCP STAFFING SERVICES LTD,462.8,TRANSITIONS 14-18YRS,SECTION 17 PAYMENTS TO AGENCIES/CARERS,2103047063,1000078329
08.01.2020,ADULT SOCIAL CARE,HCP STAFFING SERVICES LTD,462.8,TRANSITIONS 14-18YRS,SECTION 17 PAYMENTS TO AGENCIES/CARERS,2103047085,1000078329
08.01.2020,ASSET MANAGEMENT,JUDGE AND PRIESTLEY SOLICITORS,"25,586.00",DISREPAIR,PAYMENTS FOR LEGAL SERVICES,5902396589,1472217
08.01.2020,ASSET MANAGEMENT,JUDGE AND PRIESTLEY SOLICITORS,"9,450.00",DISREPAIR,SOLICITORS FRAMEWORK LEGAL SERVICES,5902396582,1472217
08.01.2020,ASSET MANAGEMENT,JUDGE AND PRIESTLEY SOLICITORS,"3,150.00",DISREPAIR,SOLICITORS FRAMEWORK LEGAL SERVICES,5902396582,1472217
08.01.2020,ASSET MANAGEMENT,JUDGE AND PRIESTLEY SOLICITORS,"1,660.35",DISREPAIR,PAYMENTS FOR LEGAL SERVICES,5902396589,1472217
08.01.2020,ASSET MANAGEMENT,JUDGE AND PRIESTLEY SOLICITORS,"1,488.50",DISREPAIR,PAYMENTS FOR LEGAL SERVICES,5902396589,1472217
08.01.2020,ASSET MANAGEMENT,JUDGE AND PRIESTLEY SOLICITORS,990,DISREPAIR,SOLICITORS FRAMEWORK LEGAL SERVICES,5902396582,1472217
08.01.2020,ASSET MANAGEMENT,LONDON SOUTH EAST COLLEGES,"3,750.00",REPAIRS OPERATIONS,TRAINING,5902396794,11249372
08.01.2020,ASSET MANAGEMENT,LONDON SOUTH EAST COLLEGES,"3,750.00",REPAIRS OPERATIONS,TRAINING,5902396798,11249372
08.01.2020,CENTRAL FUNCTIONS,MARK LOVEDAY,"3,500.00",HOME OWNERSHIP,LEGAL FEES & COURT COSTS,5902396703,1000033569
08.01.2020,CHIEF EXECUTIVE,ERECT ARCHITECTURE LTD,"1,000.00",CAPITAL PS (REGEN),CONSTRUCTION FEES - ARCHITECT,5902396692,1000078487
08.01.2020,CHILDREN'S SERVICES,SOUTHWARK INCLUSIVE LEARNING SERVICE,"7,650.00",ALTERNATIVE PROVISION,EXTERNAL AGENCIES AND BODIES,5902396619,5001000105
08.01.2020,CHILDREN'S SERVICES,KENT COUNTY COUNCIL - LASER,"3,326.32",BUILDING SUMNER,ELECTRICITY,5902396771,1000012926
08.01.2020,CHILDREN'S SERVICES,WRIXONCARE SEVICES,"1,226.30",CARE SERVICES 0-15,HIRED VEHICLES,5902396732,1000013166
08.01.2020,CHILDREN'S SERVICES,CONTACT PROFESSIONALS,380,CARE SERVICES 0-15,OTHER PAYMENTS FOR CLIENTS,5902396747,1000057263
08.01.2020,CHILDREN'S SERVICES,CONTACT PROFESSIONALS,380,CARE SERVICES 0-15,OTHER PAYMENTS FOR CLIENTS,5902396749,1000057263
08.01.2020,CHILDREN'S SERVICES,CONTACT PROFESSIONALS,353.4,CARE SERVICES 0-15,OTHER PAYMENTS FOR CLIENTS,5902396742,1000057263
08.01.2020,CHILDREN'S SERVICES,ALLEYN'S SCHOOL ENTERPRISES LTD,268,CARE SERVICES 0-15,CATERING MATERIALS & SUPPLIES,5902396730,1000077794
08.01.2020,CHILDREN'S SERVICES,CONTACT PROFESSIONALS,251.8,CARE SERVICES 0-15,OTHER PAYMENTS FOR CLIENTS,5902396751,1000057263
08.01.2020,CHILDREN'S SERVICES,ALL SAINTS CHURCH,320,CATCH 22 INNOVATION GRANT,HIRE OF ROOMS/HALLS,5902396700,1000032231
08.01.2020,CHILDREN'S SERVICES,ISABELLE GRAVENSTEIN T/A REVIVAL,522,CENTRAL SUPPORT,OTHER PAYMENTS FOR CLIENTS,5902396739,1000027424
08.01.2020,CHILDREN'S SERVICES,SHURGARD UK LTD,380.1,CENTRAL SUPPORT,OFFICE EXPENSES,5902396679,1000082132
08.01.2020,CHILDREN'S SERVICES,INTERPRETING DIRECT CO (UK) LTD,"7,883.00",FINANCE,TRANSLATION SERVICES,5902396736,1000070133
08.01.2020,CHILDREN'S SERVICES,PRIME PRODUCTION LTD,472.25,FINANCE,TRANSLATION SERVICES,5902396709,1000070086
08.01.2020,CHILDREN'S SERVICES,PARENT AND CHILD FOSTERING ASSESSMENTS,"8,134.00",FRIENDS & FAMILY FOSTERING,EXTERNAL AGENCIES AND BODIES,2103047219,1000078962
08.01.2020,CHILDREN'S SERVICES,FOSTERING LONDON LTD,"7,325.00",FRIENDS & FAMILY FOSTERING,EXTERNAL AGENCIES AND BODIES,2103047263,1000077541
08.01.2020,CHILDREN'S SERVICES,MOSAIC FOSTER CARE LTD,"6,975.00",FRIENDS & FAMILY FOSTERING,EXTERNAL AGENCIES AND BODIES,2103047212,1000076259
08.01.2020,CHILDREN'S SERVICES,MOSAIC FOSTER CARE LTD,"6,975.00",FRIENDS & FAMILY FOSTERING,EXTERNAL AGENCIES AND BODIES,2103047274,1000076259
08.01.2020,CHILDREN'S SERVICES,FUTURES FOR CHILDREN LIMITED,"6,713.98",FRIENDS & FAMILY FOSTERING,EXTERNAL AGENCIES AND BODIES,2103047276,1000041984
08.01.2020,CHILDREN'S SERVICES,INTEGRATED SERVICES PROGRAMME,"6,682.98",FRIENDS & FAMILY FOSTERING,EXTERNAL AGENCIES AND BODIES,2103047282,1642068
08.01.2020,CHILDREN'S SERVICES,MOSAIC FOSTER CARE LTD,"6,642.68",FRIENDS & FAMILY FOSTERING,EXTERNAL AGENCIES AND BODIES,2103047234,1000076259
08.01.2020,CHILDREN'S SERVICES,CAPSTONE FOSTER CARE (SOUTH EAST) LTD,"6,598.66",FRIENDS & FAMILY FOSTERING,EXTERNAL AGENCIES AND BODIES,2103047213,1000050353
08.01.2020,CHILDREN'S SERVICES,FOSTERCARE UK LTD,"6,598.66",FRIENDS & FAMILY FOSTERING,EXTERNAL AGENCIES AND BODIES,2103047217,1000073002
08.01.2020,CHILDREN'S SERVICES,DIVERSE CARE (UK) LTD,"6,324.00",FRIENDS & FAMILY FOSTERING,EXTERNAL AGENCIES AND BODIES,2103047242,1000055636
08.01.2020,CHILDREN'S SERVICES,ASCENT FOSTERING AGENCY LTD,"5,867.99",FRIENDS & FAMILY FOSTERING,EXTERNAL AGENCIES AND BODIES,2103047259,1000074714
08.01.2020,CHILDREN'S SERVICES,LIGHTHOUSE FOSTERING LTD,"5,766.89",FRIENDS & FAMILY FOSTERING,EXTERNAL AGENCIES AND BODIES,2103047222,1000080372
08.01.2020,CHILDREN'S SERVICES,HELP ME GROW FOSTERING SERVICES LTD,"5,757.01",FRIENDS & FAMILY FOSTERING,EXTERNAL AGENCIES AND BODIES,2103047162,1000079302
08.01.2020,CHILDREN'S SERVICES,INTEGRATED SERVICES PROGRAMME,"5,748.33",FRIENDS & FAMILY FOSTERING,EXTERNAL AGENCIES AND BODIES,2103047194,1642068
08.01.2020,CHILDREN'S SERVICES,ANCHOR FOSTERCARE,"5,646.34",FRIENDS & FAMILY FOSTERING,EXTERNAL AGENCIES AND BODIES,2103047177,1000065675
08.01.2020,CHILDREN'S SERVICES,INTEGRATED SERVICES PROGRAMME,"5,575.97",FRIENDS & FAMILY FOSTERING,EXTERNAL AGENCIES AND BODIES,2103047193,1642068
08.01.2020,CHILDREN'S SERVICES,COMPASS FOSTERING SOUTH EAST LTD,"5,535.67",FRIENDS & FAMILY FOSTERING,EXTERNAL AGENCIES AND BODIES,2103047279,1000081155
08.01.2020,CHILDREN'S SERVICES,BY THE BRIDGE LTD,"5,469.29",FRIENDS & FAMILY FOSTERING,EXTERNAL AGENCIES AND BODIES,2103047226,1000043961
08.01.2020,CHILDREN'S SERVICES,BY THE BRIDGE LTD,"5,469.29",FRIENDS & FAMILY FOSTERING,EXTERNAL AGENCIES AND BODIES,2103047237,1000043961
08.01.2020,CHILDREN'S SERVICES,BY THE BRIDGE LTD,"5,469.29",FRIENDS & FAMILY FOSTERING,EXTERNAL AGENCIES AND BODIES,2103047254,1000043961
08.01.2020,CHILDREN'S SERVICES,INTEGRATED SERVICES PROGRAMME,"5,460.96",FRIENDS & FAMILY FOSTERING,EXTERNAL AGENCIES AND BODIES,2103047229,1642068
08.01.2020,CHILDREN'S SERVICES,INTEGRATED SERVICES PROGRAMME,"5,460.96",FRIENDS & FAMILY FOSTERING,EXTERNAL AGENCIES AND BODIES,2103047262,1642068
08.01.2020,CHILDREN'S SERVICES,INTEGRATED SERVICES PROGRAMME,"5,336.34",FRIENDS & FAMILY FOSTERING,EXTERNAL AGENCIES AND BODIES,2103047195,1642068
08.01.2020,CHILDREN'S SERVICES,INTEGRATED SERVICES PROGRAMME,"5,336.34",FRIENDS & FAMILY FOSTERING,EXTERNAL AGENCIES AND BODIES,2103047196,1642068
08.01.2020,CHILDREN'S SERVICES,INTEGRATED SERVICES PROGRAMME,"5,336.34",FRIENDS & FAMILY FOSTERING,EXTERNAL AGENCIES AND BODIES,2103047215,1642068
08.01.2020,CHILDREN'S SERVICES,HEATH FARM FAMILY SOLUTION (FOSTERING),"5,322.08",FRIENDS & FAMILY FOSTERING,EXTERNAL AGENCIES AND BODIES,2103047211,11271268
08.01.2020,CHILDREN'S SERVICES,NATIONAL FOSTERING AGENCY,"5,265.66",FRIENDS & FAMILY FOSTERING,EXTERNAL AGENCIES AND BODIES,2103047207,1000038868
08.01.2020,CHILDREN'S SERVICES,NATIONAL FOSTERING AGENCY,"5,212.34",FRIENDS & FAMILY FOSTERING,EXTERNAL AGENCIES AND BODIES,2103047206,1000038868
08.01.2020,CHILDREN'S SERVICES,HEATH FARM FAMILY SOLUTION (FOSTERING),"5,176.38",FRIENDS & FAMILY FOSTERING,EXTERNAL AGENCIES AND BODIES,2103047190,11271268
08.01.2020,CHILDREN'S SERVICES,INTEGRATED SERVICES PROGRAMME,"5,176.38",FRIENDS & FAMILY FOSTERING,EXTERNAL AGENCIES AND BODIES,2103047214,1642068
08.01.2020,CHILDREN'S SERVICES,INTEGRATED SERVICES PROGRAMME,"5,176.38",FRIENDS & FAMILY FOSTERING,EXTERNAL AGENCIES AND BODIES,2103047281,1642068
08.01.2020,CHILDREN'S SERVICES,KENT HOMEFINDING & FOSTERING LTD,"5,166.81",FRIENDS & FAMILY FOSTERING,EXTERNAL AGENCIES AND BODIES,2103047236,1000033978
08.01.2020,CHILDREN'S SERVICES,FOSTERING LONDON LTD,"5,092.99",FRIENDS & FAMILY FOSTERING,EXTERNAL AGENCIES AND BODIES,2103047250,1000077541
08.01.2020,CHILDREN'S SERVICES,BY THE BRIDGE LTD,"4,903.54",FRIENDS & FAMILY FOSTERING,EXTERNAL AGENCIES AND BODIES,2103047251,1000043961
08.01.2020,CHILDREN'S SERVICES,ST CHRISTOPHER FELLOWSHIP,"4,884.67",FRIENDS & FAMILY FOSTERING,EXTERNAL AGENCIES AND BODIES,2103047197,1000045269
08.01.2020,CHILDREN'S SERVICES,BY THE BRIDGE LTD,"4,805.49",FRIENDS & FAMILY FOSTERING,EXTERNAL AGENCIES AND BODIES,2103047187,1000043961
08.01.2020,CHILDREN'S SERVICES,BY THE BRIDGE LTD,"4,805.49",FRIENDS & FAMILY FOSTERING,EXTERNAL AGENCIES AND BODIES,2103047255,1000043961
08.01.2020,CHILDREN'S SERVICES,BY THE BRIDGE LTD,"4,674.27",FRIENDS & FAMILY FOSTERING,EXTERNAL AGENCIES AND BODIES,2103047179,1000043961
08.01.2020,CHILDREN'S SERVICES,FOSTERING LONDON LTD,"4,650.00",FRIENDS & FAMILY FOSTERING,EXTERNAL AGENCIES AND BODIES,2103047183,1000077541
08.01.2020,CHILDREN'S SERVICES,HELP ME GROW FOSTERING SERVICES LTD,"4,650.00",FRIENDS & FAMILY FOSTERING,EXTERNAL AGENCIES AND BODIES,2103047238,1000079302
08.01.2020,CHILDREN'S SERVICES,GREATER LONDON FOSTERING,"4,645.35",FRIENDS & FAMILY FOSTERING,EXTERNAL AGENCIES AND BODIES,2103047267,1000029184
08.01.2020,CHILDREN'S SERVICES,ASCENT FOSTERING AGENCY LTD,"4,632.33",FRIENDS & FAMILY FOSTERING,EXTERNAL AGENCIES AND BODIES,2103047258,1000074714
08.01.2020,CHILDREN'S SERVICES,NATIONAL FOSTERING AGENCY,"4,627.68",FRIENDS & FAMILY FOSTERING,EXTERNAL AGENCIES AND BODIES,2103047221,1000038868
08.01.2020,CHILDREN'S SERVICES,BY THE BRIDGE LTD,"4,580.78",FRIENDS & FAMILY FOSTERING,EXTERNAL AGENCIES AND BODIES,2103047278,1000043961
08.01.2020,CHILDREN'S SERVICES,NATIONAL FOSTERING AGENCY,"4,557.00",FRIENDS & FAMILY FOSTERING,EXTERNAL AGENCIES AND BODIES,2103047205,1000038868
08.01.2020,CHILDREN'S SERVICES,BY THE BRIDGE LTD,"4,504.96",FRIENDS & FAMILY FOSTERING,EXTERNAL AGENCIES AND BODIES,2103047218,1000043961
08.01.2020,CHILDREN'S SERVICES,BY THE BRIDGE LTD,"4,475.82",FRIENDS & FAMILY FOSTERING,EXTERNAL AGENCIES AND BODIES,2103047185,1000043961
08.01.2020,CHILDREN'S SERVICES,BY THE BRIDGE LTD,"4,440.57",FRIENDS & FAMILY FOSTERING,EXTERNAL AGENCIES AND BODIES,2103047176,1000043961
08.01.2020,CHILDREN'S SERVICES,BY THE BRIDGE LTD,"4,440.57",FRIENDS & FAMILY FOSTERING,EXTERNAL AGENCIES AND BODIES,2103047224,1000043961
08.01.2020,CHILDREN'S SERVICES,NATIONAL FOSTERING AGENCY,"4,406.34",FRIENDS & FAMILY FOSTERING,EXTERNAL AGENCIES AND BODIES,2103047157,1000038868
08.01.2020,CHILDREN'S SERVICES,NATIONAL FOSTERING AGENCY,"4,406.34",FRIENDS & FAMILY FOSTERING,EXTERNAL AGENCIES AND BODIES,2103047202,1000038868
08.01.2020,CHILDREN'S SERVICES,NATIONAL FOSTERING AGENCY,"4,406.34",FRIENDS & FAMILY FOSTERING,EXTERNAL AGENCIES AND BODIES,2103047245,1000038868
08.01.2020,CHILDREN'S SERVICES,NATIONAL FOSTERING AGENCY,"4,406.34",FRIENDS & FAMILY FOSTERING,EXTERNAL AGENCIES AND BODIES,2103047275,1000038868
08.01.2020,CHILDREN'S SERVICES,BY THE BRIDGE LTD,"4,347.09",FRIENDS & FAMILY FOSTERING,EXTERNAL AGENCIES AND BODIES,2103047216,1000043961
08.01.2020,CHILDREN'S SERVICES,SYNERGY FOSTERING LTD,"4,309.00",FRIENDS & FAMILY FOSTERING,EXTERNAL AGENCIES AND BODIES,2103047260,1000031559
08.01.2020,CHILDREN'S SERVICES,ANCHOR FOSTERCARE,"4,286.99",FRIENDS & FAMILY FOSTERING,EXTERNAL AGENCIES AND BODIES,2103047191,1000065675
08.01.2020,CHILDREN'S SERVICES,COMPASS FOSTERING SOUTH EAST LTD,"4,270.25",FRIENDS & FAMILY FOSTERING,EXTERNAL AGENCIES AND BODIES,2103047231,1000081155
08.01.2020,CHILDREN'S SERVICES,BY THE BRIDGE LTD,"4,218.52",FRIENDS & FAMILY FOSTERING,EXTERNAL AGENCIES AND BODIES,2103047156,1000043961
08.01.2020,CHILDREN'S SERVICES,DIVERSITY FOSTER CARE LTD,"4,108.69",FRIENDS & FAMILY FOSTERING,EXTERNAL AGENCIES AND BODIES,2103047172,1000081399
08.01.2020,CHILDREN'S SERVICES,DIVERSITY FOSTER CARE LTD,"4,108.69",FRIENDS & FAMILY FOSTERING,EXTERNAL AGENCIES AND BODIES,2103047200,1000081399
08.01.2020,CHILDREN'S SERVICES,NEXT STEP FOSTERING SERVICES LTD,"3,986.60",FRIENDS & FAMILY FOSTERING,EXTERNAL AGENCIES AND BODIES,2103047228,1000044973
08.01.2020,CHILDREN'S SERVICES,CHILDREN FIRST FOSTERING AGENCY LTD,"3,981.33",FRIENDS & FAMILY FOSTERING,EXTERNAL AGENCIES AND BODIES,2103047167,1000060081
08.01.2020,CHILDREN'S SERVICES,ANCHOR FOSTERCARE,"3,856.71",FRIENDS & FAMILY FOSTERING,EXTERNAL AGENCIES AND BODIES,2103047257,1000065675
08.01.2020,CHILDREN'S SERVICES,CAPSTONE FOSTER CARE (SOUTH EAST) LTD,"3,764.33",FRIENDS & FAMILY FOSTERING,EXTERNAL AGENCIES AND BODIES,2103047261,1000050353
08.01.2020,CHILDREN'S SERVICES,ORANGE GROVE FOSTERCARE LTD,"3,751.75",FRIENDS & FAMILY FOSTERING,EXTERNAL AGENCIES AND BODIES,2103047248,1000078716
08.01.2020,CHILDREN'S SERVICES,ST CHRISTOPHER FELLOWSHIP,"3,697.99",FRIENDS & FAMILY FOSTERING,EXTERNAL AGENCIES AND BODIES,2103047175,1000045269
08.01.2020,CHILDREN'S SERVICES,CORE ASSETS FOSTERING LTD,"3,696.00",FRIENDS & FAMILY FOSTERING,EXTERNAL AGENCIES AND BODIES,2103047220,11288002
08.01.2020,CHILDREN'S SERVICES,ETHELBERT SPECIALIST HOMES,"3,678.11",FRIENDS & FAMILY FOSTERING,EXTERNAL AGENCIES AND BODIES,2103047186,1796129
08.01.2020,CHILDREN'S SERVICES,ETHELBERT SPECIALIST HOMES,"3,678.11",FRIENDS & FAMILY FOSTERING,EXTERNAL AGENCIES AND BODIES,2103047253,1796129
08.01.2020,CHILDREN'S SERVICES,ETHELBERT SPECIALIST HOMES,"3,678.11",FRIENDS & FAMILY FOSTERING,EXTERNAL AGENCIES AND BODIES,2103047265,1796129
08.01.2020,CHILDREN'S SERVICES,COMPASS FOSTERING LONDON LTD,"3,675.67",FRIENDS & FAMILY FOSTERING,EXTERNAL AGENCIES AND BODIES,2103047164,1000057908
08.01.2020,CHILDREN'S SERVICES,SELECT FOSTERCARE SERVICES LTD,"3,653.66",FRIENDS & FAMILY FOSTERING,EXTERNAL AGENCIES AND BODIES,2103047155,1000079277
08.01.2020,CHILDREN'S SERVICES,SELECT FOSTERCARE SERVICES LTD,"3,653.66",FRIENDS & FAMILY FOSTERING,EXTERNAL AGENCIES AND BODIES,2103047277,1000079277
08.01.2020,CHILDREN'S SERVICES,SELECT FOSTERCARE SERVICES LTD,"3,653.35",FRIENDS & FAMILY FOSTERING,EXTERNAL AGENCIES AND BODIES,2103047184,1000079277
08.01.2020,CHILDREN'S SERVICES,FUTURES FOR CHILDREN LIMITED,"3,649.94",FRIENDS & FAMILY FOSTERING,EXTERNAL AGENCIES AND BODIES,2103047249,1000041984
08.01.2020,CHILDREN'S SERVICES,FUTURES FOR CHILDREN LIMITED,"3,603.44",FRIENDS & FAMILY FOSTERING,EXTERNAL AGENCIES AND BODIES,2103047235,1000041984
08.01.2020,CHILDREN'S SERVICES,COMPASS FOSTERING SOUTH LTD,"3,592.67",FRIENDS & FAMILY FOSTERING,EXTERNAL AGENCIES AND BODIES,2103047266,1000073772
08.01.2020,CHILDREN'S SERVICES,FUSION FOSTERING LTD,"3,579.22",FRIENDS & FAMILY FOSTERING,EXTERNAL AGENCIES AND BODIES,2103047192,1000081674
08.01.2020,CHILDREN'S SERVICES,KENT HOMEFINDING & FOSTERING LTD,"3,565.00",FRIENDS & FAMILY FOSTERING,EXTERNAL AGENCIES AND BODIES,2103047225,1000033978
08.01.2020,CHILDREN'S SERVICES,CHILDREN OF COLOUR,"3,558.80",FRIENDS & FAMILY FOSTERING,EXTERNAL AGENCIES AND BODIES,2103047166,1000044955
08.01.2020,CHILDREN'S SERVICES,CHILDREN OF COLOUR,"3,558.80",FRIENDS & FAMILY FOSTERING,EXTERNAL AGENCIES AND BODIES,2103047174,1000044955
08.01.2020,CHILDREN'S SERVICES,CHILDREN OF COLOUR,"3,558.80",FRIENDS & FAMILY FOSTERING,EXTERNAL AGENCIES AND BODIES,2103047198,1000044955
08.01.2020,CHILDREN'S SERVICES,CORE ASSETS FOSTERING LTD,"3,556.00",FRIENDS & FAMILY FOSTERING,EXTERNAL AGENCIES AND BODIES,2103047241,11288002
08.01.2020,CHILDREN'S SERVICES,RYANCARE FOSTERING LTD,"3,541.75",FRIENDS & FAMILY FOSTERING,EXTERNAL AGENCIES AND BODIES,2103047180,1000062376
08.01.2020,CHILDREN'S SERVICES,KENT HOMEFINDING & FOSTERING LTD,"3,529.35",FRIENDS & FAMILY FOSTERING,EXTERNAL AGENCIES AND BODIES,2103047210,1000033978
08.01.2020,CHILDREN'S SERVICES,NATIONAL FOSTERING AGENCY,"3,520.67",FRIENDS & FAMILY FOSTERING,EXTERNAL AGENCIES AND BODIES,2103047208,1000038868
08.01.2020,CHILDREN'S SERVICES,NATIONAL FOSTERING AGENCY,"3,520.67",FRIENDS & FAMILY FOSTERING,EXTERNAL AGENCIES AND BODIES,2103047246,1000038868
08.01.2020,CHILDREN'S SERVICES,NATIONAL FOSTERING AGENCY,"3,520.67",FRIENDS & FAMILY FOSTERING,EXTERNAL AGENCIES AND BODIES,2103047247,1000038868
08.01.2020,CHILDREN'S SERVICES,FOSTERING FOR YOU LTD,"3,443.39",FRIENDS & FAMILY FOSTERING,EXTERNAL AGENCIES AND BODIES,2103047204,1000080380
08.01.2020,CHILDREN'S SERVICES,FOSTERING FOR YOU LTD,"3,443.39",FRIENDS & FAMILY FOSTERING,EXTERNAL AGENCIES AND BODIES,2103047233,1000080380
08.01.2020,CHILDREN'S SERVICES,FOSTERING FOR YOU LTD,"3,443.39",FRIENDS & FAMILY FOSTERING,EXTERNAL AGENCIES AND BODIES,2103047243,1000080380
08.01.2020,CHILDREN'S SERVICES,FOSTERING FOR YOU LTD,"3,443.39",FRIENDS & FAMILY FOSTERING,EXTERNAL AGENCIES AND BODIES,2103047244,1000080380
08.01.2020,CHILDREN'S SERVICES,FOSTERING FOR YOU LTD,"3,443.39",FRIENDS & FAMILY FOSTERING,EXTERNAL AGENCIES AND BODIES,2103047272,1000080380
08.01.2020,CHILDREN'S SERVICES,NATIONAL FOSTERING AGENCY,"3,387.99",FRIENDS & FAMILY FOSTERING,EXTERNAL AGENCIES AND BODIES,2103047158,1000038868
08.01.2020,CHILDREN'S SERVICES,FIVE RIVERS CHILD CARE LTD,"3,365.71",FRIENDS & FAMILY FOSTERING,EXTERNAL AGENCIES AND BODIES,2103047223,1000018792
08.01.2020,CHILDREN'S SERVICES,CONNECT FOSTERING SERVICES LTD,"3,343.57",FRIENDS & FAMILY FOSTERING,EXTERNAL AGENCIES AND BODIES,2103047264,1000079969
08.01.2020,CHILDREN'S SERVICES,SHINING STARS FOSTERING AGENCY LTD,"3,321.42",FRIENDS & FAMILY FOSTERING,EXTERNAL AGENCIES AND BODIES,2103047168,1000079431
08.01.2020,CHILDREN'S SERVICES,PARENT AND CHILD FOSTERING ASSESSMENTS,"3,321.42",FRIENDS & FAMILY FOSTERING,EXTERNAL AGENCIES AND BODIES,2103047181,1000078962
08.01.2020,CHILDREN'S SERVICES,GREATER LONDON FOSTERING,"3,286.00",FRIENDS & FAMILY FOSTERING,EXTERNAL AGENCIES AND BODIES,2103047232,1000029184
08.01.2020,CHILDREN'S SERVICES,SELECT FOSTERCARE SERVICES LTD,"3,286.00",FRIENDS & FAMILY FOSTERING,EXTERNAL AGENCIES AND BODIES,2103047268,1000079277
08.01.2020,CHILDREN'S SERVICES,GREATER LONDON FOSTERING,"3,286.00",FRIENDS & FAMILY FOSTERING,EXTERNAL AGENCIES AND BODIES,2103047271,1000029184
08.01.2020,CHILDREN'S SERVICES,FOSTERING FOR YOU LTD,"3,271.21",FRIENDS & FAMILY FOSTERING,EXTERNAL AGENCIES AND BODIES,2103047203,1000080380
08.01.2020,CHILDREN'S SERVICES,FOSTERING FOR YOU LTD,"3,271.21",FRIENDS & FAMILY FOSTERING,EXTERNAL AGENCIES AND BODIES,2103047273,1000080380
08.01.2020,CHILDREN'S SERVICES,CORE ASSETS FOSTERING LTD,"3,211.60",FRIENDS & FAMILY FOSTERING,EXTERNAL AGENCIES AND BODIES,2103047227,11288002
08.01.2020,CHILDREN'S SERVICES,HELP ME GROW FOSTERING SERVICES LTD,"3,188.35",FRIENDS & FAMILY FOSTERING,EXTERNAL AGENCIES AND BODIES,2103047163,1000079302
08.01.2020,CHILDREN'S SERVICES,HELP ME GROW FOSTERING SERVICES LTD,"3,188.35",FRIENDS & FAMILY FOSTERING,EXTERNAL AGENCIES AND BODIES,2103047230,1000079302
08.01.2020,CHILDREN'S SERVICES,HELP ME GROW FOSTERING SERVICES LTD,"3,188.35",FRIENDS & FAMILY FOSTERING,EXTERNAL AGENCIES AND BODIES,2103047239,1000079302
08.01.2020,CHILDREN'S SERVICES,HELP ME GROW FOSTERING SERVICES LTD,"3,188.35",FRIENDS & FAMILY FOSTERING,EXTERNAL AGENCIES AND BODIES,2103047256,1000079302
08.01.2020,CHILDREN'S SERVICES,HORIZON FOSTERING SERVICES LTD,"3,092.25",FRIENDS & FAMILY FOSTERING,EXTERNAL AGENCIES AND BODIES,2103047270,1000075679
08.01.2020,CHILDREN'S SERVICES,COMPASS FOSTERING LONDON LTD,"3,077.99",FRIENDS & FAMILY FOSTERING,EXTERNAL AGENCIES AND BODIES,2103047165,1000057908
08.01.2020,CHILDREN'S SERVICES,KENT HOMEFINDING & FOSTERING LTD,"3,041.10",FRIENDS & FAMILY FOSTERING,EXTERNAL AGENCIES AND BODIES,2103047252,1000033978
08.01.2020,CHILDREN'S SERVICES,HORIZON FOSTERING SERVICES LTD,"2,937.56",FRIENDS & FAMILY FOSTERING,EXTERNAL AGENCIES AND BODIES,2103047199,1000075679
08.01.2020,CHILDREN'S SERVICES,HORIZON FOSTERING SERVICES LTD,"2,937.56",FRIENDS & FAMILY FOSTERING,EXTERNAL AGENCIES AND BODIES,2103047269,1000075679
08.01.2020,CHILDREN'S SERVICES,HELP ME GROW FOSTERING SERVICES LTD,"2,869.51",FRIENDS & FAMILY FOSTERING,EXTERNAL AGENCIES AND BODIES,2103047173,1000079302
08.01.2020,CHILDREN'S SERVICES,HELP ME GROW FOSTERING SERVICES LTD,"2,869.51",FRIENDS & FAMILY FOSTERING,EXTERNAL AGENCIES AND BODIES,2103047188,1000079302
08.01.2020,CHILDREN'S SERVICES,EAST SUSSEX COUNTY COUNCIL,"2,297.32",FRIENDS & FAMILY FOSTERING,EXTERNAL AGENCIES AND BODIES,2103047170,1000015148
08.01.2020,CHILDREN'S SERVICES,EAST SUSSEX COUNTY COUNCIL,"2,031.16",FRIENDS & FAMILY FOSTERING,EXTERNAL AGENCIES AND BODIES,2103047209,1000015148
08.01.2020,CHILDREN'S SERVICES,NATIONAL FOSTERING AGENCY,"1,928.52",FRIENDS & FAMILY FOSTERING,EXTERNAL AGENCIES AND BODIES,2103047160,1000038868
08.01.2020,CHILDREN'S SERVICES,RAINBOW FOSTERING SERVICES LTD,"1,198.56",FRIENDS & FAMILY FOSTERING,EXTERNAL AGENCIES AND BODIES,2103047182,1000076620
08.01.2020,CHILDREN'S SERVICES,INTEGRATED SERVICES PROGRAMME,950,FRIENDS & FAMILY FOSTERING,EXTERNAL AGENCIES AND BODIES,5902396718,1642068
08.01.2020,CHILDREN'S SERVICES,NATIONAL FOSTERING AGENCY,857.12,FRIENDS & FAMILY FOSTERING,EXTERNAL AGENCIES AND BODIES,2103047169,1000038868
08.01.2020,CHILDREN'S SERVICES,NATIONAL FOSTERING AGENCY,535.7,FRIENDS & FAMILY FOSTERING,EXTERNAL AGENCIES AND BODIES,2103047159,1000038868
08.01.2020,CHILDREN'S SERVICES,MOSAIC FOSTER CARE LTD,"-2,925.00",FRIENDS & FAMILY FOSTERING,EXTERNAL AGENCIES AND BODIES,2103047280,1000076259
08.01.2020,CHILDREN'S SERVICES,HELP ME GROW FOSTERING SERVICES LTD,"-3,085.50",FRIENDS & FAMILY FOSTERING,EXTERNAL AGENCIES AND BODIES,2103047201,1000079302
08.01.2020,CHILDREN'S SERVICES,REDACTED PERSONAL DATA,300,FURTHER EDUCATION SUPPORT,CLIENT TRANSPORT,REDACTED,REDACTED
08.01.2020,CHILDREN'S SERVICES,STUART HAYTER,280,GOVERNOR TRAINING,CONSULTANTS SERVICES,5902396560,1000082057
08.01.2020,CHILDREN'S SERVICES,KIDS,"50,000.00",KIDS,CONSULTANTS SERVICES,5902396659,1000030036
08.01.2020,CHILDREN'S SERVICES,NUMBER 10 INTERIM LTD,"3,600.00",MANAGEMENT INFORMATION UNIT,PROFESSIONAL FEES,5902396698,1000075139
08.01.2020,CHILDREN'S SERVICES,GOODRICH PRIMARY SCHOOL,"10,913.00",MATERNITY COVER,SCHOOLS CAPITATION,2103047288,5001000028
08.01.2020,CHILDREN'S SERVICES,SNOWSFIELDS PRIMARY SCHOOL,"9,411.00",MATERNITY COVER,SCHOOLS CAPITATION,2103047297,5001000061
08.01.2020,CHILDREN'S SERVICES,SNOWSFIELDS PRIMARY SCHOOL,"7,340.00",MATERNITY COVER,SCHOOLS CAPITATION,2103047292,5001000061
08.01.2020,CHILDREN'S SERVICES,SNOWSFIELDS PRIMARY SCHOOL,"1,040.00",MATERNITY COVER,SCHOOLS CAPITATION,2103047289,5001000061
08.01.2020,CHILDREN'S SERVICES,RACE EQUALITY FOUNDATION,975,MGMT & PARENTING PROG TEAM,BOOKS & PUBLICATIONS,5902396600,1000011342
08.01.2020,CHILDREN'S SERVICES,ISABELLE GRAVENSTEIN T/A REVIVAL,696,MGMT & PARENTING PROG TEAM,PROFESSIONAL FEES,5902396605,1000027424
08.01.2020,CHILDREN'S SERVICES,ARCON2025 LTD,630,PUPIL PREMIUM CURRENT YEAR,CONSULTANTS SERVICES,5902396595,1000082938
08.01.2020,CHILDREN'S SERVICES,AREA CAMDEN LTD,"40,964.28",RESIDENTIAL,RESIDENTIAL CARE,2103047113,1000083221
08.01.2020,CHILDREN'S SERVICES,UNIQUE CARE HOMES SUPPORT LTD,"39,175.00",RESIDENTIAL,RESIDENTIAL CARE,2103047102,1000083349
08.01.2020,CHILDREN'S SERVICES,OUTBOUND CARE LTD,"28,785.71",RESIDENTIAL,RESIDENTIAL CARE,2103047103,1000083072
08.01.2020,CHILDREN'S SERVICES,UNIQUE CARE HOMES SUPPORT LTD,"28,150.00",RESIDENTIAL,RESIDENTIAL CARE,2103047111,1000083349
08.01.2020,CHILDREN'S SERVICES,KATTZ LTD,"26,784.00",RESIDENTIAL,EXTERNAL AGENCIES AND BODIES,2103047095,1000080147
08.01.2020,CHILDREN'S SERVICES,CHILDHOOD FIRST,"22,200.43",RESIDENTIAL,RESIDENTIAL CARE,2103047100,1000076330
08.01.2020,CHILDREN'S SERVICES,KEYS SPECIALIST RESIDENTIAL CHILDREN'S SERVICES,"21,921.43",RESIDENTIAL,RESIDENTIAL CARE,2103047094,1000081606
08.01.2020,CHILDREN'S SERVICES,YOUNG FOUNDATIONS LTD,"20,760.00",RESIDENTIAL,EXTERNAL AGENCIES AND BODIES,2103047097,1000083666
08.01.2020,CHILDREN'S SERVICES,THE AMICUS COMMUNITY (ARUNDEL) LTD,"20,570.67",RESIDENTIAL,RESIDENTIAL CARE,2103047106,1000079012
08.01.2020,CHILDREN'S SERVICES,CASTLE HOMES LIMITED,"19,928.57",RESIDENTIAL,RESIDENTIAL CARE,2103047096,1000019388
08.01.2020,CHILDREN'S SERVICES,PLUS ONE LTD,"19,906.43",RESIDENTIAL,RESIDENTIAL CARE,2103047099,1000013874
08.01.2020,CHILDREN'S SERVICES,HILLCREST CARE SERVICES LTD,"19,637.14",RESIDENTIAL,RESIDENTIAL CARE,2103047114,1000071137
08.01.2020,CHILDREN'S SERVICES,EXCEPTIONAL CARE LTD,"18,600.00",RESIDENTIAL,RESIDENTIAL CARE,2103047120,1000080896
08.01.2020,CHILDREN'S SERVICES,REAMCARE LTD,"18,157.13",RESIDENTIAL,RESIDENTIAL CARE,2103047112,1000078284
08.01.2020,CHILDREN'S SERVICES,CASTLE HOMES LIMITED,"16,889.51",RESIDENTIAL,RESIDENTIAL CARE,2103047101,1000019388
08.01.2020,CHILDREN'S SERVICES,KEYS CHILDCARE LTD,"16,607.15",RESIDENTIAL,RESIDENTIAL CARE,2103047104,1000081582
08.01.2020,CHILDREN'S SERVICES,ACORN HOMES (UK) LTD,"16,607.01",RESIDENTIAL,RESIDENTIAL CARE,2103047108,1000080423
08.01.2020,CHILDREN'S SERVICES,HILLCREST CARE SERVICES LTD,"15,455.71",RESIDENTIAL,RESIDENTIAL CARE,2103047116,1000071137
08.01.2020,CHILDREN'S SERVICES,ST CHRISTOPHER FELLOWSHIP,"15,057.01",RESIDENTIAL,RESIDENTIAL CARE,2103047119,1000045269
08.01.2020,CHILDREN'S SERVICES,TULIP CARE TWO LTD,"14,000.00",RESIDENTIAL,RESIDENTIAL CARE,2103047092,1000079091
08.01.2020,CHILDREN'S SERVICES,ACORN HOMES (UK) LTD,"11,208.86",RESIDENTIAL,RESIDENTIAL CARE,2103047115,1000080423
08.01.2020,CHILDREN'S SERVICES,THE DRIVE CARE HOMES LTD,"10,473.84",RESIDENTIAL,RESIDENTIAL CARE,2103047109,1000003889
08.01.2020,CHILDREN'S SERVICES,THE DRIVE CARE HOMES LTD,"1,332.35",RESIDENTIAL,RESIDENTIAL CARE,2103047098,1000003889
08.01.2020,CHILDREN'S SERVICES,KEYS CHILDCARE LTD,885.71,RESIDENTIAL,OTHER PAYMENTS FOR CLIENTS,2103047105,1000081582
08.01.2020,CHILDREN'S SERVICES,HILLCREST CARE SERVICES LTD,"-2,618.29",RESIDENTIAL,RESIDENTIAL CARE,2103047121,1000071137
08.01.2020,CHILDREN'S SERVICES,ZENITH CARS LTD,420,S & FAM SUPP - PRAC GRP B SET 17-19,HIRED VEHICLES,5902396534,1000070570
08.01.2020,CHILDREN'S SERVICES,ZENITH CARS LTD,655,S & FAM SUPP - PRAC GRP F SET 29-31,OTHER PAYMENTS FOR CLIENTS,5902396534,1000070570
08.01.2020,CHILDREN'S SERVICES,ZENITH CARS LTD,260,S & FAM SUPP - PRAC GRP F SET 29-31,HIRED VEHICLES,5902396534,1000070570
08.01.2020,CHILDREN'S SERVICES,UNLOCKING LANGUAGE LTD,"24,476.91",SALT,SPECIAL SCHOOL SEN,5902396638,1000081107
08.01.2020,CHILDREN'S SERVICES,HATS GROUP LTD,"41,895.68",SCH TRANS - CONTRACT COST,EXTERNAL AGENCIES AND BODIES,5902396640,1000042743
08.01.2020,CHILDREN'S SERVICES,HATS GROUP LTD,"29,444.18",SCH TRANS - CONTRACT COST,PROFESSIONAL FEES,5902396642,1000042743
08.01.2020,CHILDREN'S SERVICES,SURREY COUNTY COUNCIL,"6,500.00",SCH TRANS - CONTRACT COST,RECOUPMENT,5902396683,1000002396
08.01.2020,CHILDREN'S SERVICES,PULSE HEALTHCARE LTD,308,SCH TRANS - CONTRACT COST,AGENCY STAFF,5902396668,1000035063
08.01.2020,CHILDREN'S SERVICES,PULSE HEALTHCARE LTD,308,SCH TRANS - CONTRACT COST,AGENCY STAFF,5902396669,1000035063
08.01.2020,CHILDREN'S SERVICES,PULSE HEALTHCARE LTD,308,SCH TRANS - CONTRACT COST,AGENCY STAFF,5902396671,1000035063
08.01.2020,CHILDREN'S SERVICES,ST JAMES CE SCHOOL,"6,156.00",SCHOOLS DIRECT SALARY FUNDING,SCHOOLS CAPITATION,2103047291,5001000070
08.01.2020,CHILDREN'S SERVICES,CHARLOTTE  SHARMAN PRIMARY SCHOOL,"3,078.00",SCHOOLS DIRECT SALARY FUNDING,SCHOOLS CAPITATION,2103047290,5001000016
08.01.2020,CHILDREN'S SERVICES,HOLIBROOK HOUSE LTD,"6,310.71",SEMI INDEPENDENT CARE LEAVERS,EXTERNAL AGENCIES AND BODIES,2103047152,1000067873
08.01.2020,CHILDREN'S SERVICES,NETPEX LTD CORPORATE SERVICES,"4,672.32",SEMI INDEPENDENT CARE LEAVERS,EXTERNAL AGENCIES AND BODIES,2103047154,1000076073
08.01.2020,CHILDREN'S SERVICES,NETPEX LTD CORPORATE SERVICES,"4,207.32",SEMI INDEPENDENT CARE LEAVERS,EXTERNAL AGENCIES AND BODIES,2103047150,1000076073
08.01.2020,CHILDREN'S SERVICES,SIL SERVICES LTD,"3,321.43",SEMI INDEPENDENT CARE LEAVERS,EXTERNAL AGENCIES AND BODIES,2103047140,1000082336
08.01.2020,CHILDREN'S SERVICES,NETPEX LTD CORPORATE SERVICES,"3,077.99",SEMI INDEPENDENT CARE LEAVERS,EXTERNAL AGENCIES AND BODIES,2103047142,1000076073
08.01.2020,CHILDREN'S SERVICES,ADULLAM SUPPORT LTD,"2,989.29",SEMI INDEPENDENT CARE LEAVERS,EXTERNAL AGENCIES AND BODIES,2103047149,1000081148
08.01.2020,CHILDREN'S SERVICES,NETPEX LTD CORPORATE SERVICES,"2,767.99",SEMI INDEPENDENT CARE LEAVERS,EXTERNAL AGENCIES AND BODIES,2103047138,1000076073
08.01.2020,CHILDREN'S SERVICES,NETPEX LTD CORPORATE SERVICES,"2,741.22",SEMI INDEPENDENT CARE LEAVERS,EXTERNAL AGENCIES AND BODIES,2103047135,1000076073
08.01.2020,CHILDREN'S SERVICES,SILVER BIRCH CARE LTD,"2,000.00",SEMI INDEPENDENT CARE LEAVERS,EXTERNAL AGENCIES AND BODIES,2103047146,1000076525
08.01.2020,CHILDREN'S SERVICES,PLUS ONE LTD,445.78,SEMI INDEPENDENT CARE LEAVERS,EXTERNAL AGENCIES AND BODIES,2103047144,1000013874
08.01.2020,CHILDREN'S SERVICES,ASSOCIATED CARE SERVICES LTD,"23,914.29",SEMI INDEPENDENT LAC,EXTERNAL AGENCIES AND BODIES,2103047128,1000070299
08.01.2020,CHILDREN'S SERVICES,SILVER BIRCH CARE LTD,"4,134.07",SEMI INDEPENDENT LAC,EXTERNAL AGENCIES AND BODIES,2103047127,1000076525
08.01.2020,CHILDREN'S SERVICES,SILVER BIRCH CARE LTD,"4,124.00",SEMI INDEPENDENT LAC,EXTERNAL AGENCIES AND BODIES,2103047126,1000076525
08.01.2020,CHILDREN'S SERVICES,SILVER BIRCH CARE LTD,"4,000.71",SEMI INDEPENDENT LAC,EXTERNAL AGENCIES AND BODIES,2103047131,1000076525
08.01.2020,CHILDREN'S SERVICES,SILVER BIRCH CARE LTD,"3,875.00",SEMI INDEPENDENT LAC,EXTERNAL AGENCIES AND BODIES,2103047122,1000076525
08.01.2020,CHILDREN'S SERVICES,NETPEX LTD CORPORATE SERVICES,"2,878.66",SEMI INDEPENDENT LAC,EXTERNAL AGENCIES AND BODIES,2103047147,1000076073
08.01.2020,CHILDREN'S SERVICES,ADULLAM SUPPORT LTD,"1,379.23",SEMI INDEPENDENT LAC,EXTERNAL AGENCIES AND BODIES,2103047148,1000081148
08.01.2020,CHILDREN'S SERVICES,WANDSWORTH COUNCIL,850,SOUTHWARK CHOICES,CONSULTANTS SERVICES,5902396610,1000020692
08.01.2020,CHILDREN'S SERVICES,REDACTED PERSONAL DATA,"6,574.86",SPECIAL GUARDIANSHIP,PAYMENTS TO CARERS,REDACTED,REDACTED
08.01.2020,CHILDREN'S SERVICES,KIRA INDEPENDENT LTD,"2,371.00",SPECIAL GUARDIANSHIP,PROFESSIONAL FEES,5902396578,1000073565
08.01.2020,CHILDREN'S SERVICES,REDACTED PERSONAL DATA,525,SPECIAL GUARDIANSHIP,PAYMENTS TO CARERS,REDACTED,REDACTED
08.01.2020,CHILDREN'S SERVICES,REDACTED PERSONAL DATA,525,SPECIAL GUARDIANSHIP,PAYMENTS TO CARERS,REDACTED,REDACTED
08.01.2020,CHILDREN'S SERVICES,REDACTED PERSONAL DATA,525,SPECIAL GUARDIANSHIP,PAYMENTS TO CARERS,REDACTED,REDACTED
08.01.2020,CHILDREN'S SERVICES,REDACTED PERSONAL DATA,403.04,SPECIAL GUARDIANSHIP,PAYMENTS TO CARERS,REDACTED,REDACTED
08.01.2020,CHILDREN'S SERVICES,REDACTED PERSONAL DATA,395,SPECIAL GUARDIANSHIP,PAYMENTS TO CARERS,REDACTED,REDACTED
08.01.2020,CHILDREN'S SERVICES,REDACTED PERSONAL DATA,389.34,SPECIAL GUARDIANSHIP,PAYMENTS TO CARERS,REDACTED,REDACTED
08.01.2020,CHILDREN'S SERVICES,REDACTED PERSONAL DATA,388.04,SPECIAL GUARDIANSHIP,PAYMENTS TO CARERS,REDACTED,REDACTED
08.01.2020,CHILDREN'S SERVICES,REDACTED PERSONAL DATA,356.15,SPECIAL GUARDIANSHIP,PAYMENTS TO CARERS,REDACTED,REDACTED
08.01.2020,CHILDREN'S SERVICES,REDACTED PERSONAL DATA,343.05,SPECIAL GUARDIANSHIP,PAYMENTS TO CARERS,REDACTED,REDACTED
08.01.2020,CHILDREN'S SERVICES,REDACTED PERSONAL DATA,342.45,SPECIAL GUARDIANSHIP,PAYMENTS TO CARERS,REDACTED,REDACTED
08.01.2020,CHILDREN'S SERVICES,REDACTED PERSONAL DATA,341.15,SPECIAL GUARDIANSHIP,PAYMENTS TO CARERS,REDACTED,REDACTED
08.01.2020,CHILDREN'S SERVICES,REDACTED PERSONAL DATA,269.08,SPECIAL GUARDIANSHIP,PAYMENTS TO CARERS,REDACTED,REDACTED
08.01.2020,CHILDREN'S SERVICES,REDACTED PERSONAL DATA,269.08,SPECIAL GUARDIANSHIP,PAYMENTS TO CARERS,REDACTED,REDACTED
08.01.2020,CHILDREN'S SERVICES,CAPSTONE FOSTER CARE (SOUTH EAST) LTD,"3,511.68",STAYING PUT,EXTERNAL AGENCIES AND BODIES,2103047151,1000050353
08.01.2020,CHILDREN'S SERVICES,NATIONAL FOSTERING AGENCY,"1,860.00",STAYING PUT,EXTERNAL AGENCIES AND BODIES,2103047139,1000038868
08.01.2020,CHILDREN'S SERVICES,NATIONAL FOSTERING AGENCY,"1,860.00",STAYING PUT,EXTERNAL AGENCIES AND BODIES,2103047153,1000038868
08.01.2020,CHILDREN'S SERVICES,NATIONAL FOSTERING AGENCY,"1,470.02",STAYING PUT,EXTERNAL AGENCIES AND BODIES,2103047145,1000038868
08.01.2020,CHILDREN'S SERVICES,SOUTH OF THE RIVER INVESTMENTS LTD,"3,513.70",TEMPORARY ACCOMMODATION,EXTERNAL AGENCIES AND BODIES,5902396656,1000073638
08.01.2020,CHILDREN'S SERVICES,KINGSDALE FOUNDATION SCHOOL,"10,582.20",TRADE UNIONS,SCHOOLS CAPITATION,2103047295,1000065405
08.01.2020,CHILDREN'S SERVICES,CHARLES DICKENS PRIMARY SCHOOL,"5,581.92",TRADE UNIONS,SCHOOLS CAPITATION,2103047296,5001000015
08.01.2020,CHILDREN'S SERVICES,BETHLEM & MAUDSLEY HOSPITAL SCHOOL,"3,238.42",TRADE UNIONS,SCHOOLS CAPITATION,2103047293,5001000010
08.01.2020,CHILDREN'S SERVICES,CHARLES DICKENS PRIMARY SCHOOL,"1,482.00",TRADE UNIONS,SCHOOLS CAPITATION,2103047294,5001000015
08.01.2020,CHILDREN'S SERVICES,NETPEX LTD CORPORATE SERVICES,"4,207.32",UASC CARE LEAVERS,EXTERNAL AGENCIES AND BODIES,2103047141,1000076073
08.01.2020,CHILDREN'S SERVICES,NETPEX LTD CORPORATE SERVICES,"4,406.65",UASC LAC,EXTERNAL AGENCIES AND BODIES,2103047125,1000076073
08.01.2020,CHILDREN'S SERVICES,ISABELLE GRAVENSTEIN T/A REVIVAL,522,YOS SUPPORT,MEDICAL / HEALTH & SAFETY SERVICES,5902396535,1000027424
08.01.2020,COMMUNITIES,GLOUCESTER GROVE ESTATE TMO,"154,620.50",GLOUCESTER GROVE ESTATE,M&M ALLOWANCE CO-OPS,5902396564,1000073072
08.01.2020,COMMUNITIES,STEVE WILLIAMS,650,TENANT MGT INITITIVES,TRAINING,5902396653,1000069907
08.01.2020,COMMUNITIES,WILLOWBROOK TENANT MANAGEMENT CO-OP LTD,"59,864.50",WILLOWBROOK CO-OP,M&M ALLOWANCE CO-OPS,5902396788,11311402
08.01.2020,COMMUNITIES PROJECTS,J & M OASIS LTD,"21,693.00",NO RECOURSE TO PUBLIC FUNDS,ACCOMMODATION CHARGES,5902396612,1000072169
08.01.2020,COMMUNITIES PROJECTS,PROPERTYPLACEBOOK LTD,"21,690.00",NO RECOURSE TO PUBLIC FUNDS,ACCOMMODATION CHARGES,5902396722,1000077817
08.01.2020,COMMUNITIES PROJECTS,RS REAL ESTATE LTD,"11,594.00",NO RECOURSE TO PUBLIC FUNDS,ACCOMMODATION CHARGES,5902396673,1000072485
08.01.2020,COMMUNITIES PROJECTS,LIVING ACCOMODATION LTD,"9,919.00",NO RECOURSE TO PUBLIC FUNDS,ACCOMMODATION CHARGES,5902396734,1000063985
08.01.2020,COMMUNITIES PROJECTS,ZFA ACCOMMODATION LTD,"9,221.50",NO RECOURSE TO PUBLIC FUNDS,ACCOMMODATION CHARGES,5902396670,1000082620
08.01.2020,COMMUNITIES PROJECTS,NORBURY PROPERTY SERVICES (LONDON) LTD,"4,712.00",NO RECOURSE TO PUBLIC FUNDS,ACCOMMODATION CHARGES,5902396602,1000075566
08.01.2020,COMMUNITIES PROJECTS,VENTURE HOUSING (LONDON) LTD,"4,045.50",NO RECOURSE TO PUBLIC FUNDS,ACCOMMODATION CHARGES,5902396584,1000056686
08.01.2020,COMMUNITIES PROJECTS,STENFORD PROPERTY LTD,"3,193.00",NO RECOURSE TO PUBLIC FUNDS,ACCOMMODATION CHARGES,5902396599,1000074759
08.01.2020,COMMUNITIES PROJECTS,WILLOW ESTATE AGENTS (LONDON) LTD,"2,387.00",NO RECOURSE TO PUBLIC FUNDS,ACCOMMODATION CHARGES,5902396572,1000060607
08.01.2020,COMMUNITIES PROJECTS,APEX HOUSING SOLUTIONS LTD,720,NO RECOURSE TO PUBLIC FUNDS,ACCOMMODATION CHARGES,5902396635,1000079786
08.01.2020,COMMUNITIES PROJECTS,CHILDREN ACT ENTERPRISES LTD,650,SAFEGUARDING BOARDS,CONSULTANTS SERVICES,5902396607,1000068313
08.01.2020,COMMUNITIES PROJECTS,BROOK,"36,437.50",YOUNG PEOPLES SERVICE,OTHER CONTRACTORS,5902396682,1000076901
08.01.2020,CUSTOMER EXPERIENCE,KENT COUNTY COUNCIL - LASER,"3,148.66",CUSTOMER SUPPORT,ELECTRICITY,5902396806,1000012926
08.01.2020,CUSTOMER EXPERIENCE,PLAN LONDON LTD,"3,122.48",SALES & ACQUISITIONS,PROFESSIONAL FEES,5902396737,1000056065
08.01.2020,CUSTOMER EXPERIENCE HGF,R S P  LTD  WARRANT SERVICE,"1,338.00",HOUSING OPTIONS,PUBLIC TRANSPORT,5902396554,1000006523
08.01.2020,CUSTOMER EXPERIENCE HGF,R S P  LTD  WARRANT SERVICE,559.1,HOUSING OPTIONS,PUBLIC TRANSPORT,5902396556,1000006523
08.01.2020,CUSTOMER EXPERIENCE HGF,VENTURE HOUSING (LONDON) LTD,"69,772.80",NIGHTLY TA (NSC),EXTERNAL AGENCIES AND BODIES,5902396676,1000056686
08.01.2020,CUSTOMER EXPERIENCE HGF,RENT CONNECT HOUSING LTD,"27,652.45",NIGHTLY TA (NSC),EXTERNAL AGENCIES AND BODIES,5902396687,1000074815
08.01.2020,CUSTOMER EXPERIENCE HGF,RENT CONNECT HOUSING LTD,"20,534.80",NIGHTLY TA (NSC),EXTERNAL AGENCIES AND BODIES,5902396697,1000074815
08.01.2020,CUSTOMER EXPERIENCE HGF,SOLACE WOMEN'S AID,"12,585.00",NIGHTLY TA (NSC),EXTERNAL AGENCIES AND BODIES,5902396592,1000057231
08.01.2020,CUSTOMER EXPERIENCE HGF,SECURENT LTD,"9,702.00",NIGHTLY TA (NSC),EXTERNAL AGENCIES AND BODIES,5902396590,1000079400
08.01.2020,CUSTOMER EXPERIENCE HGF,SECURENT LTD,"6,083.20",NIGHTLY TA (NSC),EXTERNAL AGENCIES AND BODIES,5902396590,1000079400
08.01.2020,CUSTOMER EXPERIENCE HGF,SITTARA LTD,"5,820.00",NIGHTLY TA (NSC),EXTERNAL AGENCIES AND BODIES,5902396537,1000080857
08.01.2020,CUSTOMER EXPERIENCE HGF,RENT CONNECT HOUSING LTD,276,NIGHTLY TA (NSC),EXTERNAL AGENCIES AND BODIES,5902396688,1000074815
08.01.2020,CUSTOMER EXPERIENCE HGF,ZFA ACCOMMODATION LTD,"106,000.00",PSL PLACEMENTS,EXTERNAL AGENCIES AND BODIES,5902396628,1000082620
08.01.2020,CUSTOMER EXPERIENCE HGF,NATIONWIDE ACCOMMODATION,"54,738.16",PSL PLACEMENTS,EXTERNAL AGENCIES AND BODIES,5902396576,1000076112
08.01.2020,CUSTOMER EXPERIENCE HGF,NATIONWIDE ACCOMMODATION,512.97,PSL PLACEMENTS,EXTERNAL AGENCIES AND BODIES,5902396573,1000076112
08.01.2020,ENVIRONMENT AND LEISURE,WILLIAM SAUNDERS LLP,"1,650.00",CAPITAL PS (LEISURE),CONSTRUCTION FEES,5902396625,1000080793
08.01.2020,ENVIRONMENT AND LEISURE,BOURNE AMENITY LTD,"1,199.37",CAPITAL PS (LEISURE),CONSTRUCTION FEES  - EXTERNAL,5902396727,1000054708
08.01.2020,ENVIRONMENT AND LEISURE,CONNICK TREE CARE REIGATE LTD,640,CAPITAL PS (LEISURE),CONSTRUCTION FEES,5902396746,1000070069
08.01.2020,ENVIRONMENT AND LEISURE,COMMUNITY LINKS TRADING LTD,295,CAPITAL PS (LEISURE),FURNITURE & FITTINGS ACQUISITION,5902396715,1000049897
08.01.2020,ENVIRONMENT DIRECTORATE,SHB HIRE LTD,646.76,COMMERCIAL VEH CTRL A/C,VEHICLE REPAIRS & MAINTENANCE,5902396552,11319628
08.01.2020,ENVIRONMENT DIRECTORATE,LONDON HIRE T/A R J MOTORS,255.9,COMMERCIAL VEH CTRL A/C,VEHICLE REPAIRS & MAINTENANCE,5902396539,1000047106
08.01.2020,ENVIRONMENT DIRECTORATE,TRINITY FIRE & SECURITY SYSTEMS LTD,903,DEPOT COSTS,MEDICAL / HEALTH & SAFETY SERVICES,5902396667,1000083229
08.01.2020,ENVIRONMENT DIRECTORATE,ENVIRO TECHNOLOGY SERVICES PLC,"1,171.75",ENVIRONMENTAL PROTECTION,EQUIPMENT PURCHASE & REPAIR,5902396787,1000005024
08.01.2020,ENVIRONMENT DIRECTORATE,CLARK MASTS SYSTEMS LTD,895,ENVIRONMENTAL PROTECTION,EQUIPMENT PURCHASE & REPAIR,5902396778,1000044097
08.01.2020,ENVIRONMENT DIRECTORATE,AIR MONITORS LTD,300,ENVIRONMENTAL PROTECTION,EQUIPMENT PURCHASE & REPAIR,5902396784,1000054414
08.01.2020,ENVIRONMENT DIRECTORATE,AIR MONITORS LTD,270,ENVIRONMENTAL PROTECTION,EQUIPMENT PURCHASE & REPAIR,5902396803,1000054414
08.01.2020,ENVIRONMENT DIRECTORATE,THE T.P. PARTNERSHIP,445,ESTATE CLEANING-GENERAL,OTHER CONTRACTORS,5902396546,1000045906
08.01.2020,ENVIRONMENT DIRECTORATE,BRITISH DYSLEXIA ASSOCIATION,450,ESTATES  (NORTH WEST),EXTERNAL AGENCIES AND BODIES,5902396386,1000063328
08.01.2020,ENVIRONMENT DIRECTORATE,AMETHYST HORTICULTURE LTD,"10,210.30",GROUNDS MAINTENANCE - GENERAL,MATERIALS,5902396702,1000054623
08.01.2020,ENVIRONMENT DIRECTORATE,PHS GROUP PLC,"1,262.13",MANAGEMENT TEAM,WASTE DISPOSAL CONTRACT,5902396562,1851993
08.01.2020,ENVIRONMENT DIRECTORATE,WATERLOGIC,431.1,MANAGEMENT TEAM,MATERIALS,5902396551,1000052108
08.01.2020,ENVIRONMENT DIRECTORATE,GO PRO CHEMICALS LTD,279.95,MANAGEMENT TEAM,MATERIALS,5902396652,1000079528
08.01.2020,ENVIRONMENT DIRECTORATE,CTC RECRUITMENT LTD,"1,328.77",NON HOUSING GROUNDS,AGENCY STAFF,5902396571,1000041410
08.01.2020,ENVIRONMENT DIRECTORATE,GOVNET COMMUNICATIONS,445,PARKING OVERHEADS,TRAINING,5902396741,1000050132
08.01.2020,ENVIRONMENT DIRECTORATE,GC CONSTRUCT LTD,"22,860.82",SBS - HOLDING ACCOUNT,OTHER CONTRACTORS,2103046540,3000002106
08.01.2020,ENVIRONMENT DIRECTORATE,GC CONSTRUCT LTD,"9,076.50",SBS - HOLDING ACCOUNT,OTHER CONTRACTORS,2103046539,3000002106
08.01.2020,ENVIRONMENT DIRECTORATE,NPOWER LTD,319.97,STRUCTURES MAJOR ROADS,OTHER CONTRACTORS,5902396608,1000078994
08.01.2020,EXCHEQUER SERVICES,CIVICA UK LTD,"10,194.34",ADMINISTRATIVE SUPPORT,SOFTWARE,5902396707,1730625
08.01.2020,EXCHEQUER SERVICES,INSTITUTE OF MONEY ADVISORS,341.36,ADMINISTRATIVE SUPPORT,TRAINING,5902396650,1000081706
08.01.2020,EXCHEQUER SERVICES,INSTITUTE OF MONEY ADVISORS,341.36,ADMINISTRATIVE SUPPORT,TRAINING,5902396650,1000081706
08.01.2020,EXCHEQUER SERVICES,INSTITUTE OF MONEY ADVISORS,284.4,ADMINISTRATIVE SUPPORT,TRAINING,5902396650,1000081706
08.01.2020,EXCHEQUER SERVICES,SOUTH BANK BID LTD,"23,918.68",SOUTH BANK,EXTERNAL AGENCIES AND BODIES,5902396654,1000075023
08.01.2020,FINANCE DIRECTOR,CIPFA BUSINESS LTD,345,ADULT'S SERVICES FINANCE TEAM,TRAINING,5902396748,1000024688
08.01.2020,FINANCIAL AND INFORMATION GOVERNANCE,CIPFA,930,CIPFA TRAINEES,TRAINING,5902396660,1000000196
08.01.2020,FINANCIAL AND INFORMATION GOVERNANCE,ARTHUR J GALLAGHER INSURANCE BROKER,"5,000.00",INSURANCE ADMIN,PROFESSIONAL FEES,5902396708,1000082644
08.01.2020,HOUSING GENERAL FUND,PORTAKABIN LIMITED,"1,620.66",CAPITAL PS (HOUSING GF),LAND & BUILDINGS ACQUISITION,5902396807,1000015195
08.01.2020,HOUSING HRA,LUSTRE CONSULTING LTD,"3,975.00",CAPITAL PS (HRA),CONSTRUCTION FEES  - EXTERNAL,5902396800,1000074552
08.01.2020,HOUSING HRA,SHARPE PRITCHARD LLP,"2,644.00",CAPITAL PS (HRA),CONSTRUCTION FEES  - EXTERNAL,5902396641,1790085
08.01.2020,HOUSING HRA,SHARPE PRITCHARD LLP,"2,229.00",CAPITAL PS (HRA),CONSTRUCTION FEES  - EXTERNAL,5902396639,1790085
08.01.2020,HOUSING HRA,CALFORD SEADEN LLP,"1,470.00",CAPITAL PS (HRA),CONSTRUCTION FEES  - EXTERNAL,5902396646,1061592
08.01.2020,HOUSING HRA,PAUL MEW ASSOCIATES LTD,"1,200.00",CAPITAL PS (HRA),CONSTRUCTION FEES  - EXTERNAL,5902396768,1000082276
08.01.2020,HSG&MOD,POHWER,"5,656.40",NHS COMPLAINTS ADVOCACY,EXTERNAL AGENCIES AND BODIES,5902396547,1000070508
08.01.2020,HSG&MOD,BLUE ELEPHANT THEATRE LTD,"1,000.00",VCS GRANTS,OTHER CONTRACTORS,5902396569,1000015417
08.01.2020,INSURANCE FUNDS,JOHNSON AUSTIN LTD,"1,270.00",PROPERTY RELATED INSURANCE,PROFESSIONAL FEES,5902396775,1000040202
08.01.2020,INSURANCE FUNDS,JOHNSON AUSTIN LTD,375,PROPERTY RELATED INSURANCE,PROFESSIONAL FEES,5902396783,1000040202
08.01.2020,LAW & DEMOCRACY,SOUTHWARK NEWSPAPER LTD,348,LEGAL SVCES MANAGEMENT,MISCELLANEOUS EXPENSES,5902396726,1556957
08.01.2020,LEISURE DIRECTORATE,ARGOS BUSINESS SOLUTIONS LTD,689.58,CREMATORIUM,OTHER R&M,5902396678,1000001734
08.01.2020,LEISURE DIRECTORATE,HERITAGE SURVEYS LTD,424,CREMATORIUM,SECURITY EQUIPMENT F&F,5902396645,1000080199
08.01.2020,LEISURE DIRECTORATE,C S G (USHERS) LTD,"11,572.50",TREES PRINCIPAL ROADS,OTHER CONTRACTORS,5902396752,1000073203
08.01.2020,LEISURE DIRECTORATE,C S G (USHERS) LTD,"3,300.00",TREES PRINCIPAL ROADS,OTHER CONTRACTORS,5902396755,1000073203
08.01.2020,MODERNISATION HGF,KENT COUNTY COUNCIL - LASER,"50,346.52",160 TOOLEY ST.,ELECTRICITY,5902396764,1000012926
08.01.2020,MODERNISATION HGF,ROYAL MAIL GROUP LTD,"2,501.70",160 TOOLEY ST.,POSTAGES,5902396606,1000008168
08.01.2020,MODERNISATION HGF,ANTALIS LTD,"2,190.75",160 TOOLEY ST.,STATIONERY,5902396797,1000066919
08.01.2020,MODERNISATION HGF,KENT COUNTY COUNCIL - LASER,581.11,34 PECKHAM ROAD,GAS,5902396719,1000012926
08.01.2020,MODERNISATION HGF,KENT COUNTY COUNCIL - LASER,702.16,47B EAST DULWICH ROAD,GAS,5902396762,1000012926
08.01.2020,MODERNISATION HGF,KENT COUNTY COUNCIL - LASER,"1,486.44",BOURNEMOUTH GROVE,ELECTRICITY,5902396763,1000012926
08.01.2020,MODERNISATION HGF,KENT COUNTY COUNCIL - LASER,"7,769.35",QUEENS RD 1 (BLOCK F),ELECTRICITY,5902396757,1000012926
08.01.2020,MODERNISATION HGF,KENT COUNTY COUNCIL - LASER,"3,808.76",QUEENS ROAD 2 (BLOCK J),ELECTRICITY,5902396796,1000012926
08.01.2020,MODERNISATION HGF,TECHNIMOVE LTD,"10,000.00",REPAIR AND MAINTENANCE SERVICES,DATA COMMUNICATIONS,5902396717,1000081048
08.01.2020,MODERNISATION HGF,EMS EVENTS LTD,"5,142.00",REPAIR AND MAINTENANCE SERVICES,OP LEASE/HIRE CHARGES:PLANT/EQUIP/FURNIT,5902396648,1000057494
08.01.2020,MODERNISATION HGF,HUNTERS CONTRACTS LTD,"2,230.00",REPAIR AND MAINTENANCE SERVICES,FURNITURE PURCHASE & REPAIR,5902396649,1000065904
08.01.2020,MODERNISATION HGF,TECHNIMOVE LTD,"1,000.00",REPAIR AND MAINTENANCE SERVICES,DATA COMMUNICATIONS,5902396717,1000081048
08.01.2020,MODERNISATION HGF,EMS EVENTS LTD,865.5,REPAIR AND MAINTENANCE SERVICES,OP LEASE/HIRE CHARGES:PLANT/EQUIP/FURNIT,5902396648,1000057494
08.01.2020,NEW BUILD,BEACON PARTNERSHIP LLP,"6,050.00",DEVELOPMENT DELIVERY,PROFESSIONAL FEES,5902396758,1000082300
08.01.2020,PLANNING AND TRANSPORT,SOUTHWARK NEWSPAPER LTD,504,DEVELOPMENT CONTROL ADMINSTRATION,MARKETING & PUBLICITY SERVICES,5902396772,1556957
08.01.2020,PLANNING AND TRANSPORT,SOUTHWARK NEWSPAPER LTD,504,DEVELOPMENT CONTROL ADMINSTRATION,MARKETING & PUBLICITY SERVICES,5902396779,1556957
08.01.2020,PLANNING AND TRANSPORT,SOUTHWARK NEWSPAPER LTD,336,DEVELOPMENT CONTROL ADMINSTRATION,MARKETING & PUBLICITY SERVICES,5902396776,1556957
08.01.2020,PLANNING AND TRANSPORT,PREMIER SURVEYS,"3,550.00",TRANSPORT POLICY AND PROGRAMS,CONSULTANTS SERVICES,5902396699,1000075479
08.01.2020,RESIDENT SERVICES,CARLISLE SECURITY SERVICES LTD,"12,925.44",CAMBERWELL,SECURITY SERVICES,5902396538,11212342
08.01.2020,RESIDENT SERVICES,EDF ENERGY PLC,413.04,OPERATIONS/OFFICES ACCOMMODATION,ELECTRICITY,5902396493,1008746
08.01.2020,RESIDENT SERVICES,BRITISH GAS TRADING LTD,396.36,OPERATIONS/OFFICES ACCOMMODATION,ELECTRICITY,5902396622,1000055977
08.01.2020,RESIDENT SERVICES,EDF ENERGY PLC,371.4,OPERATIONS/OFFICES ACCOMMODATION,ELECTRICITY,5902396486,1008746
08.01.2020,RESIDENT SERVICES,EDF ENERGY PLC,322.93,OPERATIONS/OFFICES ACCOMMODATION,ELECTRICITY,5902396466,1008746
08.01.2020,RESIDENT SERVICES,EDF ENERGY PLC,321.47,OPERATIONS/OFFICES ACCOMMODATION,ELECTRICITY,5902396481,1008746
08.01.2020,RESIDENT SERVICES,EDF ENERGY PLC,320.36,OPERATIONS/OFFICES ACCOMMODATION,ELECTRICITY,5902396479,1008746
08.01.2020,RESIDENT SERVICES,EDF ENERGY PLC,308.36,OPERATIONS/OFFICES ACCOMMODATION,ELECTRICITY,5902396472,1008746
08.01.2020,RESIDENT SERVICES,EDF ENERGY PLC,302.45,OPERATIONS/OFFICES ACCOMMODATION,ELECTRICITY,5902396459,1008746
08.01.2020,RESIDENT SERVICES,BRITISH GAS TRADING LTD,288.93,OPERATIONS/OFFICES ACCOMMODATION,ELECTRICITY,5902396705,1000055977
08.01.2020,RESIDENT SERVICES,EDF ENERGY PLC,283.05,OPERATIONS/OFFICES ACCOMMODATION,ELECTRICITY,5902396455,1008746
08.01.2020,RESIDENT SERVICES,EDF ENERGY PLC,280.09,OPERATIONS/OFFICES ACCOMMODATION,ELECTRICITY,5902396477,1008746
08.01.2020,RESIDENT SERVICES,EDF ENERGY PLC,-283.05,OPERATIONS/OFFICES ACCOMMODATION,ELECTRICITY,5902397037,1008746
08.01.2020,RESIDENT SERVICES,EDF ENERGY PLC,-322.93,OPERATIONS/OFFICES ACCOMMODATION,ELECTRICITY,5902397040,1008746
08.01.2020,RESIDENT SERVICES,NATIONWIDE ACCOMMODATION,"5,493.14",TA PLACEMENTS,EXTERNAL AGENCIES AND BODIES,5902396568,1000076112
08.01.2020,RESIDENT SERVICES,EDEN ESTATES LONDON LTD,"3,690.00",TA PLACEMENTS,EXTERNAL AGENCIES AND BODIES,5902396805,1000061217
08.01.2020,RESIDENT SERVICES,VENTURE HOUSING (LONDON) LTD,"3,561.90",TA PLACEMENTS,EXTERNAL AGENCIES AND BODIES,5902396745,1000056686
08.01.2020,RESIDENT SERVICES,VENTURE HOUSING (LONDON) LTD,"3,303.30",TA PLACEMENTS,EXTERNAL AGENCIES AND BODIES,5902396760,1000056686
08.01.2020,RESIDENT SERVICES,J & M OASIS LTD,"2,502.00",TA PLACEMENTS,EXTERNAL AGENCIES AND BODIES,5902396795,1000072169
08.01.2020,RESIDENT SERVICES,RS REAL ESTATE LTD,"1,820.00",TA PLACEMENTS,EXTERNAL AGENCIES AND BODIES,5902396791,1000072485
08.01.2020,RESIDENT SERVICES,NATIONWIDE ACCOMMODATION,"1,791.76",TA PLACEMENTS,EXTERNAL AGENCIES AND BODIES,5902396568,1000076112
08.01.2020,RESIDENT SERVICES,RS REAL ESTATE LTD,"1,470.00",TA PLACEMENTS,EXTERNAL AGENCIES AND BODIES,5902396647,1000072485
08.01.2020,RESIDENT SERVICES,SHUTTLEWORTH (UK) LTD,"1,080.00",TA PLACEMENTS,EXTERNAL AGENCIES AND BODIES,5902396799,1000056468
08.01.2020,RESIDENT SERVICES,CITYGLEN LTD,945,TA PLACEMENTS,EXTERNAL AGENCIES AND BODIES,5902396790,1000026239
08.01.2020,RESIDENT SERVICES,SK HOUSING LTD,260,TA PLACEMENTS,EXTERNAL AGENCIES AND BODIES,5902396793,1000070716
09.01.2020,ADULT SOCIAL CARE,REDACTED PERSONAL DATA,600,APPOINTEESHIPS,OTHER PAYMENTS FOR CLIENTS,REDACTED,REDACTED
09.01.2020,ADULT SOCIAL CARE,CHOICE SUPPORT,"1,543.08",LD LTS 18-64,SUPPORTED LIVING,2103047380,1104183
09.01.2020,ADULT SOCIAL CARE,CHOICE SUPPORT,"1,543.08",LD LTS 18-64,SUPPORTED LIVING,2103047391,1104183
09.01.2020,ADULT SOCIAL CARE,CHOICE SUPPORT,"1,102.20",LD LTS 18-64,SUPPORTED LIVING,2103047420,1104183
09.01.2020,ADULT SOCIAL CARE,CHOICE SUPPORT,"1,102.20",LD LTS 18-64,SUPPORTED LIVING,2103047426,1104183
09.01.2020,ADULT SOCIAL CARE,CHOICE SUPPORT,808.28,LD LTS 18-64,SUPPORTED LIVING,2103047406,1104183
09.01.2020,ADULT SOCIAL CARE,CHOICE SUPPORT,808.28,LD LTS 18-64,SUPPORTED LIVING,2103047411,1104183
09.01.2020,ADULT SOCIAL CARE,CHOICE SUPPORT,661.32,LD LTS 18-64,SUPPORTED LIVING,2103047381,1104183
09.01.2020,ADULT SOCIAL CARE,CHOICE SUPPORT,661.32,LD LTS 18-64,SUPPORTED LIVING,2103047384,1104183
09.01.2020,ADULT SOCIAL CARE,CHOICE SUPPORT,514.36,LD LTS 18-64,SUPPORTED LIVING,2103047393,1104183
09.01.2020,ADULT SOCIAL CARE,CHOICE SUPPORT,514.36,LD LTS 18-64,SUPPORTED LIVING,2103047396,1104183
09.01.2020,ADULT SOCIAL CARE,CHOICE SUPPORT,514.36,LD LTS 18-64,SUPPORTED LIVING,2103047419,1104183
09.01.2020,ADULT SOCIAL CARE,CHOICE SUPPORT,514.36,LD LTS 18-64,SUPPORTED LIVING,2103047431,1104183
09.01.2020,ADULT SOCIAL CARE,CHOICE SUPPORT,440.88,LD LTS 18-64,SUPPORTED LIVING,2103047383,1104183
09.01.2020,ADULT SOCIAL CARE,CHOICE SUPPORT,440.88,LD LTS 18-64,SUPPORTED LIVING,2103047386,1104183
09.01.2020,ADULT SOCIAL CARE,CHOICE SUPPORT,440.88,LD LTS 18-64,SUPPORTED LIVING,2103047413,1104183
09.01.2020,ADULT SOCIAL CARE,CHOICE SUPPORT,440.88,LD LTS 18-64,SUPPORTED LIVING,2103047424,1104183
09.01.2020,ADULT SOCIAL CARE,CHOICE SUPPORT,367.4,LD LTS 18-64,SUPPORTED LIVING,2103047397,1104183
09.01.2020,ADULT SOCIAL CARE,CHOICE SUPPORT,367.4,LD LTS 18-64,SUPPORTED LIVING,2103047415,1104183
09.01.2020,ADULT SOCIAL CARE,CHOICE SUPPORT,367.4,LD LTS 18-64,SUPPORTED LIVING,2103047427,1104183
09.01.2020,ADULT SOCIAL CARE,CHOICE SUPPORT,367.4,LD LTS 18-64,SUPPORTED LIVING,2103047429,1104183
09.01.2020,ADULT SOCIAL CARE,CHOICE SUPPORT,293.92,LD LTS 18-64,SUPPORTED LIVING,2103047400,1104183
09.01.2020,ADULT SOCIAL CARE,CHOICE SUPPORT,293.92,LD LTS 18-64,SUPPORTED LIVING,2103047404,1104183
09.01.2020,ADULT SOCIAL CARE,CHOICE SUPPORT,293.92,LD LTS 18-64,SUPPORTED LIVING,2103047410,1104183
09.01.2020,ADULT SOCIAL CARE,CHOICE SUPPORT,293.92,LD LTS 18-64,SUPPORTED LIVING,2103047414,1104183
09.01.2020,ADULT SOCIAL CARE,CHOICE SUPPORT,293.92,LD LTS 18-64,SUPPORTED LIVING,2103047418,1104183
09.01.2020,ADULT SOCIAL CARE,CHOICE SUPPORT,293.92,LD LTS 18-64,SUPPORTED LIVING,2103047425,1104183
09.01.2020,ADULT SOCIAL CARE,CHOICE SUPPORT,"6,935.52",LD LTS 65+,SUPPORTED LIVING,2103047389,1104183
09.01.2020,ADULT SOCIAL CARE,CHOICE SUPPORT,"6,935.52",LD LTS 65+,SUPPORTED LIVING,2103047408,1104183
09.01.2020,ADULT SOCIAL CARE,CHOICE SUPPORT,440.88,LD LTS 65+,SUPPORTED LIVING,2103047394,1104183
09.01.2020,ADULT SOCIAL CARE,CHOICE SUPPORT,440.88,LD LTS 65+,SUPPORTED LIVING,2103047402,1104183
09.01.2020,ADULT SOCIAL CARE,BLISSETT CARE LTD,"2,026.24",MEM LTS 65+,HOMECARE - C&V,2103047355,1000042627
09.01.2020,ADULT SOCIAL CARE,BLISSETT CARE LTD,370.38,MEM LTS 65+,HOMECARE - C&V,2103047374,1000042627
09.01.2020,ADULT SOCIAL CARE,BLISSETT CARE LTD,583.97,MH LTS 65+,HOMECARE - C&V,2103047346,1000042627
09.01.2020,ADULT SOCIAL CARE,BLISSETT CARE LTD,538.67,MH LTS 65+,HOMECARE - C&V,2103047369,1000042627
09.01.2020,ADULT SOCIAL CARE,CHOICE SUPPORT,293.92,MH LTS 65+,SUPPORTED LIVING,2103047385,1104183
09.01.2020,ADULT SOCIAL CARE,CHOICE SUPPORT,293.92,MH LTS 65+,SUPPORTED LIVING,2103047401,1104183
09.01.2020,ADULT SOCIAL CARE,BLISSETT CARE LTD,274.52,MH LTS 65+,HOMECARE - C&V,2103047362,1000042627
09.01.2020,ADULT SOCIAL CARE,SWK DISABLEMENT ASSN,"1,714.98",PHY LTS 18-64,HOMECARE - SPOT,2103047448,1000011698
09.01.2020,ADULT SOCIAL CARE,BLISSETT CARE LTD,"1,347.34",PHY LTS 18-64,HOMECARE - C&V,2103047373,1000042627
09.01.2020,ADULT SOCIAL CARE,SWK DISABLEMENT ASSN,"1,277.75",PHY LTS 18-64,HOMECARE - SPOT,2103047443,1000011698
09.01.2020,ADULT SOCIAL CARE,BLISSETT CARE LTD,"1,080.93",PHY LTS 18-64,HOMECARE - C&V,2103047315,1000042627
09.01.2020,ADULT SOCIAL CARE,BLISSETT CARE LTD,910.82,PHY LTS 18-64,HOMECARE - C&V,2103047370,1000042627
09.01.2020,ADULT SOCIAL CARE,BLISSETT CARE LTD,780.18,PHY LTS 18-64,HOMECARE - C&V,2103047339,1000042627
09.01.2020,ADULT SOCIAL CARE,BLISSETT CARE LTD,740.68,PHY LTS 18-64,HOMECARE - C&V,2103047366,1000042627
09.01.2020,ADULT SOCIAL CARE,SWK DISABLEMENT ASSN,577.32,PHY LTS 18-64,HOMECARE - SPOT,2103047441,1000011698
09.01.2020,ADULT SOCIAL CARE,BLISSETT CARE LTD,575.15,PHY LTS 18-64,HOMECARE - C&V,2103047323,1000042627
09.01.2020,ADULT SOCIAL CARE,BLISSETT CARE LTD,497.05,PHY LTS 18-64,HOMECARE - C&V,2103047361,1000042627
09.01.2020,ADULT SOCIAL CARE,BLISSETT CARE LTD,485.17,PHY LTS 18-64,HOMECARE - C&V,2103047321,1000042627
09.01.2020,ADULT SOCIAL CARE,BLISSETT CARE LTD,475.21,PHY LTS 18-64,HOMECARE - C&V,2103047376,1000042627
09.01.2020,ADULT SOCIAL CARE,SWK DISABLEMENT ASSN,356.58,PHY LTS 18-64,HOMECARE - SPOT,2103047436,1000011698
09.01.2020,ADULT SOCIAL CARE,BLISSETT CARE LTD,331.19,PHY LTS 18-64,HOMECARE - C&V,2103047368,1000042627
09.01.2020,ADULT SOCIAL CARE,BLISSETT CARE LTD,"3,394.26",PHY LTS 65+,HOMECARE - C&V,2103047367,1000042627
09.01.2020,ADULT SOCIAL CARE,BLISSETT CARE LTD,"2,706.11",PHY LTS 65+,HOMECARE - C&V,2103047337,1000042627
09.01.2020,ADULT SOCIAL CARE,BLISSETT CARE LTD,"2,026.70",PHY LTS 65+,HOMECARE - C&V,2103047352,1000042627
09.01.2020,ADULT SOCIAL CARE,BLISSETT CARE LTD,"1,805.40",PHY LTS 65+,HOMECARE - C&V,2103047331,1000042627
09.01.2020,ADULT SOCIAL CARE,BLISSETT CARE LTD,"1,316.15",PHY LTS 65+,HOMECARE - C&V,2103047357,1000042627
09.01.2020,ADULT SOCIAL CARE,BLISSETT CARE LTD,"1,268.43",PHY LTS 65+,HOMECARE - C&V,2103047359,1000042627
09.01.2020,ADULT SOCIAL CARE,SWK DISABLEMENT ASSN,"1,188.60",PHY LTS 65+,HOMECARE - SPOT,2103047446,1000011698
09.01.2020,ADULT SOCIAL CARE,BLISSETT CARE LTD,"1,115.75",PHY LTS 65+,HOMECARE - C&V,2103047325,1000042627
09.01.2020,ADULT SOCIAL CARE,BLISSETT CARE LTD,"1,085.35",PHY LTS 65+,HOMECARE - C&V,2103047333,1000042627
09.01.2020,ADULT SOCIAL CARE,BLISSETT CARE LTD,"1,069.45",PHY LTS 65+,HOMECARE - C&V,2103047335,1000042627
09.01.2020,ADULT SOCIAL CARE,BLISSETT CARE LTD,"1,026.88",PHY LTS 65+,HOMECARE - C&V,2103047378,1000042627
09.01.2020,ADULT SOCIAL CARE,BLISSETT CARE LTD,976.28,PHY LTS 65+,HOMECARE - C&V,2103047341,1000042627
09.01.2020,ADULT SOCIAL CARE,BLISSETT CARE LTD,967.61,PHY LTS 65+,HOMECARE - C&V,2103047363,1000042627
09.01.2020,ADULT SOCIAL CARE,BLISSETT CARE LTD,950.14,PHY LTS 65+,HOMECARE - C&V,2103047327,1000042627
09.01.2020,ADULT SOCIAL CARE,BLISSETT CARE LTD,940.06,PHY LTS 65+,HOMECARE - C&V,2103047329,1000042627
09.01.2020,ADULT SOCIAL CARE,SWK DISABLEMENT ASSN,933.9,PHY LTS 65+,HOMECARE - SPOT,2103047444,1000011698
09.01.2020,ADULT SOCIAL CARE,SWK DISABLEMENT ASSN,882.96,PHY LTS 65+,HOMECARE - SPOT,2103047440,1000011698
09.01.2020,ADULT SOCIAL CARE,BLISSETT CARE LTD,823.98,PHY LTS 65+,HOMECARE - C&V,2103047372,1000042627
09.01.2020,ADULT SOCIAL CARE,BLISSETT CARE LTD,806.35,PHY LTS 65+,HOMECARE - C&V,2103047360,1000042627
09.01.2020,ADULT SOCIAL CARE,BLISSETT CARE LTD,726.97,PHY LTS 65+,HOMECARE - C&V,2103047354,1000042627
09.01.2020,ADULT SOCIAL CARE,SWK DISABLEMENT ASSN,721.65,PHY LTS 65+,HOMECARE - SPOT,2103047445,1000011698
09.01.2020,ADULT SOCIAL CARE,BLISSETT CARE LTD,692.93,PHY LTS 65+,HOMECARE - C&V,2103047347,1000042627
09.01.2020,ADULT SOCIAL CARE,SWK DISABLEMENT ASSN,679.2,PHY LTS 65+,HOMECARE - SPOT,2103047435,1000011698
09.01.2020,ADULT SOCIAL CARE,BLISSETT CARE LTD,618.95,PHY LTS 65+,HOMECARE - C&V,2103047356,1000042627
09.01.2020,ADULT SOCIAL CARE,BLISSETT CARE LTD,599.79,PHY LTS 65+,HOMECARE - C&V,2103047365,1000042627
09.01.2020,ADULT SOCIAL CARE,BLISSETT CARE LTD,592.69,PHY LTS 65+,HOMECARE - C&V,2103047377,1000042627
09.01.2020,ADULT SOCIAL CARE,SWK DISABLEMENT ASSN,534.87,PHY LTS 65+,HOMECARE - SPOT,2103047447,1000011698
09.01.2020,ADULT SOCIAL CARE,BLISSETT CARE LTD,505.68,PHY LTS 65+,HOMECARE - C&V,2103047351,1000042627
09.01.2020,ADULT SOCIAL CARE,BLISSETT CARE LTD,366.22,PHY LTS 65+,HOMECARE - C&V,2103047344,1000042627
09.01.2020,ADULT SOCIAL CARE,BLISSETT CARE LTD,357.26,PHY LTS 65+,HOMECARE - C&V,2103047345,1000042627
09.01.2020,ADULT SOCIAL CARE,SWK DISABLEMENT ASSN,356.58,PHY LTS 65+,HOMECARE - SPOT,2103047442,1000011698
09.01.2020,ADULT SOCIAL CARE,BLISSETT CARE LTD,339.87,PHY LTS 65+,HOMECARE - C&V,2103047313,1000042627
09.01.2020,ADULT SOCIAL CARE,BLISSETT CARE LTD,304.99,PHY LTS 65+,HOMECARE - C&V,2103047318,1000042627
09.01.2020,ADULT SOCIAL CARE,CHOICE SUPPORT,293.92,PHY LTS 65+,SUPPORTED LIVING,2103047399,1104183
09.01.2020,ADULT SOCIAL CARE,CHOICE SUPPORT,293.92,PHY LTS 65+,SUPPORTED LIVING,2103047428,1104183
09.01.2020,ADULT SOCIAL CARE,SWK DISABLEMENT ASSN,271.68,PHY LTS 65+,HOMECARE - SPOT,2103047438,1000011698
09.01.2020,ADULT SOCIAL CARE,BLISSETT CARE LTD,459.87,SEN LTS 65+,HOMECARE - C&V,2103047364,1000042627
09.01.2020,ADULT SOCIAL CARE,SWK DISABLEMENT ASSN,602.79,SOCIAL ISOLATION,HOMECARE - SPOT,2103047449,1000011698
09.01.2020,ADULT SOCIAL CARE,BLISSETT CARE LTD,309.49,SOCIAL ISOLATION,HOMECARE - C&V,2103047358,1000042627
09.01.2020,ASSET MANAGEMENT,SINCLAIR JOHNSTON & PARTNERS LTD,647.5,MAJOR REPAIRS,BUILDING R&M,5902396840,1000052146
09.01.2020,ASSET MANAGEMENT,STABILIS ASSOCIATES LTD,"7,843.92",REPAIRS OPERATIONS,PROFESSIONAL FEES,5902397000,1000082512
09.01.2020,CHIEF EXECUTIVE,STREET TREE CARE LTD,"11,313.00",CAPITAL PS (REGEN),CONSTRUCTION FEES  - EXTERNAL,2103047502,3000001537
09.01.2020,CHIEF EXECUTIVE,CONWAY AECOM LTD,598.69,CAPITAL PS (REGEN),CONSTRUCTION MAIN CONTRACT,5902396992,1000071205
09.01.2020,CHILDREN'S SERVICES,JESSICA SPENCELEY,"5,196.00",ADOPTION REFORM GRANT (PART B),PROFESSIONAL FEES,5902397008,1000081456
09.01.2020,CHILDREN'S SERVICES,SARAH DISSPAIN,"1,380.00",CLINICAL SERVICE,PROFESSIONAL FEES,5902396833,1000082401
09.01.2020,CHILDREN'S SERVICES,OKIE ADEBANJO,999.62,FAMILY GROUP CONFERENCES,PROFESSIONAL FEES,5902397004,1000082484
09.01.2020,CHILDREN'S SERVICES,OKIE ADEBANJO,921.14,FAMILY GROUP CONFERENCES,PROFESSIONAL FEES,5902397005,1000082484
09.01.2020,CHILDREN'S SERVICES,REDACTED PERSONAL DATA,300,FRIENDS & FAMILY FOSTERING,OTHER PAYMENTS FOR CLIENTS,REDACTED,REDACTED
09.01.2020,CHILDREN'S SERVICES,REDACTED PERSONAL DATA,-300,FRIENDS & FAMILY FOSTERING,OTHER PAYMENTS FOR CLIENTS,REDACTED,REDACTED
09.01.2020,CHILDREN'S SERVICES,MIME CONSULTING LTD,"7,333.37",MANAGEMENT AND SUPPORT,PROFESSIONAL FEES,5902396866,1000057079
09.01.2020,CHILDREN'S SERVICES,TFL TELESALES / OYSTER FULFILMENT,350,MANAGEMENT SAFEE,PUBLIC TRANSPORT,5902396817,1000059727
09.01.2020,CHILDREN'S SERVICES,ROYAL VILLAGE DAY NURSERY,406,S & FAM SUPP - PRAC GRP E SET 26-28,OTHER PAYMENTS FOR CLIENTS,5902396814,1000082242
09.01.2020,CHILDREN'S SERVICES,ACHIEVING FOR CHILDREN,"9,266.88",SCH TRANS - CONTRACT COST,RECOUPMENT,5902396883,1000077253
09.01.2020,CHILDREN'S SERVICES,ACHIEVING FOR CHILDREN,"9,072.00",SCH TRANS - CONTRACT COST,RECOUPMENT,5902396880,1000077253
09.01.2020,CHILDREN'S SERVICES,LONDON BOROUGH OF CROYDON,"3,954.88",SCH TRANS - CONTRACT COST,RECOUPMENT,5902396825,1000055084
09.01.2020,CHILDREN'S SERVICES,LONDON BOROUGH OF CROYDON,"2,966.16",SCH TRANS - CONTRACT COST,RECOUPMENT,5902396824,1000055084
09.01.2020,CHILDREN'S SERVICES,REDACTED PERSONAL DATA,800,SCH TRANS - CONTRACT COST,OTHER PAYMENTS FOR CLIENTS,REDACTED,REDACTED
09.01.2020,CHILDREN'S SERVICES,REDACTED PERSONAL DATA,"1,645.00",SEMI INDEPENDENT CARE LEAVERS,OTHER PAYMENTS FOR CLIENTS,REDACTED,REDACTED
09.01.2020,COMMUNITIES,TWO TOWERS HOUSING CO-OP LTD,300,TWO TOWERS,M&M ALLOWANCE CO-OPS,5902396835,1000006843
09.01.2020,COMMUNITIES PROJECTS,COBOURG PRIMARY SCHOOL,"1,500.00",SYRIAN REFUGEE RESETTLEMENT,GRANTS,5902396875,5001000021
09.01.2020,CUSTOMER EXPERIENCE HGF,CORONERS' COURTS SUPPORT SERVICE,"1,392.00",CORONER'S,PROFESSIONAL FEES,5902396872,1000077579
09.01.2020,CUSTOMER EXPERIENCE HGF,CEDAR HOUSING SOLUTIONS LTD,"3,000.00",HOMELESS PROJECTS,GRANTS,5902396841,1000080014
09.01.2020,CUSTOMER EXPERIENCE HGF,BERNARD & WELLS LTD,"3,000.00",HOMELESS PROJECTS,GRANTS,5902396849,1000076235
09.01.2020,CUSTOMER EXPERIENCE HGF,BERNARD & WELLS LTD,"3,000.00",HOMELESS PROJECTS,GRANTS,5902396854,1000076235
09.01.2020,CUSTOMER EXPERIENCE HGF,BERNARD & WELLS LTD,"3,000.00",HOMELESS PROJECTS,GRANTS,5902396857,1000076235
09.01.2020,CUSTOMER EXPERIENCE HGF,BIRCHAM DYSON BELL,"3,640.00",LONDON BRIDGE INQUEST,LEGAL FEES & COURT COSTS,5902396591,1000048605
09.01.2020,CUSTOMER EXPERIENCE HGF,HOMES2LET UK LTD,"19,400.65",NIGHTLY TA (NSC),EXTERNAL AGENCIES AND BODIES,5902396944,1000079868
09.01.2020,CUSTOMER EXPERIENCE HGF,NATIONWIDE ACCOMMODATION,"32,000.00",PSL PLACEMENTS,EXTERNAL AGENCIES AND BODIES,5902396859,1000076112
09.01.2020,CUSTOMER EXPERIENCE HGF,TUNSTALL HEALTHCARE (UK) LTD,"2,245.00",SMART MOBILE RESPONSE TEAM,SUBSCRIPTIONS,5902396874,1012297
09.01.2020,ENVIRONMENT AND LEISURE,SUTCLIFFE PLAY LTD,"11,073.86",CAPITAL PS (LEISURE),CONSTRUCTION FEES  - EXTERNAL,2103047498,3000002083
09.01.2020,ENVIRONMENT AND LEISURE,SUTCLIFFE PLAY LTD,"5,128.20",CAPITAL PS (LEISURE),CONSTRUCTION FEES  - EXTERNAL,2103047499,3000002083
09.01.2020,ENVIRONMENT DIRECTORATE,KENT COUNTY COUNCIL - LASER,529.63,BUSINESS CORE,GAS,5902396906,1000012926
09.01.2020,ENVIRONMENT DIRECTORATE,KENT COUNTY COUNCIL - LASER,885.9,COLUMNS - MINOR ROADS,ELECTRICITY,5902396904,1000012926
09.01.2020,ENVIRONMENT DIRECTORATE,KENT COUNTY COUNCIL - LASER,743.68,COLUMNS - MINOR ROADS,ELECTRICITY,5902396902,1000012926
09.01.2020,ENVIRONMENT DIRECTORATE,KENT COUNTY COUNCIL - LASER,-743.68,COLUMNS - MINOR ROADS,ELECTRICITY,5902396903,1000012926
09.01.2020,ENVIRONMENT DIRECTORATE,RYGOR COMMERCIALS LIMITED,"4,416.00",COMMERCIAL VEH CTRL A/C,HIRED VEHICLES,5902396836,1000063262
09.01.2020,ENVIRONMENT DIRECTORATE,DAWSON RENTALS SWEEPERS,"1,270.00",COMMERCIAL VEH CTRL A/C,HIRED VEHICLES,5902396930,1000068168
09.01.2020,ENVIRONMENT DIRECTORATE,SHB HIRE LTD,647.67,COMMERCIAL VEH CTRL A/C,HIRED VEHICLES,5902396928,11319628
09.01.2020,ENVIRONMENT DIRECTORATE,E. H. ROBERTS - PENET GROUP LTD,509.5,COMMERCIAL VEH CTRL A/C,VEHICLE REPAIRS & MAINTENANCE,5902396909,1000082787
09.01.2020,ENVIRONMENT DIRECTORATE,LONDON HIRE T/A R J MOTORS,447.53,COMMERCIAL VEH CTRL A/C,VEHICLE REPAIRS & MAINTENANCE,5902396946,1000047106
09.01.2020,ENVIRONMENT DIRECTORATE,E. H. ROBERTS - PENET GROUP LTD,339,COMMERCIAL VEH CTRL A/C,VEHICLE REPAIRS & MAINTENANCE,5902396911,1000082787
09.01.2020,ENVIRONMENT DIRECTORATE,SHB HIRE LTD,308,COMMERCIAL VEH CTRL A/C,HIRED VEHICLES,5902396929,11319628
09.01.2020,ENVIRONMENT DIRECTORATE,DAWSONGROUP VANS LTD,258.85,COMMERCIAL VEH CTRL A/C,HIRED VEHICLES,5902396931,1000082230
09.01.2020,ENVIRONMENT DIRECTORATE,E. H. ROBERTS - PENET GROUP LTD,258.5,COMMERCIAL VEH CTRL A/C,HIRED VEHICLES,5902396910,1000082787
09.01.2020,ENVIRONMENT DIRECTORATE,TRINITY FIRE & SECURITY SYSTEMS LTD,"1,251.94",DEPOT COSTS,MEDICAL / HEALTH & SAFETY SERVICES,5902396862,1000083229
09.01.2020,ENVIRONMENT DIRECTORATE,TRINITY FIRE & SECURITY SYSTEMS LTD,"1,087.60",DEPOT COSTS,MEDICAL / HEALTH & SAFETY SERVICES,5902396665,1000083229
09.01.2020,ENVIRONMENT DIRECTORATE,R H  ENVIRONMENTAL LTD,"2,121.00",EH & TS MANAGER,SUBSCRIPTIONS,5902396819,1000070361
09.01.2020,ENVIRONMENT DIRECTORATE,JAAMA LTD,380.55,FLEET SERVICES MANAGEMENT,COMPUTER MAINTENANCE,5902396986,1000080704
09.01.2020,ENVIRONMENT DIRECTORATE,CASTLE WATER LTD,252.36,MANAGEMENT TEAM,WATER,5902396818,1000078867
09.01.2020,ENVIRONMENT DIRECTORATE,AGENTIS WORKWEAR LTD,860.6,PUBLIC LIGHTING,"CLOTHING, UNIFORMS & LAUNDRY",5902396996,1000065561
09.01.2020,ENVIRONMENT DIRECTORATE,SIEMENS PLC,700,PUBLIC LIGHTING,OTHER CONTRACTORS,5902396952,1000048904
09.01.2020,ENVIRONMENT DIRECTORATE,CROMWELL POLYTHENE LTD,"1,333.68",STREET CLEANING-GENERAL,MATERIALS,5902396831,1000021159
09.01.2020,ENVIRONMENT DIRECTORATE,AGENTIS WORKWEAR LTD,389.6,WINTER MAINTENANCE TERM,HIGHWAYS TERM CONTRACT,5902396994,1000065561
09.01.2020,EXCHEQUER SERVICES,DSI BILLING SERVICES LTD,"1,649.42",ADMINISTRATIVE SUPPORT,POSTAGES,5902396934,1000058640
09.01.2020,EXCHEQUER SERVICES,CAPITA BUSINESS SERVICES LTD,"1,625.00",ADMINISTRATIVE SUPPORT,EQUIPMENT PURCHASE & REPAIR,5902396943,1000006291
09.01.2020,EXCHEQUER SERVICES,DSI BILLING SERVICES LTD,"1,615.51",ADMINISTRATIVE SUPPORT,POSTAGES,5902396968,1000058640
09.01.2020,EXCHEQUER SERVICES,MRO PEOPLE LTD,800,ADMINISTRATIVE SUPPORT,TRAINING,5902396919,1000083017
09.01.2020,EXCHEQUER SERVICES,WINSHUTTLE UK LTD,"14,137.50",FC&P QUALITY & PERFORMANCE,OFFICE EXPENSES,5902396896,1000059368
09.01.2020,EXCHEQUER SERVICES,WINSHUTTLE UK LTD,"3,618.24",FC&P QUALITY & PERFORMANCE,OFFICE EXPENSES,5902396896,1000059368
09.01.2020,HOUSING GENERAL FUND,DAVID MILES & PARTNERS LTD,"6,000.00",CAPITAL PS (REGEN),CONSTRUCTION,5902396724,1000001119
09.01.2020,HOUSING GENERAL FUND,LIBRA CONSTRUCTION SERVICES LTD,750,CAPITAL PS (REGEN),PLANNING & S106 FEES,2103047503,3000000875
09.01.2020,HOUSING HRA,STANDAGE & CO LTD,"207,063.90",CAPITAL PS (HRA),CONSTRUCTION MAIN CONTRACT -CERTIFICATED,2103047500,4002817
09.01.2020,HOUSING HRA,PLOWMAN CRAVEN LIMITED,"12,500.00",CAPITAL PS (HRA),CONSTRUCTION FEES  - EXTERNAL,5902396838,1000050360
09.01.2020,HOUSING HRA,PELLINGS LLP,"6,175.01",CAPITAL PS (HRA),CONSTRUCTION FEES  - EXTERNAL,5902396951,1009262
09.01.2020,HOUSING HRA,HERRINGTON CONSULTING LTD,"2,650.00",CAPITAL PS (HRA),CONSTRUCTION FEES  - EXTERNAL,5902396863,1000070453
09.01.2020,HOUSING HRA,POINT 2 SURVEYORS LTD,"2,000.00",CAPITAL PS (HRA),CONSTRUCTION FEES  - EXTERNAL,5902396915,1000076513
09.01.2020,HOUSING HRA,CALFORD SEADEN LLP,588,CAPITAL PS (HRA),CONSTRUCTION FEES  - EXTERNAL,5902396982,1061592
09.01.2020,HOUSING HRA,TROWERS & HAMLINS LLP,"3,443.70",CAPITAL PS (REGEN),CONSTRUCTION FEES - LEGAL,5902396999,1000016239
09.01.2020,HOUSING HRA,TROWERS & HAMLINS LLP,"2,712.68",CAPITAL PS (REGEN),CONSTRUCTION FEES - LEGAL,5902396999,1000016239
09.01.2020,HOUSING HRA,TROWERS & HAMLINS LLP,"2,442.56",CAPITAL PS (REGEN),CONSTRUCTION FEES - LEGAL,5902396999,1000016239
09.01.2020,HOUSING HRA,TROWERS & HAMLINS LLP,"2,442.56",CAPITAL PS (REGEN),CONSTRUCTION FEES - LEGAL,5902396999,1000016239
09.01.2020,HOUSING HRA,TROWERS & HAMLINS LLP,"2,442.56",CAPITAL PS (REGEN),CONSTRUCTION FEES - LEGAL,5902396999,1000016239
09.01.2020,HOUSING HRA,TROWERS & HAMLINS LLP,"2,442.56",CAPITAL PS (REGEN),CONSTRUCTION FEES - LEGAL,5902396999,1000016239
09.01.2020,HOUSING HRA,TROWERS & HAMLINS LLP,"2,442.55",CAPITAL PS (REGEN),CONSTRUCTION FEES - LEGAL,5902396999,1000016239
09.01.2020,HOUSING HRA,TROWERS & HAMLINS LLP,"1,499.68",CAPITAL PS (REGEN),CONSTRUCTION FEES - LEGAL,5902396999,1000016239
09.01.2020,LAW & DEMOCRACY,THOMSON REUTERS PROFESSIONAL UK LTD,401,LEGAL SVCES MANAGEMENT,BOOKS & PUBLICATIONS,5902396966,1000000130
09.01.2020,LEISURE DIRECTORATE,USTIGATE,895,BURGESS AREA TEAM,GROUNDS MAINTENANCE,5902396939,1000064223
09.01.2020,LEISURE DIRECTORATE,TOTAL GAS & POWER LIMITED,441.98,BURGESS AREA TEAM,GAS,5902396945,1000054198
09.01.2020,LEISURE DIRECTORATE,SOUTHWARK PRIDE BASKETBALL CLUB,"1,000.00",COMMUNITY SPORTS DEVELOPMENT,GRANTS,5902396820,1000068180
09.01.2020,LEISURE DIRECTORATE,VIVEDIA LIMITED,745,CREMATORIUM,SUBSCRIPTIONS,5902396392,1000064867
09.01.2020,LEISURE DIRECTORATE,QUADRON SERVICES LIMITED,"1,229.01",DULWICH AREA TEAM,GROUNDS MAINTENANCE,5902396870,1000066528
09.01.2020,LEISURE DIRECTORATE,LONDON WILDLIFE TRUST,"7,620.00",ENVIRONMENT & LEISURE GRANTS,OTHER CONTRACTORS,5902396860,1000031606
09.01.2020,LEISURE DIRECTORATE,SPORTS AND LEISURE MANAGEMENT LTD,"5,471.00",FACILITIES MAINTENANCE,BUILDING R&M,5902396853,1000077862
09.01.2020,LEISURE DIRECTORATE,C S G (USHERS) LTD,"2,668.50",TREES PRINCIPAL ROADS,OTHER CONTRACTORS,5902396889,1000073203
09.01.2020,LEISURE DIRECTORATE,HATS GROUP LTD,500,YOUTH WORK TEAM,HIRED VEHICLES,5902396995,1000042743
09.01.2020,MODERNISATION HGF,ROYAL MAIL GROUP LTD,"2,084.25",160 TOOLEY ST.,POSTAGES,5902396577,1000008168
09.01.2020,MODERNISATION HGF,KENT COUNTY COUNCIL - LASER,700.78,7 TALFOURD ROAD,ELECTRICITY,5902396845,1000012926
09.01.2020,MODERNISATION HGF,KENT COUNTY COUNCIL - LASER,344.22,7 TALFOURD ROAD,GAS,5902396983,1000012926
09.01.2020,MODERNISATION HGF,KENT COUNTY COUNCIL - LASER,"2,634.59",BOURNEMOUTH GROVE,ELECTRICITY,5902396942,1000012926
09.01.2020,MODERNISATION HGF,CASTLE WATER LTD,797.02,BOURNEMOUTH GROVE,WATER,5902396887,1000078867
09.01.2020,MODERNISATION HGF,KENT COUNTY COUNCIL - LASER,483.73,BOURNEMOUTH GROVE,GAS,5902396940,1000012926
09.01.2020,MODERNISATION HGF,QUADRILECT LTD,835,CFM OPERATIONAL BUDGET,TRAINING,5902396877,11307825
09.01.2020,MODERNISATION HGF,INTERSERVE (FACILITIES MANAGEMENT),"84,098.92",FM SERVICES BY INTERSERVE,SECURITY SERVICES,5902396961,1000070792
09.01.2020,MODERNISATION HGF,INTERSERVE (FACILITIES MANAGEMENT),"5,455.93",FM SERVICES BY INTERSERVE,BUILDING R&M,5902396959,1000070792
09.01.2020,MODERNISATION HGF,PULSE CORPORATION LTD,437.5,REPAIR AND MAINTENANCE SERVICES,HARDWARE,5902396867,1000072911
09.01.2020,MODERNISATION HGF,COMENSURA LTD,"380,539.97",WEEKLY PAYMENTS,AGENCY STAFF,5902396962,1000051261
09.01.2020,REGENERATION,MK BIM SOLUTIONS LTD,"1,400.00",OKR MASTER PLANNING,MARKETING & PUBLICITY SERVICES,5902396861,1000083530
09.01.2020,RESIDENT SERVICES,THOMSON REUTERS PROFESSIONAL UK LTD,545,OPERATIONS/OFFICES ACCOMMODATION,BOOKS & PUBLICATIONS,5902396963,1000000130
09.01.2020,RESIDENT SERVICES,EDF ENERGY PLC,377.58,OPERATIONS/OFFICES ACCOMMODATION,ELECTRICITY,2103047730,1008746
09.01.2020,RESIDENT SERVICES,EDF ENERGY PLC,359.6,OPERATIONS/OFFICES ACCOMMODATION,ELECTRICITY,2103047735,1008746
09.01.2020,RESIDENT SERVICES,OFFICE DEPOT UK LTD,324.46,OPERATIONS/OFFICES ACCOMMODATION,STATIONERY,5902396984,1109426
09.01.2020,RESIDENT SERVICES,EDF ENERGY PLC,-359.6,OPERATIONS/OFFICES ACCOMMODATION,ELECTRICITY,2103047731,1008746
09.01.2020,RESIDENT SERVICES,EDF ENERGY PLC,-377.58,OPERATIONS/OFFICES ACCOMMODATION,ELECTRICITY,2103047526,1008746
09.01.2020,RESIDENT SERVICES,PINNACLE POWER LTD,"3,099.49",PRIVATE SERVICE CHARGES,SERVICE CHARGES,5902396938,1000081494
09.01.2020,RESIDENT SERVICES,PINNACLE POWER LTD,"2,999.50",PRIVATE SERVICE CHARGES,SERVICE CHARGES,5902396937,1000081494
09.01.2020,SOUTHWARK BUILDING SERVICES,CALLOW MASTER LOCKSMITHS,758.03,STORES/LOGISTICS,CREDITORS -GR/IR CLEARING ACCOUNT,5902396868,11179552
09.01.2020,SOUTHWARK BUILDING SERVICES,CALLOW MASTER LOCKSMITHS,541.12,STORES/LOGISTICS,CREDITORS -GR/IR CLEARING ACCOUNT,5902396869,11179552
09.01.2020,SOUTHWARK BUILDING SERVICES,CALLOW MASTER LOCKSMITHS,444.3,STORES/LOGISTICS,CREDITORS -GR/IR CLEARING ACCOUNT,5902396869,11179552
09.01.2020,SOUTHWARK BUILDING SERVICES,CALLOW MASTER LOCKSMITHS,289.86,STORES/LOGISTICS,CREDITORS -GR/IR CLEARING ACCOUNT,5902396869,11179552
09.01.2020,SOUTHWARK SCHOOL FOR FUTURE,GILBERT-ASH LIMITED,"384,934.41",CAPITAL PS (REGEN),CONSTRUCTION,2103047501,3000002111
10.01.2020,ADULT SOCIAL CARE,REDACTED PERSONAL DATA,488,APPOINTEESHIPS,OTHER PAYMENTS FOR CLIENTS,REDACTED,REDACTED
10.01.2020,ADULT SOCIAL CARE,ASTER HEALTHCARE LTD,"2,981.26",DIR OF ASC,NURSING PLACEMENTS FEES,2103048321,1000076296
10.01.2020,ADULT SOCIAL CARE,INSPIRE SUPPORT WORKERS LTD,"3,850.00",LD LTS 18-64,SUPPORTED LIVING,2103047685,1000080725
10.01.2020,ADULT SOCIAL CARE,ACCESS MOBILITY TRANSPORT LTD,"1,964.80",LD LTS 18-64,CLIENT TRANSPORT,2103047684,1000074637
10.01.2020,ADULT SOCIAL CARE,INSPIRE SUPPORT WORKERS LTD,"1,836.00",LD LTS 18-64,SUPPORTED LIVING,2103047673,1000080725
10.01.2020,ADULT SOCIAL CARE,SHARE COMMUNITY LTD,780,LD LTS 18-64,DAYCARE,2103047696,1000062408
10.01.2020,ADULT SOCIAL CARE,THE FRANCES TAYLOR FOUNDATION,742.2,LD LTS 18-64,SUPPORTED LIVING,2103047703,1000007274
10.01.2020,ADULT SOCIAL CARE,MENTAL HEALTH ADVOCACY SCHEME,588,LD LTS 18-64,EXTERNAL AGENCIES AND BODIES,2103047690,1000080715
10.01.2020,ADULT SOCIAL CARE,CONTACT PROFESSIONALS,465,LD LTS 18-64,SUPPORTED LIVING,2103047679,1000057263
10.01.2020,ADULT SOCIAL CARE,REDACTED PERSONAL DATA,442.69,LD LTS 18-64,SUPPORTED LIVING,REDACTED,REDACTED
10.01.2020,ADULT SOCIAL CARE,BUDDI LTD,370,LD LTS 18-64,EQUIPMENT PURCHASE & REPAIR,2103047693,1000067243
10.01.2020,ADULT SOCIAL CARE,OUT AND ABOUT COMMUNITY SERVICES,340,LD LTS 18-64,DAYCARE,2103047689,1000078603
10.01.2020,ADULT SOCIAL CARE,INSPIRE SUPPORT WORKERS LTD,324,LD LTS 18-64,SUPPORTED LIVING,2103047683,1000080725
10.01.2020,ADULT SOCIAL CARE,CONTACT PROFESSIONALS,304,LD LTS 18-64,SUPPORTED LIVING,2103047687,1000057263
10.01.2020,ADULT SOCIAL CARE,OUT AND ABOUT COMMUNITY SERVICES,255,LD LTS 18-64,DAYCARE,2103047691,1000078603
10.01.2020,ADULT SOCIAL CARE,BUDDI LTD,360,MEM LTS 65+,EQUIPMENT PURCHASE & REPAIR,2103047692,1000067243
10.01.2020,ADULT SOCIAL CARE,BUDDI LTD,360,MEM LTS 65+,EQUIPMENT PURCHASE & REPAIR,2103047694,1000067243
10.01.2020,ADULT SOCIAL CARE,ASTER HEALTHCARE LTD,"-2,981.26",OP - NURSING,NURSING PLACEMENTS FEES,2102591625,1000076296
10.01.2020,ADULT SOCIAL CARE,PHOENIX HEALTHCARE & RECRUITMENT,391.36,PHY LTS 18-64,DAYCARE,2103047676,1000065636
10.01.2020,ADULT SOCIAL CARE,PHOENIX HEALTHCARE & RECRUITMENT,391.36,PHY LTS 18-64,DAYCARE,2103047681,1000065636
10.01.2020,ADULT SOCIAL CARE,AMBULANCE SOLUTIONS LTD,374,PHY LTS 18-64,CLIENT TRANSPORT,2103047686,1000080628
10.01.2020,ADULT SOCIAL CARE,LONDON CARE LTD,357,PHY LTS 18-64,HOMECARE - C&V,2103047672,1000003398
10.01.2020,ADULT SOCIAL CARE,LONDON CARE LTD,"2,054.16",PHY LTS 65+,HOMECARE - C&V,2103047659,1000003398
10.01.2020,ADULT SOCIAL CARE,LONDON CARE LTD,"1,040.98",PHY LTS 65+,HOMECARE - C&V,2103047645,1000003398
10.01.2020,ADULT SOCIAL CARE,LONDON CARE LTD,870.88,PHY LTS 65+,HOMECARE - C&V,2103047655,1000003398
10.01.2020,ADULT SOCIAL CARE,LONDON CARE LTD,607.75,PHY LTS 65+,HOMECARE - C&V,2103047656,1000003398
10.01.2020,ADULT SOCIAL CARE,LONDON CARE LTD,578,PHY LTS 65+,HOMECARE - C&V,2103047668,1000003398
10.01.2020,ADULT SOCIAL CARE,BUDDI LTD,370,PHY LTS 65+,EQUIPMENT PURCHASE & REPAIR,2103047697,1000067243
10.01.2020,ADULT SOCIAL CARE,LONDON CARE LTD,357,PHY LTS 65+,HOMECARE - C&V,2103047666,1000003398
10.01.2020,ADULT SOCIAL CARE,LONDON CARE LTD,263.5,PHY LTS 65+,HOMECARE - C&V,2103047646,1000003398
10.01.2020,ADULT SOCIAL CARE,LONDON CARE LTD,629,PHY STS 18-64,HOMECARE - IC,2103047667,1000003398
10.01.2020,ADULT SOCIAL CARE,LONDON CARE LTD,416.5,PHY STS 18-64,HOMECARE - IC,2103047653,1000003398
10.01.2020,ADULT SOCIAL CARE,LONDON CARE LTD,267.75,PHY STS 18-64,HOMECARE - IC,2103047644,1000003398
10.01.2020,ADULT SOCIAL CARE,LONDON CARE LTD,"2,285.86",PHY STS 65+,HOMECARE - IC,2103047651,1000003398
10.01.2020,ADULT SOCIAL CARE,LONDON CARE LTD,"1,462.00",PHY STS 65+,HOMECARE - IC,2103047660,1000003398
10.01.2020,ADULT SOCIAL CARE,LONDON CARE LTD,960.5,PHY STS 65+,HOMECARE - IC,2103047671,1000003398
10.01.2020,ADULT SOCIAL CARE,LONDON CARE LTD,799,PHY STS 65+,HOMECARE - IC,2103047662,1000003398
10.01.2020,ADULT SOCIAL CARE,LONDON CARE LTD,765,PHY STS 65+,HOMECARE - IC,2103047652,1000003398
10.01.2020,ASSET MANAGEMENT,T BROWN & SONS (HEATING) LTD,"4,160.00",ENG CONTRACTS (NORTH),HEATING -DISTRICT SERVICE (CONTRACT SUM),5902397359,1000040191
10.01.2020,ASSET MANAGEMENT,CAMERON CONSULTING (UK) LTD,625,INVESTMENT MANAGER,PROFESSIONAL FEES,5902397283,1000064510
10.01.2020,ASSET MANAGEMENT,CAMERON CONSULTING (UK) LTD,"1,425.00",REPAIRS OPERATIONS,PROFESSIONAL FEES,5902397063,1000064510
10.01.2020,CENTRAL FUNCTIONS,BRESLIN CONSTRUCTION LTD,"7,450.00",COMMERCIAL PROPERTIES,BUILDING R&M,2103047523,3000001948
10.01.2020,CENTRAL FUNCTIONS,CLEANOVATION,951.12,COMMERCIAL PROPERTIES,PREMISES CLEANING,5902397326,1000000539
10.01.2020,CENTRAL FUNCTIONS,CLEANOVATION,256.39,COMMERCIAL PROPERTIES,PREMISES CLEANING,5902397337,1000000539
10.01.2020,CENTRAL FUNCTIONS,SPOKEMEAD MAINTENANCE LTD,"32,847.85",ENVIRONMENTAL ESTATE WORKS,MATERIALS,5902397318,1000059211
10.01.2020,CENTRAL FUNCTIONS,OPEN COMMUNITIES LTD,"2,363.75",LEDBURY ESTATE,MISCELLANEOUS EXPENSES,5902397309,1000065800
10.01.2020,CHIEF EXECUTIVE,KN NETWORK SERVICES LTD,"143,626.59",CAPITAL PS (REGEN),CONSTRUCTION MAIN CONTRACT -CERTIFICATED,2103047524,3000002134
10.01.2020,CHIEF EXECUTIVE,AWORTH LAND SURVEYS LTD,"2,290.00",CAPITAL PS (REGEN),CONSTRUCTION FEES,5902397315,1000072575
10.01.2020,CHILDREN'S SERVICES,REDACTED PERSONAL DATA,540,ADOPTION PLACEMENTS & INTER AGENCY,PAYMENTS TO CARERS,REDACTED,REDACTED
10.01.2020,CHILDREN'S SERVICES,ALBION PRIMARY SCHOOL,"186,126.00",ALBION PRIMARY SCHOOL,SCHOOLS CAPITATION,5902397123,5001000000
10.01.2020,CHILDREN'S SERVICES,ALFRED SALTER PRIMARY SCHOOL,"168,893.00",ALFRED SALTER PRIMARY SCHOOL,SCHOOLS CAPITATION,5902397125,5001000005
10.01.2020,CHILDREN'S SERVICES,ANN BERNADT NURSERY SCHOOL,"49,835.00",ANN BERNADT (SUMNER),EARLY YEARS - 3 AND 4 YEAR OLDS,5902397241,5001000085
10.01.2020,CHILDREN'S SERVICES,ANN BERNADT NURSERY SCHOOL,"22,779.00",ANN BERNADT (SUMNER),EARLY YEARS - 3 AND 4 YEAR OLDS,5902397242,5001000085
10.01.2020,CHILDREN'S SERVICES,BELLENDEN PRIMARY SCHOOL,"121,634.00",BELLENDEN PRIMARY SCHOOL,SCHOOLS CAPITATION,5902397127,5001000007
10.01.2020,CHILDREN'S SERVICES,BEORMUND PRIMARY SCHOOL,"65,739.00",BEORMUND PRIMARY SCHOOL,HIGH NEEDS - TOP UP FUNDING,5902397128,5001000008
10.01.2020,CHILDREN'S SERVICES,BESSEMER GRANGE PRIMARY SCHOOL,"242,163.00",BESSEMER GRANGE PRIMARY SCHOOL,SCHOOLS CAPITATION,5902397130,5001000009
10.01.2020,CHILDREN'S SERVICES,BOUCHER C OF E PRIMARY SCHOOL,"94,372.00",BOUTCHER CE PRIMARY SCHOOL,SCHOOLS CAPITATION,5902397132,5001000011
10.01.2020,CHILDREN'S SERVICES,BRUNSWICK PARK PRIMARY SCHOOL,"179,982.00",BRUNSWICK PARK PRIMARY SCHOOL,SCHOOLS CAPITATION,5902397136,5001000013
10.01.2020,CHILDREN'S SERVICES,CAMELOT PRIMARY SCHOOL,"180,677.00",CAMELOT PRIMARY SCHOOL,SCHOOLS CAPITATION,5902397138,5001000014
10.01.2020,CHILDREN'S SERVICES,CHARLES DICKENS PRIMARY SCHOOL,"179,835.00",CHARLES DICKENS PRIMARY SCHOOL,SCHOOLS CAPITATION,5902397140,5001000015
10.01.2020,CHILDREN'S SERVICES,CHERRY GARDEN SCHOOL,"167,453.00",CHERRY GARDEN PRIMARY SCHOOL,HIGH NEEDS - TOP UP FUNDING,5902397145,5001000020
10.01.2020,CHILDREN'S SERVICES,COBOURG PRIMARY SCHOOL,"161,140.00",COBOURG PRIMARY SCHOOL,SCHOOLS CAPITATION,5902397147,5001000021
10.01.2020,CHILDREN'S SERVICES,COMBER GROVE PRIMARY SCHOOL,"118,961.00",COMBER GROVE PRIMARY SCHOOL,SCHOOLS CAPITATION,5902397149,5001000022
10.01.2020,CHILDREN'S SERVICES,STEPPING STONES,"14,750.00",COMMUNITY LEARNING,GRANTS,5902397114,1000051807
10.01.2020,CHILDREN'S SERVICES,CRAMPTON PRIMARY SCHOOL,"96,362.00",CRAMPTON PRIMARY SCHOOL,SCHOOLS CAPITATION,5902397150,5001000023
10.01.2020,CHILDREN'S SERVICES,CRAWFORD PRIMARY SCHOOL,"234,424.00",CRAWFORD PRIMARY SCHOOL,SCHOOLS CAPITATION,5902397152,5001000024
10.01.2020,CHILDREN'S SERVICES,DOG KENNEL HILL PRIMARY SCHOOL,"170,120.00",DOG KENNEL HILL PRIMARY SCHOOL,SCHOOLS CAPITATION,5902397154,5001000025
10.01.2020,CHILDREN'S SERVICES,DULWICH VILLAGE CE INFANTS SCHOOL,"110,808.00",DULWICH VILLAGE CE INFANTS' SCHOOL,SCHOOLS CAPITATION,5902397155,5001000027
10.01.2020,CHILDREN'S SERVICES,DULWICH WOOD CHILDRENS CENTRE,"36,486.00",DULWICH WOOD NURSERY SCHOOL,EARLY YEARS - 3 AND 4 YEAR OLDS,5902397254,5001000099
10.01.2020,CHILDREN'S SERVICES,DULWICH WOOD CHILDRENS CENTRE,"29,164.00",DULWICH WOOD NURSERY SCHOOL,EARLY YEARS - 3 AND 4 YEAR OLDS,5902397255,5001000099
10.01.2020,CHILDREN'S SERVICES,DULWICH WOOD PRIMARY SCHOOL,"160,951.00",DULWICH WOOD PRIMARY SCHOOL,SCHOOLS CAPITATION,5902397179,5001000042
10.01.2020,CHILDREN'S SERVICES,ENGLISH MARTYRS RC PRIMARY SCHOOL,"145,698.00",ENGLISH MARTYRS RC PRIMARY SCHOOL,SCHOOLS CAPITATION,5902397161,5001000030
10.01.2020,CHILDREN'S SERVICES,EVELINA HOSPITAL SCHOOL,"87,568.00",EVELINA HOSPITAL SCHOOL,HIGH NEEDS - TOP UP FUNDING,5902397162,5001000031
10.01.2020,CHILDREN'S SERVICES,REDACTED PERSONAL DATA,360.36,FAMILY GROUP CONFERENCES,EXTERNAL AGENCIES AND BODIES,REDACTED,REDACTED
10.01.2020,CHILDREN'S SERVICES,FRIARS PRIMARY SCHOOL,"88,819.00",FRIARS FOUNDATION PRIMARY SCHOOL,SCHOOLS CAPITATION,5902397166,5001000033
10.01.2020,CHILDREN'S SERVICES,FOLLOWING WHISPERS FAMILY SERVICE LTD,"6,864.33",FRIENDS & FAMILY FOSTERING,EXTERNAL AGENCIES AND BODIES,2103047539,1000065611
10.01.2020,CHILDREN'S SERVICES,FOLLOWING WHISPERS FAMILY SERVICE LTD,"6,525.50",FRIENDS & FAMILY FOSTERING,EXTERNAL AGENCIES AND BODIES,2103047536,1000065611
10.01.2020,CHILDREN'S SERVICES,TACT,"5,513.35",FRIENDS & FAMILY FOSTERING,EXTERNAL AGENCIES AND BODIES,2103047533,1000012941
10.01.2020,CHILDREN'S SERVICES,TACT,"3,906.00",FRIENDS & FAMILY FOSTERING,EXTERNAL AGENCIES AND BODIES,2103047541,1000012941
10.01.2020,CHILDREN'S SERVICES,SHINING STARS FOSTERING AGENCY LTD,"3,214.20",FRIENDS & FAMILY FOSTERING,EXTERNAL AGENCIES AND BODIES,2103047537,1000079431
10.01.2020,CHILDREN'S SERVICES,HELP ME GROW FOSTERING SERVICES LTD,"3,188.35",FRIENDS & FAMILY FOSTERING,EXTERNAL AGENCIES AND BODIES,2103047535,1000079302
10.01.2020,CHILDREN'S SERVICES,TACT,"3,162.00",FRIENDS & FAMILY FOSTERING,EXTERNAL AGENCIES AND BODIES,2103047538,1000012941
10.01.2020,CHILDREN'S SERVICES,NATIONAL FOSTERING AGENCY,340.71,FRIENDS & FAMILY FOSTERING,EXTERNAL AGENCIES AND BODIES,5902396693,1000038868
10.01.2020,CHILDREN'S SERVICES,GOODRICH PRIMARY SCHOOL,"228,796.00",GOODRICH PRIMARY SCHOOL,SCHOOLS CAPITATION,5902397157,5001000028
10.01.2020,CHILDREN'S SERVICES,GRANGE PRIMARY SCHOOL,"168,331.00",GRANGE PRIMARY SCHOOL,SCHOOLS CAPITATION,5902397159,5001000029
10.01.2020,CHILDREN'S SERVICES,HAYMERLE SCHOOL,"136,069.00",HAYMERLE PRIMARY SCHOOL,HIGH NEEDS - TOP UP FUNDING,5902397183,5001000045
10.01.2020,CHILDREN'S SERVICES,HEBER PRIMARY SCHOOL,"158,380.00",HEBER PRIMARY SCHOOL,SCHOOLS CAPITATION,5902397168,5001000035
10.01.2020,CHILDREN'S SERVICES,HIGHSHORE SCHOOL,"205,275.00",HIGHSHORE,HIGH NEEDS - TOP UP FUNDING,5902397184,5001000046
10.01.2020,CHILDREN'S SERVICES,HOLLYDALE PRIMARY SCHOOL,"99,301.00",HOLLYDALE PRIMARY SCHOOL,SCHOOLS CAPITATION,5902397169,5001000036
10.01.2020,CHILDREN'S SERVICES,ILDERTON PRIMARY SCHOOL,"162,291.00",ILDERTON PRIMARY SCHOOL,SCHOOLS CAPITATION,5902397171,5001000037
10.01.2020,CHILDREN'S SERVICES,RYE OAK PRIMARY SCHOOL,"28,339.00",IN YEAR STATEMENTS & REORGS,SCHOOLS CAPITATION,5902397204,5001000059
10.01.2020,CHILDREN'S SERVICES,BRUNSWICK PARK PRIMARY SCHOOL,"27,480.00",IN YEAR STATEMENTS & REORGS,SCHOOLS CAPITATION,5902397134,5001000013
10.01.2020,CHILDREN'S SERVICES,SNOWSFIELDS PRIMARY SCHOOL,"23,802.00",IN YEAR STATEMENTS & REORGS,SCHOOLS CAPITATION,5902397207,5001000061
10.01.2020,CHILDREN'S SERVICES,JOHN RUSKIN PRIMARY SCHOOL,"21,285.00",IN YEAR STATEMENTS & REORGS,SCHOOLS CAPITATION,5902397174,5001000040
10.01.2020,CHILDREN'S SERVICES,LYNDHURST PRIMARY SCHOOL,"20,915.00",IN YEAR STATEMENTS & REORGS,SCHOOLS CAPITATION,5902397180,5001000043
10.01.2020,CHILDREN'S SERVICES,ST JOHNS & ST CLEMENTS CE SCHOOL,"16,139.00",IN YEAR STATEMENTS & REORGS,SCHOOLS CAPITATION,5902397226,5001000073
10.01.2020,CHILDREN'S SERVICES,BOUCHER C OF E PRIMARY SCHOOL,"1,958.00",IN YEAR STATEMENTS & REORGS,SCHOOLS CAPITATION,5902397133,5001000011
10.01.2020,CHILDREN'S SERVICES,IVYDALE PRIMARY SCHOOL,"217,118.00",IVYDALE PRIMARY SCHOOL,SCHOOLS CAPITATION,5902397173,5001000038
10.01.2020,CHILDREN'S SERVICES,JOHN RUSKIN PRIMARY SCHOOL,"188,425.00",JOHN RUSKIN PRIMARY SCHOOL,SCHOOLS CAPITATION,5902397176,5001000040
10.01.2020,CHILDREN'S SERVICES,KEYWORTH PRIMARY SCHOOL,"158,826.00",KEYWORTH PRIMARY SCHOOL,SCHOOLS CAPITATION,5902397178,5001000041
10.01.2020,CHILDREN'S SERVICES,KIDS,"50,000.00",KIDS,CONSULTANTS SERVICES,5902397313,1000030036
10.01.2020,CHILDREN'S SERVICES,KINTORE WAY CHILDRENS CENTRE,"88,107.00",KINTORE WAY CHILDRENS CENTRE,EARLY YEARS - 3 AND 4 YEAR OLDS,5902397185,5001000047
10.01.2020,CHILDREN'S SERVICES,KINTORE WAY CHILDRENS CENTRE,"26,949.00",KINTORE WAY CHILDRENS CENTRE,EARLY YEARS - 3 AND 4 YEAR OLDS,5902397186,5001000047
10.01.2020,CHILDREN'S SERVICES,LYNDHURST PRIMARY SCHOOL,"176,166.00",LYNDHURST PRIMARY SCHOOL,SCHOOLS CAPITATION,5902397182,5001000043
10.01.2020,CHILDREN'S SERVICES,HEWLETT BECKLES & ASSOCIATES LTD,"22,800.00",MANAGEMENT INFORMATION UNIT,PROFESSIONAL FEES,5902397012,1000077638
10.01.2020,CHILDREN'S SERVICES,BETHLEM & MAUDSLEY HOSPITAL SCHOOL,"134,246.00",MAUDSLEY & BETHLEM,HIGH NEEDS - TOP UP FUNDING,5902397131,5001000010
10.01.2020,CHILDREN'S SERVICES,MICHAEL FARADAY PRIMARY SCHOOL,"187,690.00",MICHAEL FARADAY PRIMARY SCHOOL,SCHOOLS CAPITATION,5902397188,5001000048
10.01.2020,CHILDREN'S SERVICES,NELL GWYNN NURSERY SCHOOL,"52,464.00",NELL GWYNN CHILDRENS CENTRE,EARLY YEARS - 3 AND 4 YEAR OLDS,5902397189,5001000049
10.01.2020,CHILDREN'S SERVICES,NELL GWYNN NURSERY SCHOOL,"23,301.00",NELL GWYNN CHILDRENS CENTRE,EARLY YEARS - 3 AND 4 YEAR OLDS,5902397190,5001000049
10.01.2020,CHILDREN'S SERVICES,NOTRE DAME RC GIRLS SCHOOL,"404,321.00",NOTRE DAME RC GIRLS' SCHOOL,SCHOOLS CAPITATION,5902397191,5001000050
10.01.2020,CHILDREN'S SERVICES,ST JAMES CE SCHOOL,"34,701.00",NURSERY ED GRANT 3 AND 4 YR OLDS,EARLY YEARS - 3 AND 4 YEAR OLDS,5902397221,5001000070
10.01.2020,CHILDREN'S SERVICES,RYE OAK PRIMARY SCHOOL,"28,608.00",NURSERY ED GRANT 3 AND 4 YR OLDS,EARLY YEARS - 3 AND 4 YEAR OLDS,5902397205,5001000059
10.01.2020,CHILDREN'S SERVICES,BESSEMER GRANGE PRIMARY SCHOOL,"27,313.00",NURSERY ED GRANT 3 AND 4 YR OLDS,EARLY YEARS - 3 AND 4 YEAR OLDS,5902397129,5001000009
10.01.2020,CHILDREN'S SERVICES,JOHN RUSKIN PRIMARY SCHOOL,"25,747.00",NURSERY ED GRANT 3 AND 4 YR OLDS,EARLY YEARS - 3 AND 4 YEAR OLDS,5902397175,5001000040
10.01.2020,CHILDREN'S SERVICES,MICHAEL FARADAY PRIMARY SCHOOL,"22,212.00",NURSERY ED GRANT 3 AND 4 YR OLDS,EARLY YEARS - 3 AND 4 YEAR OLDS,5902397187,5001000048
10.01.2020,CHILDREN'S SERVICES,GOODRICH PRIMARY SCHOOL,"22,096.00",NURSERY ED GRANT 3 AND 4 YR OLDS,EARLY YEARS - 3 AND 4 YEAR OLDS,5902397156,5001000028
10.01.2020,CHILDREN'S SERVICES,CHARLES DICKENS PRIMARY SCHOOL,"20,562.00",NURSERY ED GRANT 3 AND 4 YR OLDS,EARLY YEARS - 3 AND 4 YEAR OLDS,5902397139,5001000015
10.01.2020,CHILDREN'S SERVICES,ALBION PRIMARY SCHOOL,"19,873.00",NURSERY ED GRANT 3 AND 4 YR OLDS,EARLY YEARS - 3 AND 4 YEAR OLDS,5902397122,5001000000
10.01.2020,CHILDREN'S SERVICES,SOUTHWARK PARK PRIMARY SCHOOL,"19,225.00",NURSERY ED GRANT 3 AND 4 YR OLDS,EARLY YEARS - 3 AND 4 YEAR OLDS,5902397210,5001000062
10.01.2020,CHILDREN'S SERVICES,PHOENIX PRIMARY SCHOOL,"18,093.00",NURSERY ED GRANT 3 AND 4 YR OLDS,EARLY YEARS - 3 AND 4 YEAR OLDS,5902397163,5001000032
10.01.2020,CHILDREN'S SERVICES,OLIVER GOLDSMITH PRIMARY SCHOOL,"17,628.00",NURSERY ED GRANT 3 AND 4 YR OLDS,EARLY YEARS - 3 AND 4 YEAR OLDS,5902397192,5001000051
10.01.2020,CHILDREN'S SERVICES,IVYDALE PRIMARY SCHOOL,"15,816.00",NURSERY ED GRANT 3 AND 4 YR OLDS,EARLY YEARS - 3 AND 4 YEAR OLDS,5902397172,5001000038
10.01.2020,CHILDREN'S SERVICES,BELLENDEN PRIMARY SCHOOL,"14,832.00",NURSERY ED GRANT 3 AND 4 YR OLDS,EARLY YEARS - 3 AND 4 YEAR OLDS,5902397126,5001000007
10.01.2020,CHILDREN'S SERVICES,PILGRIM'S WAY PRIMARY SCHOOL,"14,724.00",NURSERY ED GRANT 3 AND 4 YR OLDS,EARLY YEARS - 3 AND 4 YEAR OLDS,5902397196,5001000054
10.01.2020,CHILDREN'S SERVICES,CAMELOT PRIMARY SCHOOL,"14,337.00",NURSERY ED GRANT 3 AND 4 YR OLDS,EARLY YEARS - 3 AND 4 YEAR OLDS,5902397137,5001000014
10.01.2020,CHILDREN'S SERVICES,KEYWORTH PRIMARY SCHOOL,"14,199.00",NURSERY ED GRANT 3 AND 4 YR OLDS,EARLY YEARS - 3 AND 4 YEAR OLDS,5902397177,5001000041
10.01.2020,CHILDREN'S SERVICES,CRAWFORD PRIMARY SCHOOL,"13,256.00",NURSERY ED GRANT 3 AND 4 YR OLDS,EARLY YEARS - 3 AND 4 YEAR OLDS,5902397151,5001000024
10.01.2020,CHILDREN'S SERVICES,GRANGE PRIMARY SCHOOL,"11,975.00",NURSERY ED GRANT 3 AND 4 YR OLDS,EARLY YEARS - 3 AND 4 YEAR OLDS,5902397158,5001000029
10.01.2020,CHILDREN'S SERVICES,BRUNSWICK PARK PRIMARY SCHOOL,"11,879.00",NURSERY ED GRANT 3 AND 4 YR OLDS,EARLY YEARS - 3 AND 4 YEAR OLDS,5902397135,5001000013
10.01.2020,CHILDREN'S SERVICES,ST JOHNS RC PRIMARY SCHOOL,"11,792.00",NURSERY ED GRANT 3 AND 4 YR OLDS,EARLY YEARS - 3 AND 4 YEAR OLDS,5902397229,5001000075
10.01.2020,CHILDREN'S SERVICES,HEBER PRIMARY SCHOOL,"11,772.00",NURSERY ED GRANT 3 AND 4 YR OLDS,EARLY YEARS - 3 AND 4 YEAR OLDS,5902397167,5001000035
10.01.2020,CHILDREN'S SERVICES,ST JOSEPHS CATHOLIC PRIMARY SCHOOL,"11,652.00",NURSERY ED GRANT 3 AND 4 YR OLDS,EARLY YEARS - 3 AND 4 YEAR OLDS,5902397235,5001000078
10.01.2020,CHILDREN'S SERVICES,ST ANTHONYS RC SCHOOL,"11,266.00",NURSERY ED GRANT 3 AND 4 YR OLDS,EARLY YEARS - 3 AND 4 YEAR OLDS,5902397212,5001000064
10.01.2020,CHILDREN'S SERVICES,ENGLISH MARTYRS RC PRIMARY SCHOOL,"11,152.00",NURSERY ED GRANT 3 AND 4 YR OLDS,EARLY YEARS - 3 AND 4 YEAR OLDS,5902397160,5001000030
10.01.2020,CHILDREN'S SERVICES,ILDERTON PRIMARY SCHOOL,"11,006.00",NURSERY ED GRANT 3 AND 4 YR OLDS,EARLY YEARS - 3 AND 4 YEAR OLDS,5902397170,5001000037
10.01.2020,CHILDREN'S SERVICES,ST JOSEPHS CATHOLIC SCHOOL,"10,703.00",NURSERY ED GRANT 3 AND 4 YR OLDS,EARLY YEARS - 3 AND 4 YEAR OLDS,5902397231,5001000076
10.01.2020,CHILDREN'S SERVICES,ST FRANCESCA CABRINI PRIMARY SCHOOL,"10,595.00",NURSERY ED GRANT 3 AND 4 YR OLDS,EARLY YEARS - 3 AND 4 YEAR OLDS,5902397214,5001000065
10.01.2020,CHILDREN'S SERVICES,LYNDHURST PRIMARY SCHOOL,"10,171.00",NURSERY ED GRANT 3 AND 4 YR OLDS,EARLY YEARS - 3 AND 4 YEAR OLDS,5902397181,5001000043
10.01.2020,CHILDREN'S SERVICES,ST FRANCIS'S RC PRIMARY SCHOOL,"10,036.00",NURSERY ED GRANT 3 AND 4 YR OLDS,EARLY YEARS - 3 AND 4 YEAR OLDS,5902397216,5001000067
10.01.2020,CHILDREN'S SERVICES,ST JOSEPHS RC PRIMARY SCHOOL,"10,028.00",NURSERY ED GRANT 3 AND 4 YR OLDS,EARLY YEARS - 3 AND 4 YEAR OLDS,5902397233,5001000077
10.01.2020,CHILDREN'S SERVICES,ST JAMES THE GREAT RC SCHOOL,"10,007.00",NURSERY ED GRANT 3 AND 4 YR OLDS,EARLY YEARS - 3 AND 4 YEAR OLDS,5902397223,5001000071
10.01.2020,CHILDREN'S SERVICES,TOWNSEND PRIMARY SCHOOL,"9,950.00",NURSERY ED GRANT 3 AND 4 YR OLDS,EARLY YEARS - 3 AND 4 YEAR OLDS,5902397249,5001000096
10.01.2020,CHILDREN'S SERVICES,CATHEDRAL SCHOOL OF ST SAVIOUR & MARY,"9,816.00",NURSERY ED GRANT 3 AND 4 YR OLDS,EARLY YEARS - 3 AND 4 YEAR OLDS,5902397243,5001000088
10.01.2020,CHILDREN'S SERVICES,ST PETERS CE SCHOOL,"9,369.00",NURSERY ED GRANT 3 AND 4 YR OLDS,EARLY YEARS - 3 AND 4 YEAR OLDS,5902397238,5001000083
10.01.2020,CHILDREN'S SERVICES,ST GEORGES RC SCHOOL,"8,974.00",NURSERY ED GRANT 3 AND 4 YR OLDS,EARLY YEARS - 3 AND 4 YEAR OLDS,5902397218,5001000068
10.01.2020,CHILDREN'S SERVICES,TOWER BRIDGE PRIMARY SCHOOL,"8,972.00",NURSERY ED GRANT 3 AND 4 YR OLDS,EARLY YEARS - 3 AND 4 YEAR OLDS,5902397247,5001000095
10.01.2020,CHILDREN'S SERVICES,DOG KENNEL HILL PRIMARY SCHOOL,"8,736.00",NURSERY ED GRANT 3 AND 4 YR OLDS,EARLY YEARS - 3 AND 4 YEAR OLDS,5902397153,5001000025
10.01.2020,CHILDREN'S SERVICES,ALFRED SALTER PRIMARY SCHOOL,"8,554.00",NURSERY ED GRANT 3 AND 4 YR OLDS,EARLY YEARS - 3 AND 4 YEAR OLDS,5902397124,5001000005
10.01.2020,CHILDREN'S SERVICES,COMBER GROVE PRIMARY SCHOOL,"7,843.00",NURSERY ED GRANT 3 AND 4 YR OLDS,EARLY YEARS - 3 AND 4 YEAR OLDS,5902397148,5001000022
10.01.2020,CHILDREN'S SERVICES,ROTHERHITHE PRIMARY SCHOOL,"7,217.00",NURSERY ED GRANT 3 AND 4 YR OLDS,EARLY YEARS - 3 AND 4 YEAR OLDS,5902397202,5001000058
10.01.2020,CHILDREN'S SERVICES,RIVERSIDE PRIMARY SCHOOL,"6,912.00",NURSERY ED GRANT 3 AND 4 YR OLDS,EARLY YEARS - 3 AND 4 YEAR OLDS,5902397198,5001000056
10.01.2020,CHILDREN'S SERVICES,SNOWSFIELDS PRIMARY SCHOOL,"6,539.00",NURSERY ED GRANT 3 AND 4 YR OLDS,EARLY YEARS - 3 AND 4 YEAR OLDS,5902397208,5001000061
10.01.2020,CHILDREN'S SERVICES,COBOURG PRIMARY SCHOOL,"6,512.00",NURSERY ED GRANT 3 AND 4 YR OLDS,EARLY YEARS - 3 AND 4 YEAR OLDS,5902397146,5001000021
10.01.2020,CHILDREN'S SERVICES,ROBERT BROWNING PRIMARY SCHOOL,"5,952.00",NURSERY ED GRANT 3 AND 4 YR OLDS,EARLY YEARS - 3 AND 4 YEAR OLDS,5902397200,5001000057
10.01.2020,CHILDREN'S SERVICES,FRIARS PRIMARY SCHOOL,"5,923.00",NURSERY ED GRANT 3 AND 4 YR OLDS,EARLY YEARS - 3 AND 4 YEAR OLDS,5902397165,5001000033
10.01.2020,CHILDREN'S SERVICES,ST JUDES CHURCH OF ENGLAND PRIMARY,"3,197.00",NURSERY ED GRANT 3 AND 4 YR OLDS,EARLY YEARS - 3 AND 4 YEAR OLDS,5902397143,5001000019
10.01.2020,CHILDREN'S SERVICES,PETER HILLS CE SCHOOL,"2,528.00",NURSERY ED GRANT 3 AND 4 YR OLDS,EARLY YEARS - 3 AND 4 YEAR OLDS,5902397194,5001000053
10.01.2020,CHILDREN'S SERVICES,VICTORY SCHOOL,"1,813.00",NURSERY ED GRANT 3 AND 4 YR OLDS,EARLY YEARS - 3 AND 4 YEAR OLDS,5902397252,5001000098
10.01.2020,CHILDREN'S SERVICES,OLIVER GOLDSMITH PRIMARY SCHOOL,"178,913.00",OLIVER GOLDSMITH PRIMARY SCHOOL,SCHOOLS CAPITATION,5902397193,5001000051
10.01.2020,CHILDREN'S SERVICES,PETER HILLS CE SCHOOL,"80,212.00",PETER HILLS CE PRIMARY SCHOOL,SCHOOLS CAPITATION,5902397195,5001000053
10.01.2020,CHILDREN'S SERVICES,PHOENIX PRIMARY SCHOOL,"247,349.00",PHOENIX PRIMARY SCHOOL,SCHOOLS CAPITATION,5902397164,5001000032
10.01.2020,CHILDREN'S SERVICES,PILGRIM'S WAY PRIMARY SCHOOL,"98,335.00",PILGRIMS WAY PRIMARY SCHOOL,SCHOOLS CAPITATION,5902397197,5001000054
10.01.2020,CHILDREN'S SERVICES,RIVERSIDE PRIMARY SCHOOL,"143,045.00",RIVERSIDE PRIMARY SCHOOL,SCHOOLS CAPITATION,5902397199,5001000056
10.01.2020,CHILDREN'S SERVICES,ROBERT BROWNING PRIMARY SCHOOL,"123,908.00",ROBERT BROWNING PRIMARY SCHOOL,SCHOOLS CAPITATION,5902397201,5001000057
10.01.2020,CHILDREN'S SERVICES,ROTHERHITHE PRIMARY SCHOOL,"197,178.00",ROTHERHITHE PRIMARY SCHOOL,SCHOOLS CAPITATION,5902397203,5001000058
10.01.2020,CHILDREN'S SERVICES,RYE OAK PRIMARY SCHOOL,"148,526.00",RYE OAK PRIMARY SCHOOL,SCHOOLS CAPITATION,5902397206,5001000059
10.01.2020,CHILDREN'S SERVICES,SYDNEY CARE LTD,"3,742.14",SEMI INDEPENDENT CARE LEAVERS,EXTERNAL AGENCIES AND BODIES,2103047554,1000081598
10.01.2020,CHILDREN'S SERVICES,NEXT STEP CARE MANAGEMENT LTD,"2,989.29",SEMI INDEPENDENT CARE LEAVERS,EXTERNAL AGENCIES AND BODIES,2103047552,1825556
10.01.2020,CHILDREN'S SERVICES,NEXT STEP CARE MANAGEMENT LTD,"2,967.14",SEMI INDEPENDENT CARE LEAVERS,EXTERNAL AGENCIES AND BODIES,2103047544,1825556
10.01.2020,CHILDREN'S SERVICES,FINEFAIR LTD,"2,920.59",SEMI INDEPENDENT CARE LEAVERS,EXTERNAL AGENCIES AND BODIES,2103047545,1000075570
10.01.2020,CHILDREN'S SERVICES,NETPEX LTD CORPORATE SERVICES,"2,767.99",SEMI INDEPENDENT CARE LEAVERS,EXTERNAL AGENCIES AND BODIES,2103047548,1000076073
10.01.2020,CHILDREN'S SERVICES,NETPEX LTD CORPORATE SERVICES,"2,678.70",SEMI INDEPENDENT CARE LEAVERS,EXTERNAL AGENCIES AND BODIES,2103047555,1000076073
10.01.2020,CHILDREN'S SERVICES,NEXT STEP CARE MANAGEMENT LTD,"2,103.57",SEMI INDEPENDENT CARE LEAVERS,EXTERNAL AGENCIES AND BODIES,2103047551,1825556
10.01.2020,CHILDREN'S SERVICES,CREATING LIFESTYLES LTD,"1,980.00",SEMI INDEPENDENT CARE LEAVERS,EXTERNAL AGENCIES AND BODIES,2103047546,1000075830
10.01.2020,CHILDREN'S SERVICES,PURPLE PEBBLES(CHILD CARE) SERVICES,"1,705.00",SEMI INDEPENDENT CARE LEAVERS,EXTERNAL AGENCIES AND BODIES,2103047597,1000070705
10.01.2020,CHILDREN'S SERVICES,FINEFAIR LTD,"1,687.33",SEMI INDEPENDENT CARE LEAVERS,EXTERNAL AGENCIES AND BODIES,2103047556,1000075570
10.01.2020,CHILDREN'S SERVICES,REDACTED PERSONAL DATA,"1,628.65",SEMI INDEPENDENT CARE LEAVERS,EXTERNAL AGENCIES AND BODIES,REDACTED,REDACTED
10.01.2020,CHILDREN'S SERVICES,PURPLE PEBBLES(CHILD CARE) SERVICES,"1,550.00",SEMI INDEPENDENT CARE LEAVERS,EXTERNAL AGENCIES AND BODIES,2103047622,1000070705
10.01.2020,CHILDREN'S SERVICES,HOLMDENE HOUSING LTD,"1,480.00",SEMI INDEPENDENT CARE LEAVERS,EXTERNAL AGENCIES AND BODIES,2103047592,1000032598
10.01.2020,CHILDREN'S SERVICES,PURPLE PEBBLES(CHILD CARE) SERVICES,"1,439.29",SEMI INDEPENDENT CARE LEAVERS,EXTERNAL AGENCIES AND BODIES,2103047602,1000070705
10.01.2020,CHILDREN'S SERVICES,PURPLE PEBBLES(CHILD CARE) SERVICES,"1,439.29",SEMI INDEPENDENT CARE LEAVERS,EXTERNAL AGENCIES AND BODIES,2103047603,1000070705
10.01.2020,CHILDREN'S SERVICES,PURPLE PEBBLES(CHILD CARE) SERVICES,"1,383.93",SEMI INDEPENDENT CARE LEAVERS,EXTERNAL AGENCIES AND BODIES,2103047601,1000070705
10.01.2020,CHILDREN'S SERVICES,PURPLE PEBBLES(CHILD CARE) SERVICES,"1,372.86",SEMI INDEPENDENT CARE LEAVERS,EXTERNAL AGENCIES AND BODIES,2103047582,1000070705
10.01.2020,CHILDREN'S SERVICES,PURPLE PEBBLES(CHILD CARE) SERVICES,"1,372.86",SEMI INDEPENDENT CARE LEAVERS,EXTERNAL AGENCIES AND BODIES,2103047588,1000070705
10.01.2020,CHILDREN'S SERVICES,PURPLE PEBBLES(CHILD CARE) SERVICES,"1,372.86",SEMI INDEPENDENT CARE LEAVERS,EXTERNAL AGENCIES AND BODIES,2103047612,1000070705
10.01.2020,CHILDREN'S SERVICES,PURPLE PEBBLES(CHILD CARE) SERVICES,"1,328.57",SEMI INDEPENDENT CARE LEAVERS,EXTERNAL AGENCIES AND BODIES,2103047584,1000070705
10.01.2020,CHILDREN'S SERVICES,PURPLE PEBBLES(CHILD CARE) SERVICES,"1,320.00",SEMI INDEPENDENT CARE LEAVERS,EXTERNAL AGENCIES AND BODIES,2103047607,1000070705
10.01.2020,CHILDREN'S SERVICES,NETPEX LTD CORPORATE SERVICES,"1,071.48",SEMI INDEPENDENT CARE LEAVERS,EXTERNAL AGENCIES AND BODIES,2103047553,1000076073
10.01.2020,CHILDREN'S SERVICES,SP HOMES LTD,919.77,SEMI INDEPENDENT CARE LEAVERS,EXTERNAL AGENCIES AND BODIES,2103047621,1000080326
10.01.2020,CHILDREN'S SERVICES,PURPLE PEBBLES(CHILD CARE) SERVICES,575,SEMI INDEPENDENT CARE LEAVERS,EXTERNAL AGENCIES AND BODIES,2103047605,1000070705
10.01.2020,CHILDREN'S SERVICES,PURPLE PEBBLES(CHILD CARE) SERVICES,575,SEMI INDEPENDENT CARE LEAVERS,EXTERNAL AGENCIES AND BODIES,2103047616,1000070705
10.01.2020,CHILDREN'S SERVICES,PURPLE PEBBLES(CHILD CARE) SERVICES,350,SEMI INDEPENDENT CARE LEAVERS,EXTERNAL AGENCIES AND BODIES,2103047575,1000070705
10.01.2020,CHILDREN'S SERVICES,PURPLE PEBBLES(CHILD CARE) SERVICES,350,SEMI INDEPENDENT CARE LEAVERS,EXTERNAL AGENCIES AND BODIES,2103047583,1000070705
10.01.2020,CHILDREN'S SERVICES,PURPLE PEBBLES(CHILD CARE) SERVICES,350,SEMI INDEPENDENT CARE LEAVERS,EXTERNAL AGENCIES AND BODIES,2103047593,1000070705
10.01.2020,CHILDREN'S SERVICES,PURPLE PEBBLES(CHILD CARE) SERVICES,350,SEMI INDEPENDENT CARE LEAVERS,EXTERNAL AGENCIES AND BODIES,2103047609,1000070705
10.01.2020,CHILDREN'S SERVICES,PURPLE PEBBLES(CHILD CARE) SERVICES,350,SEMI INDEPENDENT CARE LEAVERS,EXTERNAL AGENCIES AND BODIES,2103047614,1000070705
10.01.2020,CHILDREN'S SERVICES,PURPLE PEBBLES(CHILD CARE) SERVICES,332.14,SEMI INDEPENDENT CARE LEAVERS,EXTERNAL AGENCIES AND BODIES,2103047599,1000070705
10.01.2020,CHILDREN'S SERVICES,PURPLE PEBBLES(CHILD CARE) SERVICES,-376.15,SEMI INDEPENDENT CARE LEAVERS,EXTERNAL AGENCIES AND BODIES,2103047572,1000070705
10.01.2020,CHILDREN'S SERVICES,PURPLE PEBBLES(CHILD CARE) SERVICES,-740.27,SEMI INDEPENDENT CARE LEAVERS,EXTERNAL AGENCIES AND BODIES,2103047604,1000070705
10.01.2020,CHILDREN'S SERVICES,PURPLE PEBBLES(CHILD CARE) SERVICES,-866.67,SEMI INDEPENDENT CARE LEAVERS,EXTERNAL AGENCIES AND BODIES,2103047580,1000070705
10.01.2020,CHILDREN'S SERVICES,PURPLE PEBBLES(CHILD CARE) SERVICES,"-1,149.53",SEMI INDEPENDENT CARE LEAVERS,EXTERNAL AGENCIES AND BODIES,2103047577,1000070705
10.01.2020,CHILDREN'S SERVICES,PURPLE PEBBLES(CHILD CARE) SERVICES,"-2,961.08",SEMI INDEPENDENT CARE LEAVERS,EXTERNAL AGENCIES AND BODIES,2103047576,1000070705
10.01.2020,CHILDREN'S SERVICES,PURPLE PEBBLES(CHILD CARE) SERVICES,"-6,597.75",SEMI INDEPENDENT CARE LEAVERS,EXTERNAL AGENCIES AND BODIES,2103047615,1000070705
10.01.2020,CHILDREN'S SERVICES,CREATING LIFESTYLES LTD,"20,228.57",SEMI INDEPENDENT LAC,EXTERNAL AGENCIES AND BODIES,2103047565,1000075830
10.01.2020,CHILDREN'S SERVICES,SYDNEY CARE LTD,"7,285.71",SEMI INDEPENDENT LAC,EXTERNAL AGENCIES AND BODIES,2103047561,1000081598
10.01.2020,CHILDREN'S SERVICES,REAL LIFE CARE LTD,"4,760.67",SEMI INDEPENDENT LAC,EXTERNAL AGENCIES AND BODIES,2103047568,1000083556
10.01.2020,CHILDREN'S SERVICES,NETPEX LTD CORPORATE SERVICES,"4,400.22",SEMI INDEPENDENT LAC,EXTERNAL AGENCIES AND BODIES,2103047566,1000076073
10.01.2020,CHILDREN'S SERVICES,NETPEX LTD CORPORATE SERVICES,"4,340.22",SEMI INDEPENDENT LAC,EXTERNAL AGENCIES AND BODIES,2103047562,1000076073
10.01.2020,CHILDREN'S SERVICES,NETPEX LTD CORPORATE SERVICES,"4,264.50",SEMI INDEPENDENT LAC,EXTERNAL AGENCIES AND BODIES,2103047558,1000076073
10.01.2020,CHILDREN'S SERVICES,SYDNEY CARE LTD,"3,985.71",SEMI INDEPENDENT LAC,EXTERNAL AGENCIES AND BODIES,2103047559,1000081598
10.01.2020,CHILDREN'S SERVICES,PURPLE PEBBLES(CHILD CARE) SERVICES,"1,417.14",SEMI INDEPENDENT LAC,EXTERNAL AGENCIES AND BODIES,2103047634,1000070705
10.01.2020,CHILDREN'S SERVICES,PURPLE PEBBLES(CHILD CARE) SERVICES,"1,372.86",SEMI INDEPENDENT LAC,EXTERNAL AGENCIES AND BODIES,2103047626,1000070705
10.01.2020,CHILDREN'S SERVICES,PURPLE PEBBLES(CHILD CARE) SERVICES,"1,328.57",SEMI INDEPENDENT LAC,EXTERNAL AGENCIES AND BODIES,2103047594,1000070705
10.01.2020,CHILDREN'S SERVICES,PURPLE PEBBLES(CHILD CARE) SERVICES,607.14,SEMI INDEPENDENT LAC,EXTERNAL AGENCIES AND BODIES,2103047629,1000070705
10.01.2020,CHILDREN'S SERVICES,HOLMDENE HOUSING LTD,600,SEMI INDEPENDENT LAC,EXTERNAL AGENCIES AND BODIES,2103047591,1000032598
10.01.2020,CHILDREN'S SERVICES,PURPLE PEBBLES(CHILD CARE) SERVICES,542.86,SEMI INDEPENDENT LAC,OTHER PAYMENTS FOR CLIENTS,2103047630,1000070705
10.01.2020,CHILDREN'S SERVICES,PURPLE PEBBLES(CHILD CARE) SERVICES,350,SEMI INDEPENDENT LAC,EXTERNAL AGENCIES AND BODIES,2103047579,1000070705
10.01.2020,CHILDREN'S SERVICES,PURPLE PEBBLES(CHILD CARE) SERVICES,350,SEMI INDEPENDENT LAC,EXTERNAL AGENCIES AND BODIES,2103047643,1000070705
10.01.2020,CHILDREN'S SERVICES,SYDNEY CARE LTD,256.41,SEMI INDEPENDENT LAC,OTHER PAYMENTS FOR CLIENTS,2103047560,1000081598
10.01.2020,CHILDREN'S SERVICES,HARRIS PRIMARY ACADEMY PECKHAM PARK,"4,216.71",SEN - ACADEMY AND FREE SCHOOLS,STATEMENTED FEES,2103047707,1000068029
10.01.2020,CHILDREN'S SERVICES,HARRIS PRIMARY ACADEMY PECKHAM PARK,"4,216.71",SEN - ACADEMY AND FREE SCHOOLS,STATEMENTED FEES,2103047708,1000068029
10.01.2020,CHILDREN'S SERVICES,HARRIS PRIMARY ACADEMY PECKHAM PARK,"4,216.71",SEN - ACADEMY AND FREE SCHOOLS,STATEMENTED FEES,2103047709,1000068029
10.01.2020,CHILDREN'S SERVICES,HARRIS PRIMARY ACADEMY PECKHAM PARK,"4,216.71",SEN - ACADEMY AND FREE SCHOOLS,STATEMENTED FEES,2103047711,1000068029
10.01.2020,CHILDREN'S SERVICES,HARRIS PRIMARY ACADEMY PECKHAM PARK,"4,216.71",SEN - ACADEMY AND FREE SCHOOLS,STATEMENTED FEES,2103047712,1000068029
10.01.2020,CHILDREN'S SERVICES,HARRIS PRIMARY ACADEMY PECKHAM PARK,"4,216.71",SEN - ACADEMY AND FREE SCHOOLS,STATEMENTED FEES,2103047713,1000068029
10.01.2020,CHILDREN'S SERVICES,HARRIS PRIMARY ACADEMY PECKHAM PARK,"4,216.71",SEN - ACADEMY AND FREE SCHOOLS,STATEMENTED FEES,2103047714,1000068029
10.01.2020,CHILDREN'S SERVICES,HARRIS PRIMARY ACADEMY PECKHAM PARK,"3,979.59",SEN - ACADEMY AND FREE SCHOOLS,STATEMENTED FEES,2103047710,1000068029
10.01.2020,CHILDREN'S SERVICES,REDACTED PERSONAL DATA,"9,700.00",SEN - OTHER,STATEMENTED FEES,REDACTED,REDACTED
10.01.2020,CHILDREN'S SERVICES,PECULIAR CARE HOMES LTD,"2,692.50",SEN - OTHER,STATEMENTED FEES,2103047723,1000076991
10.01.2020,CHILDREN'S SERVICES,HILLCREST AUTISM SERVICES LTD,"15,766.68",SEN - OTHER SPECIAL,STATEMENTED FEES,2103047721,1000073628
10.01.2020,CHILDREN'S SERVICES,HILLCREST AUTISM SERVICES LTD,"14,844.00",SEN - OTHER SPECIAL,STATEMENTED FEES,2103047719,1000073628
10.01.2020,CHILDREN'S SERVICES,HILLCREST AUTISM SERVICES LTD,"14,844.00",SEN - OTHER SPECIAL,STATEMENTED FEES,2103047720,1000073628
10.01.2020,CHILDREN'S SERVICES,HILLCREST AUTISM SERVICES LTD,"14,553.00",SEN - OTHER SPECIAL,STATEMENTED FEES,2103047717,1000073628
10.01.2020,CHILDREN'S SERVICES,HILLCREST AUTISM SERVICES LTD,"14,553.00",SEN - OTHER SPECIAL,STATEMENTED FEES,2103047718,1000073628
10.01.2020,CHILDREN'S SERVICES,HILLCREST AUTISM SERVICES LTD,"14,267.00",SEN - OTHER SPECIAL,STATEMENTED FEES,2103047716,1000073628
10.01.2020,CHILDREN'S SERVICES,HILLCREST AUTISM SERVICES LTD,"8,353.32",SEN - OTHER SPECIAL,STATEMENTED FEES,2103047722,1000073628
10.01.2020,CHILDREN'S SERVICES,SOUTHWARK INCLUSIVE LEARNING SERVICE,"175,000.00",SILS,EARLY YEARS - 3 AND 4 YEAR OLDS,5902397256,5001000105
10.01.2020,CHILDREN'S SERVICES,SNOWSFIELDS PRIMARY SCHOOL,"89,042.00",SNOWSFIELDS PRIMARY SCHOOL,SCHOOLS CAPITATION,5902397209,5001000061
10.01.2020,CHILDREN'S SERVICES,SOUTHWARK PARK PRIMARY SCHOOL,"178,290.00",SOUTHWARK PARK PRIMARY SCHOOL,SCHOOLS CAPITATION,5902397211,5001000062
10.01.2020,CHILDREN'S SERVICES,ST ANTHONYS RC SCHOOL,"163,016.00",ST ANTHONY'S CATHOLIC PRIMARY SCHOOL,SCHOOLS CAPITATION,5902397213,5001000064
10.01.2020,CHILDREN'S SERVICES,ST FRANCESCA CABRINI PRIMARY SCHOOL,"133,084.00",ST FRANCESCA CABRINI PRIMARY SCHOOL,SCHOOLS CAPITATION,5902397215,5001000065
10.01.2020,CHILDREN'S SERVICES,ST FRANCIS'S RC PRIMARY SCHOOL,"171,212.00",ST FRANCIS RC PRIMARY SCHOOL,SCHOOLS CAPITATION,5902397217,5001000067
10.01.2020,CHILDREN'S SERVICES,ST GEORGES RC SCHOOL,"96,847.00",ST GEORGE'S CATHEDRAL RC PRIMARY SCHOOL,SCHOOLS CAPITATION,5902397219,5001000068
10.01.2020,CHILDREN'S SERVICES,ST GEORGES CE SCHOOL,"70,590.00",ST GEORGE'S CE PRIMARY SCHOOL,SCHOOLS CAPITATION,5902397220,5001000069
10.01.2020,CHILDREN'S SERVICES,ST JAMES CE SCHOOL,"212,782.00",ST JAMES' CE PRIMARY SCHOOL,SCHOOLS CAPITATION,5902397222,5001000070
10.01.2020,CHILDREN'S SERVICES,ST JAMES THE GREAT RC SCHOOL,"92,784.00",ST JAMES THE GREAT RC PRIMARY SCHOOL,SCHOOLS CAPITATION,5902397224,5001000071
10.01.2020,CHILDREN'S SERVICES,ST JOHNS & ST CLEMENTS CE SCHOOL,"157,922.00",ST JOHN'S & ST CLEMENT'S CE PRIMARY SCHO,SCHOOLS CAPITATION,5902397227,5001000073
10.01.2020,CHILDREN'S SERVICES,ST JOHNS RC PRIMARY SCHOOL,"94,993.00",ST JOHN'S RC PRIMARY SCHOOL,SCHOOLS CAPITATION,5902397230,5001000075
10.01.2020,CHILDREN'S SERVICES,ST JOHNS WALWORTH CE SCHOOL,"81,433.00",ST JOHN'S WALWORTH CE PRIMARY SCHOOL,SCHOOLS CAPITATION,5902397225,5001000072
10.01.2020,CHILDREN'S SERVICES,ST JOSEPHS RC PRIMARY SCHOOL,"134,697.00",ST JOSEPHS RC (3475) PRIMARY SCHOOL,SCHOOLS CAPITATION,5902397234,5001000077
10.01.2020,CHILDREN'S SERVICES,ST JOSEPHS CATHOLIC PRIMARY SCHOOL,"92,509.00",ST JOSEPHS RC (3476) PRIMARY SCHOOL,SCHOOLS CAPITATION,5902397236,5001000078
10.01.2020,CHILDREN'S SERVICES,ST JOSEPHS CATHOLIC SCHOOL,"94,944.00",ST JOSEPHS RC (3484) SCHOOL,SCHOOLS CAPITATION,5902397232,5001000076
10.01.2020,CHILDREN'S SERVICES,ST JOSEPHS CATHOLIC INFANTS SCHOOL,"76,519.00",ST JOSEPHS RC INFANT(5204),SCHOOLS CAPITATION,5902397142,5001000018
10.01.2020,CHILDREN'S SERVICES,ST JOSEPHS RC JUNIOR  SCHOOL,"105,690.00",ST JOSEPHS RC JUNIOR(5203) SCHOOL,SCHOOLS CAPITATION,5902397141,5001000017
10.01.2020,CHILDREN'S SERVICES,ST JUDES CHURCH OF ENGLAND PRIMARY,"50,136.00",ST JUDE'S CE PRIMARY SCHOOL,SCHOOLS CAPITATION,5902397144,5001000019
10.01.2020,CHILDREN'S SERVICES,ST MARY MAGDALENE CE SCHOOL,"93,252.00",ST MARY MAGDALENE CE PRIMARY SCHOOL,SCHOOLS CAPITATION,5902397237,5001000080
10.01.2020,CHILDREN'S SERVICES,ST PETERS CE SCHOOL,"86,696.00",ST PETER'S CE PRIMARY SCHOOL,SCHOOLS CAPITATION,5902397239,5001000083
10.01.2020,CHILDREN'S SERVICES,ST SAVIOURS & ST OLAVES SCHOOL,"392,255.00",ST SAVIOUR & OLAVE'S CE,SCHOOLS CAPITATION,5902397240,5001000084
10.01.2020,CHILDREN'S SERVICES,TACT,"1,549.69",STAYING PUT,EXTERNAL AGENCIES AND BODIES,2103047549,1000012941
10.01.2020,CHILDREN'S SERVICES,JADES JERK PRODUCE UK LTD,750,SUMMERHOUSE,CATERING MATERIALS & SUPPLIES,5902395798,1000051559
10.01.2020,CHILDREN'S SERVICES,CATHEDRAL SCHOOL OF ST SAVIOUR & MARY,"88,723.00",THE CATHEDRAL OF ST. SAVIOUR & ST OLAVES,SCHOOLS CAPITATION,5902397244,5001000088
10.01.2020,CHILDREN'S SERVICES,THE GROVE CHILDRENS CENTRE,"31,138.00",THE GROVE NURSERY SCHOOL,EARLY YEARS - 3 AND 4 YEAR OLDS,5902397245,5001000090
10.01.2020,CHILDREN'S SERVICES,THE GROVE CHILDRENS CENTRE,"20,136.00",THE GROVE NURSERY SCHOOL,EARLY YEARS - 3 AND 4 YEAR OLDS,5902397246,5001000090
10.01.2020,CHILDREN'S SERVICES,THE ST THOMAS THE APOSTLE COLLEGE,"488,347.00",THE ST THOMAS THE APOSTLE COLLEGE,SCHOOLS CAPITATION,5902397228,5001000074
10.01.2020,CHILDREN'S SERVICES,TOWER BRIDGE PRIMARY SCHOOL,"91,876.00",TOWER BRIDGE PRIMARY SCHOOL,SCHOOLS CAPITATION,5902397248,5001000095
10.01.2020,CHILDREN'S SERVICES,TOWNSEND PRIMARY SCHOOL,"82,296.00",TOWNSEND PRIMARY SCHOOL,SCHOOLS CAPITATION,5902397250,5001000096
10.01.2020,CHILDREN'S SERVICES,TUKE SCHOOL,"165,886.00",TUKE SCHOOL,HIGH NEEDS - TOP UP FUNDING,5902397251,5001000097
10.01.2020,CHILDREN'S SERVICES,NEXT STEP CARE MANAGEMENT LTD,"2,413.57",UASC CARE LEAVERS,EXTERNAL AGENCIES AND BODIES,2103047550,1825556
10.01.2020,CHILDREN'S SERVICES,PURPLE PEBBLES(CHILD CARE) SERVICES,"1,483.57",UASC CARE LEAVERS,EXTERNAL AGENCIES AND BODIES,2103047581,1000070705
10.01.2020,CHILDREN'S SERVICES,HOLMDENE HOUSING LTD,"1,480.00",UASC CARE LEAVERS,EXTERNAL AGENCIES AND BODIES,2103047585,1000032598
10.01.2020,CHILDREN'S SERVICES,HOLMDENE HOUSING LTD,"1,480.00",UASC CARE LEAVERS,EXTERNAL AGENCIES AND BODIES,2103047590,1000032598
10.01.2020,CHILDREN'S SERVICES,HOLMDENE HOUSING LTD,"1,480.00",UASC CARE LEAVERS,EXTERNAL AGENCIES AND BODIES,2103047611,1000032598
10.01.2020,CHILDREN'S SERVICES,PURPLE PEBBLES(CHILD CARE) SERVICES,"1,428.21",UASC CARE LEAVERS,EXTERNAL AGENCIES AND BODIES,2103047573,1000070705
10.01.2020,CHILDREN'S SERVICES,PURPLE PEBBLES(CHILD CARE) SERVICES,"1,417.14",UASC CARE LEAVERS,EXTERNAL AGENCIES AND BODIES,2103047587,1000070705
10.01.2020,CHILDREN'S SERVICES,PURPLE PEBBLES(CHILD CARE) SERVICES,"1,372.86",UASC CARE LEAVERS,EXTERNAL AGENCIES AND BODIES,2103047571,1000070705
10.01.2020,CHILDREN'S SERVICES,PURPLE PEBBLES(CHILD CARE) SERVICES,"1,328.57",UASC CARE LEAVERS,EXTERNAL AGENCIES AND BODIES,2103047617,1000070705
10.01.2020,CHILDREN'S SERVICES,PURPLE PEBBLES(CHILD CARE) SERVICES,"1,284.29",UASC CARE LEAVERS,EXTERNAL AGENCIES AND BODIES,2103047606,1000070705
10.01.2020,CHILDREN'S SERVICES,PURPLE PEBBLES(CHILD CARE) SERVICES,"1,262.14",UASC CARE LEAVERS,EXTERNAL AGENCIES AND BODIES,2103047610,1000070705
10.01.2020,CHILDREN'S SERVICES,PURPLE PEBBLES(CHILD CARE) SERVICES,675,UASC CARE LEAVERS,EXTERNAL AGENCIES AND BODIES,2103047589,1000070705
10.01.2020,CHILDREN'S SERVICES,PURPLE PEBBLES(CHILD CARE) SERVICES,350,UASC CARE LEAVERS,EXTERNAL AGENCIES AND BODIES,2103047578,1000070705
10.01.2020,CHILDREN'S SERVICES,PURPLE PEBBLES(CHILD CARE) SERVICES,350,UASC CARE LEAVERS,EXTERNAL AGENCIES AND BODIES,2103047586,1000070705
10.01.2020,CHILDREN'S SERVICES,PURPLE PEBBLES(CHILD CARE) SERVICES,350,UASC CARE LEAVERS,EXTERNAL AGENCIES AND BODIES,2103047595,1000070705
10.01.2020,CHILDREN'S SERVICES,PURPLE PEBBLES(CHILD CARE) SERVICES,350,UASC CARE LEAVERS,EXTERNAL AGENCIES AND BODIES,2103047596,1000070705
10.01.2020,CHILDREN'S SERVICES,PURPLE PEBBLES(CHILD CARE) SERVICES,350,UASC CARE LEAVERS,EXTERNAL AGENCIES AND BODIES,2103047600,1000070705
10.01.2020,CHILDREN'S SERVICES,PURPLE PEBBLES(CHILD CARE) SERVICES,350,UASC CARE LEAVERS,EXTERNAL AGENCIES AND BODIES,2103047613,1000070705
10.01.2020,CHILDREN'S SERVICES,PURPLE PEBBLES(CHILD CARE) SERVICES,-697.75,UASC CARE LEAVERS,EXTERNAL AGENCIES AND BODIES,2103047574,1000070705
10.01.2020,CHILDREN'S SERVICES,CSM INDEPENDENCE LTD,"6,800.00",UASC LAC,EXTERNAL AGENCIES AND BODIES,2103047557,1000083620
10.01.2020,CHILDREN'S SERVICES,CSM INDEPENDENCE LTD,"6,800.00",UASC LAC,EXTERNAL AGENCIES AND BODIES,2103047569,1000083620
10.01.2020,CHILDREN'S SERVICES,CSM INDEPENDENCE LTD,"6,800.00",UASC LAC,EXTERNAL AGENCIES AND BODIES,2103047570,1000083620
10.01.2020,CHILDREN'S SERVICES,PURPLE PEBBLES(CHILD CARE) SERVICES,"1,428.21",UASC LAC,EXTERNAL AGENCIES AND BODIES,2103047624,1000070705
10.01.2020,CHILDREN'S SERVICES,PURPLE PEBBLES(CHILD CARE) SERVICES,"1,417.14",UASC LAC,EXTERNAL AGENCIES AND BODIES,2103047632,1000070705
10.01.2020,CHILDREN'S SERVICES,PURPLE PEBBLES(CHILD CARE) SERVICES,857.14,UASC LAC,EXTERNAL AGENCIES AND BODIES,2103047625,1000070705
10.01.2020,CHILDREN'S SERVICES,PURPLE PEBBLES(CHILD CARE) SERVICES,857.14,UASC LAC,EXTERNAL AGENCIES AND BODIES,2103047637,1000070705
10.01.2020,CHILDREN'S SERVICES,PURPLE PEBBLES(CHILD CARE) SERVICES,857.14,UASC LAC,EXTERNAL AGENCIES AND BODIES,2103047641,1000070705
10.01.2020,CHILDREN'S SERVICES,PURPLE PEBBLES(CHILD CARE) SERVICES,575,UASC LAC,EXTERNAL AGENCIES AND BODIES,2103047633,1000070705
10.01.2020,CHILDREN'S SERVICES,PURPLE PEBBLES(CHILD CARE) SERVICES,400,UASC LAC,EXTERNAL AGENCIES AND BODIES,2103047636,1000070705
10.01.2020,CHILDREN'S SERVICES,PURPLE PEBBLES(CHILD CARE) SERVICES,400,UASC LAC,EXTERNAL AGENCIES AND BODIES,2103047638,1000070705
10.01.2020,CHILDREN'S SERVICES,PURPLE PEBBLES(CHILD CARE) SERVICES,400,UASC LAC,EXTERNAL AGENCIES AND BODIES,2103047639,1000070705
10.01.2020,CHILDREN'S SERVICES,PURPLE PEBBLES(CHILD CARE) SERVICES,400,UASC LAC,EXTERNAL AGENCIES AND BODIES,2103047640,1000070705
10.01.2020,CHILDREN'S SERVICES,PURPLE PEBBLES(CHILD CARE) SERVICES,350,UASC LAC,EXTERNAL AGENCIES AND BODIES,2103047627,1000070705
10.01.2020,CHILDREN'S SERVICES,PURPLE PEBBLES(CHILD CARE) SERVICES,300,UASC LAC,OTHER PAYMENTS FOR CLIENTS,2103047635,1000070705
10.01.2020,CHILDREN'S SERVICES,PURPLE PEBBLES(CHILD CARE) SERVICES,300,UASC LAC,OTHER PAYMENTS FOR CLIENTS,2103047642,1000070705
10.01.2020,CHILDREN'S SERVICES,VICTORY SCHOOL,"73,993.00",VICTORY PRIMARY SCHOOL,SCHOOLS CAPITATION,5902397253,5001000098
10.01.2020,COMMUNITIES PROJECTS,LONDON CARE LTD,"1,296.25",NO RECOURSE TO PUBLIC FUNDS,HOMECARE - C&V,2103047648,1000003398
10.01.2020,COMMUNITIES PROJECTS,LONDON CARE LTD,973.07,NO RECOURSE TO PUBLIC FUNDS,HOMECARE - C&V,2103047650,1000003398
10.01.2020,COMMUNITIES PROJECTS,LONDON CARE LTD,827.81,NO RECOURSE TO PUBLIC FUNDS,HOMECARE - C&V,2103047658,1000003398
10.01.2020,COMMUNITIES PROJECTS,LONDON CARE LTD,289,NO RECOURSE TO PUBLIC FUNDS,HOMECARE - C&V,2103047647,1000003398
10.01.2020,COMMUNITIES PROJECTS,LONDON CARE LTD,272,NO RECOURSE TO PUBLIC FUNDS,HOMECARE - C&V,2103047670,1000003398
10.01.2020,CORP.MANAGEMENT & CHIEF EXEC.,LOCAL INFORMATION UNIT LTD,"21,950.00",CORPORATE MANAGEMENT,SUBSCRIPTIONS,5902397011,1000021393
10.01.2020,CUSTOMER EXPERIENCE HGF,ALLIED PUBLICITY SERVICES LTD,932.23,BLUE BADGES,MATERIALS,5902396661,1000082115
10.01.2020,CUSTOMER EXPERIENCE HGF,VALTECH LTD,499.2,BLUE BADGES,MATERIALS,5902396658,1000082245
10.01.2020,CUSTOMER EXPERIENCE HGF,SOUTH OF THE RIVER INVESTMENTS LTD,"135,164.60",NIGHTLY TA (NSC),EXTERNAL AGENCIES AND BODIES,5902397057,1000073638
10.01.2020,CUSTOMER EXPERIENCE HGF,SITTARA LTD,"45,662.50",NIGHTLY TA (NSC),EXTERNAL AGENCIES AND BODIES,5902397047,1000080857
10.01.2020,CUSTOMER EXPERIENCE HGF,SOUTH OF THE RIVER INVESTMENTS LTD,"2,000.00",PSL PLACEMENTS,EXTERNAL AGENCIES AND BODIES,5902397311,1000073638
10.01.2020,ENVIRONMENT AND LEISURE,PREMIER SURVEYS,"2,100.00",CAPITAL PS (LEISURE),CONSTR'N SUB CONTRACT - NON CERTIFICATED,5902396615,1000075479
10.01.2020,ENVIRONMENT DIRECTORATE,ARNOLD CLARK VEHICLE MANAGEMENT,"1,506.10",CAR LEASING CTRL A/C,VEHICLE LEASING CHARGES,5902397258,1000079116
10.01.2020,ENVIRONMENT DIRECTORATE,ARNOLD CLARK VEHICLE MANAGEMENT,"1,506.10",CAR LEASING CTRL A/C,VEHICLE LEASING CHARGES,5902397346,1000079116
10.01.2020,ENVIRONMENT DIRECTORATE,ARNOLD CLARK VEHICLE MANAGEMENT,"1,463.78",CAR LEASING CTRL A/C,VEHICLE LEASING CHARGES,5902397258,1000079116
10.01.2020,ENVIRONMENT DIRECTORATE,ARNOLD CLARK VEHICLE MANAGEMENT,"1,463.78",CAR LEASING CTRL A/C,VEHICLE LEASING CHARGES,5902397346,1000079116
10.01.2020,ENVIRONMENT DIRECTORATE,ARNOLD CLARK VEHICLE MANAGEMENT,"1,118.08",CAR LEASING CTRL A/C,VEHICLE LEASING CHARGES,5902397304,1000079116
10.01.2020,ENVIRONMENT DIRECTORATE,ARNOLD CLARK VEHICLE MANAGEMENT,"1,069.14",CAR LEASING CTRL A/C,VEHICLE LEASING CHARGES,5902397091,1000079116
10.01.2020,ENVIRONMENT DIRECTORATE,ARNOLD CLARK VEHICLE MANAGEMENT,"1,069.14",CAR LEASING CTRL A/C,VEHICLE LEASING CHARGES,5902397097,1000079116
10.01.2020,ENVIRONMENT DIRECTORATE,ARNOLD CLARK VEHICLE MANAGEMENT,"1,053.80",CAR LEASING CTRL A/C,VEHICLE LEASING CHARGES,5902397094,1000079116
10.01.2020,ENVIRONMENT DIRECTORATE,ARNOLD CLARK VEHICLE MANAGEMENT,"1,053.80",CAR LEASING CTRL A/C,VEHICLE LEASING CHARGES,5902397099,1000079116
10.01.2020,ENVIRONMENT DIRECTORATE,ARNOLD CLARK VEHICLE MANAGEMENT,"1,036.55",CAR LEASING CTRL A/C,VEHICLE LEASING CHARGES,5902397304,1000079116
10.01.2020,ENVIRONMENT DIRECTORATE,ARNOLD CLARK VEHICLE MANAGEMENT,990.66,CAR LEASING CTRL A/C,VEHICLE LEASING CHARGES,5902397091,1000079116
10.01.2020,ENVIRONMENT DIRECTORATE,ARNOLD CLARK VEHICLE MANAGEMENT,990.66,CAR LEASING CTRL A/C,VEHICLE LEASING CHARGES,5902397097,1000079116
10.01.2020,ENVIRONMENT DIRECTORATE,ARNOLD CLARK VEHICLE MANAGEMENT,950.84,CAR LEASING CTRL A/C,VEHICLE LEASING CHARGES,5902397094,1000079116
10.01.2020,ENVIRONMENT DIRECTORATE,ARNOLD CLARK VEHICLE MANAGEMENT,950.84,CAR LEASING CTRL A/C,VEHICLE LEASING CHARGES,5902397099,1000079116
10.01.2020,ENVIRONMENT DIRECTORATE,ARNOLD CLARK VEHICLE MANAGEMENT,928.18,CAR LEASING CTRL A/C,VEHICLE LEASING CHARGES,5902397349,1000079116
10.01.2020,ENVIRONMENT DIRECTORATE,ARNOLD CLARK VEHICLE MANAGEMENT,895.74,CAR LEASING CTRL A/C,VEHICLE LEASING CHARGES,5902397101,1000079116
10.01.2020,ENVIRONMENT DIRECTORATE,ARNOLD CLARK VEHICLE MANAGEMENT,885.13,CAR LEASING CTRL A/C,VEHICLE LEASING CHARGES,5902397349,1000079116
10.01.2020,ENVIRONMENT DIRECTORATE,ARNOLD CLARK VEHICLE MANAGEMENT,884.82,CAR LEASING CTRL A/C,VEHICLE LEASING CHARGES,5902397107,1000079116
10.01.2020,ENVIRONMENT DIRECTORATE,ARNOLD CLARK VEHICLE MANAGEMENT,884.82,CAR LEASING CTRL A/C,VEHICLE LEASING CHARGES,5902397274,1000079116
10.01.2020,ENVIRONMENT DIRECTORATE,ARNOLD CLARK VEHICLE MANAGEMENT,875.23,CAR LEASING CTRL A/C,VEHICLE LEASING CHARGES,5902397107,1000079116
10.01.2020,ENVIRONMENT DIRECTORATE,ARNOLD CLARK VEHICLE MANAGEMENT,875.23,CAR LEASING CTRL A/C,VEHICLE LEASING CHARGES,5902397274,1000079116
10.01.2020,ENVIRONMENT DIRECTORATE,ARNOLD CLARK VEHICLE MANAGEMENT,860.76,CAR LEASING CTRL A/C,VEHICLE LEASING CHARGES,5902397101,1000079116
10.01.2020,ENVIRONMENT DIRECTORATE,ARNOLD CLARK VEHICLE MANAGEMENT,837.49,CAR LEASING CTRL A/C,VEHICLE LEASING CHARGES,5902397078,1000079116
10.01.2020,ENVIRONMENT DIRECTORATE,ARNOLD CLARK VEHICLE MANAGEMENT,837.49,CAR LEASING CTRL A/C,VEHICLE LEASING CHARGES,5902397100,1000079116
10.01.2020,ENVIRONMENT DIRECTORATE,ARNOLD CLARK VEHICLE MANAGEMENT,828.82,CAR LEASING CTRL A/C,VEHICLE LEASING CHARGES,5902397036,1000079116
10.01.2020,ENVIRONMENT DIRECTORATE,ARNOLD CLARK VEHICLE MANAGEMENT,828.82,CAR LEASING CTRL A/C,VEHICLE LEASING CHARGES,5902397092,1000079116
10.01.2020,ENVIRONMENT DIRECTORATE,ARNOLD CLARK VEHICLE MANAGEMENT,825.28,CAR LEASING CTRL A/C,VEHICLE LEASING CHARGES,5902397036,1000079116
10.01.2020,ENVIRONMENT DIRECTORATE,ARNOLD CLARK VEHICLE MANAGEMENT,825.28,CAR LEASING CTRL A/C,VEHICLE LEASING CHARGES,5902397092,1000079116
10.01.2020,ENVIRONMENT DIRECTORATE,ARNOLD CLARK VEHICLE MANAGEMENT,818.98,CAR LEASING CTRL A/C,VEHICLE LEASING CHARGES,5902397079,1000079116
10.01.2020,ENVIRONMENT DIRECTORATE,ARNOLD CLARK VEHICLE MANAGEMENT,818.98,CAR LEASING CTRL A/C,VEHICLE LEASING CHARGES,5902397350,1000079116
10.01.2020,ENVIRONMENT DIRECTORATE,ARNOLD CLARK VEHICLE MANAGEMENT,814.92,CAR LEASING CTRL A/C,VEHICLE LEASING CHARGES,5902397051,1000079116
10.01.2020,ENVIRONMENT DIRECTORATE,ARNOLD CLARK VEHICLE MANAGEMENT,814.92,CAR LEASING CTRL A/C,VEHICLE LEASING CHARGES,5902397257,1000079116
10.01.2020,ENVIRONMENT DIRECTORATE,ARNOLD CLARK VEHICLE MANAGEMENT,789.71,CAR LEASING CTRL A/C,VEHICLE LEASING CHARGES,5902397078,1000079116
10.01.2020,ENVIRONMENT DIRECTORATE,ARNOLD CLARK VEHICLE MANAGEMENT,789.71,CAR LEASING CTRL A/C,VEHICLE LEASING CHARGES,5902397100,1000079116
10.01.2020,ENVIRONMENT DIRECTORATE,ARNOLD CLARK VEHICLE MANAGEMENT,769.48,CAR LEASING CTRL A/C,VEHICLE LEASING CHARGES,5902397051,1000079116
10.01.2020,ENVIRONMENT DIRECTORATE,ARNOLD CLARK VEHICLE MANAGEMENT,769.48,CAR LEASING CTRL A/C,VEHICLE LEASING CHARGES,5902397257,1000079116
10.01.2020,ENVIRONMENT DIRECTORATE,ARNOLD CLARK VEHICLE MANAGEMENT,732.08,CAR LEASING CTRL A/C,VEHICLE LEASING CHARGES,5902397079,1000079116
10.01.2020,ENVIRONMENT DIRECTORATE,ARNOLD CLARK VEHICLE MANAGEMENT,732.08,CAR LEASING CTRL A/C,VEHICLE LEASING CHARGES,5902397350,1000079116
10.01.2020,ENVIRONMENT DIRECTORATE,ARNOLD CLARK VEHICLE MANAGEMENT,722.8,CAR LEASING CTRL A/C,VEHICLE LEASING CHARGES,5902397260,1000079116
10.01.2020,ENVIRONMENT DIRECTORATE,ARNOLD CLARK VEHICLE MANAGEMENT,722.8,CAR LEASING CTRL A/C,VEHICLE LEASING CHARGES,5902397362,1000079116
10.01.2020,ENVIRONMENT DIRECTORATE,ARNOLD CLARK VEHICLE MANAGEMENT,658.44,CAR LEASING CTRL A/C,VEHICLE LEASING CHARGES,5902397046,1000079116
10.01.2020,ENVIRONMENT DIRECTORATE,ARNOLD CLARK VEHICLE MANAGEMENT,657.43,CAR LEASING CTRL A/C,VEHICLE LEASING CHARGES,5902397260,1000079116
10.01.2020,ENVIRONMENT DIRECTORATE,ARNOLD CLARK VEHICLE MANAGEMENT,657.43,CAR LEASING CTRL A/C,VEHICLE LEASING CHARGES,5902397362,1000079116
10.01.2020,ENVIRONMENT DIRECTORATE,ARNOLD CLARK VEHICLE MANAGEMENT,623.17,CAR LEASING CTRL A/C,VEHICLE LEASING CHARGES,5902397046,1000079116
10.01.2020,ENVIRONMENT DIRECTORATE,ARNOLD CLARK VEHICLE MANAGEMENT,572.83,CAR LEASING CTRL A/C,VEHICLE LEASING CHARGES,5902397084,1000079116
10.01.2020,ENVIRONMENT DIRECTORATE,ARNOLD CLARK VEHICLE MANAGEMENT,572.83,CAR LEASING CTRL A/C,VEHICLE LEASING CHARGES,5902397356,1000079116
10.01.2020,ENVIRONMENT DIRECTORATE,ARNOLD CLARK VEHICLE MANAGEMENT,552.89,CAR LEASING CTRL A/C,VEHICLE LEASING CHARGES,5902397031,1000079116
10.01.2020,ENVIRONMENT DIRECTORATE,ARNOLD CLARK VEHICLE MANAGEMENT,525.49,CAR LEASING CTRL A/C,VEHICLE LEASING CHARGES,5902397084,1000079116
10.01.2020,ENVIRONMENT DIRECTORATE,ARNOLD CLARK VEHICLE MANAGEMENT,525.49,CAR LEASING CTRL A/C,VEHICLE LEASING CHARGES,5902397356,1000079116
10.01.2020,ENVIRONMENT DIRECTORATE,ARNOLD CLARK VEHICLE MANAGEMENT,503.72,CAR LEASING CTRL A/C,VEHICLE LEASING CHARGES,5902397031,1000079116
10.01.2020,ENVIRONMENT DIRECTORATE,ARNOLD CLARK VEHICLE MANAGEMENT,497.04,CAR LEASING CTRL A/C,VEHICLE LEASING CHARGES,5902397053,1000079116
10.01.2020,ENVIRONMENT DIRECTORATE,ARNOLD CLARK VEHICLE MANAGEMENT,497.04,CAR LEASING CTRL A/C,VEHICLE LEASING CHARGES,5902397271,1000079116
10.01.2020,ENVIRONMENT DIRECTORATE,ARNOLD CLARK VEHICLE MANAGEMENT,482.81,CAR LEASING CTRL A/C,VEHICLE LEASING CHARGES,5902397053,1000079116
10.01.2020,ENVIRONMENT DIRECTORATE,ARNOLD CLARK VEHICLE MANAGEMENT,482.81,CAR LEASING CTRL A/C,VEHICLE LEASING CHARGES,5902397271,1000079116
10.01.2020,ENVIRONMENT DIRECTORATE,ARNOLD CLARK VEHICLE MANAGEMENT,461.2,CAR LEASING CTRL A/C,VEHICLE LEASING CHARGES,5902397027,1000079116
10.01.2020,ENVIRONMENT DIRECTORATE,ARNOLD CLARK VEHICLE MANAGEMENT,461.2,CAR LEASING CTRL A/C,VEHICLE LEASING CHARGES,5902397103,1000079116
10.01.2020,ENVIRONMENT DIRECTORATE,ARNOLD CLARK VEHICLE MANAGEMENT,458.48,CAR LEASING CTRL A/C,VEHICLE LEASING CHARGES,5902397027,1000079116
10.01.2020,ENVIRONMENT DIRECTORATE,ARNOLD CLARK VEHICLE MANAGEMENT,458.48,CAR LEASING CTRL A/C,VEHICLE LEASING CHARGES,5902397103,1000079116
10.01.2020,ENVIRONMENT DIRECTORATE,ARNOLD CLARK VEHICLE MANAGEMENT,449.38,CAR LEASING CTRL A/C,VEHICLE LEASING CHARGES,5902397029,1000079116
10.01.2020,ENVIRONMENT DIRECTORATE,ARNOLD CLARK VEHICLE MANAGEMENT,449.38,CAR LEASING CTRL A/C,VEHICLE LEASING CHARGES,5902397077,1000079116
10.01.2020,ENVIRONMENT DIRECTORATE,ARNOLD CLARK VEHICLE MANAGEMENT,445.82,CAR LEASING CTRL A/C,VEHICLE LEASING CHARGES,5902397087,1000079116
10.01.2020,ENVIRONMENT DIRECTORATE,ARNOLD CLARK VEHICLE MANAGEMENT,445.82,CAR LEASING CTRL A/C,VEHICLE LEASING CHARGES,5902397106,1000079116
10.01.2020,ENVIRONMENT DIRECTORATE,ARNOLD CLARK VEHICLE MANAGEMENT,438.81,CAR LEASING CTRL A/C,VEHICLE LEASING CHARGES,5902397108,1000079116
10.01.2020,ENVIRONMENT DIRECTORATE,ARNOLD CLARK VEHICLE MANAGEMENT,438.81,CAR LEASING CTRL A/C,VEHICLE LEASING CHARGES,5902397278,1000079116
10.01.2020,ENVIRONMENT DIRECTORATE,ARNOLD CLARK VEHICLE MANAGEMENT,420.64,CAR LEASING CTRL A/C,VEHICLE LEASING CHARGES,5902397029,1000079116
10.01.2020,ENVIRONMENT DIRECTORATE,ARNOLD CLARK VEHICLE MANAGEMENT,420.64,CAR LEASING CTRL A/C,VEHICLE LEASING CHARGES,5902397077,1000079116
10.01.2020,ENVIRONMENT DIRECTORATE,ARNOLD CLARK VEHICLE MANAGEMENT,403.1,CAR LEASING CTRL A/C,VEHICLE LEASING CHARGES,5902397041,1000079116
10.01.2020,ENVIRONMENT DIRECTORATE,ARNOLD CLARK VEHICLE MANAGEMENT,403.1,CAR LEASING CTRL A/C,VEHICLE LEASING CHARGES,5902397088,1000079116
10.01.2020,ENVIRONMENT DIRECTORATE,ARNOLD CLARK VEHICLE MANAGEMENT,400.77,CAR LEASING CTRL A/C,VEHICLE LEASING CHARGES,5902397087,1000079116
10.01.2020,ENVIRONMENT DIRECTORATE,ARNOLD CLARK VEHICLE MANAGEMENT,400.77,CAR LEASING CTRL A/C,VEHICLE LEASING CHARGES,5902397106,1000079116
10.01.2020,ENVIRONMENT DIRECTORATE,ARNOLD CLARK VEHICLE MANAGEMENT,396.98,CAR LEASING CTRL A/C,VEHICLE LEASING CHARGES,5902397108,1000079116
10.01.2020,ENVIRONMENT DIRECTORATE,ARNOLD CLARK VEHICLE MANAGEMENT,396.98,CAR LEASING CTRL A/C,VEHICLE LEASING CHARGES,5902397278,1000079116
10.01.2020,ENVIRONMENT DIRECTORATE,ARNOLD CLARK VEHICLE MANAGEMENT,359.07,CAR LEASING CTRL A/C,VEHICLE LEASING CHARGES,5902397041,1000079116
10.01.2020,ENVIRONMENT DIRECTORATE,ARNOLD CLARK VEHICLE MANAGEMENT,359.07,CAR LEASING CTRL A/C,VEHICLE LEASING CHARGES,5902397088,1000079116
10.01.2020,ENVIRONMENT DIRECTORATE,ARNOLD CLARK VEHICLE MANAGEMENT,351.32,CAR LEASING CTRL A/C,VEHICLE LEASING CHARGES,5902397082,1000079116
10.01.2020,ENVIRONMENT DIRECTORATE,ARNOLD CLARK VEHICLE MANAGEMENT,351.32,CAR LEASING CTRL A/C,VEHICLE LEASING CHARGES,5902397105,1000079116
10.01.2020,ENVIRONMENT DIRECTORATE,ARNOLD CLARK VEHICLE MANAGEMENT,334.89,CAR LEASING CTRL A/C,VEHICLE LEASING CHARGES,5902397048,1000079116
10.01.2020,ENVIRONMENT DIRECTORATE,ARNOLD CLARK VEHICLE MANAGEMENT,334.89,CAR LEASING CTRL A/C,VEHICLE LEASING CHARGES,5902397293,1000079116
10.01.2020,ENVIRONMENT DIRECTORATE,ARNOLD CLARK VEHICLE MANAGEMENT,333.07,CAR LEASING CTRL A/C,VEHICLE LEASING CHARGES,5902397110,1000079116
10.01.2020,ENVIRONMENT DIRECTORATE,ARNOLD CLARK VEHICLE MANAGEMENT,333.07,CAR LEASING CTRL A/C,VEHICLE LEASING CHARGES,5902397296,1000079116
10.01.2020,ENVIRONMENT DIRECTORATE,ARNOLD CLARK VEHICLE MANAGEMENT,321.64,CAR LEASING CTRL A/C,VEHICLE LEASING CHARGES,5902397082,1000079116
10.01.2020,ENVIRONMENT DIRECTORATE,ARNOLD CLARK VEHICLE MANAGEMENT,321.64,CAR LEASING CTRL A/C,VEHICLE LEASING CHARGES,5902397105,1000079116
10.01.2020,ENVIRONMENT DIRECTORATE,ARNOLD CLARK VEHICLE MANAGEMENT,319.05,CAR LEASING CTRL A/C,VEHICLE LEASING CHARGES,5902397019,1000079116
10.01.2020,ENVIRONMENT DIRECTORATE,ARNOLD CLARK VEHICLE MANAGEMENT,319.05,CAR LEASING CTRL A/C,VEHICLE LEASING CHARGES,5902397033,1000079116
10.01.2020,ENVIRONMENT DIRECTORATE,ARNOLD CLARK VEHICLE MANAGEMENT,311.03,CAR LEASING CTRL A/C,VEHICLE LEASING CHARGES,5902397110,1000079116
10.01.2020,ENVIRONMENT DIRECTORATE,ARNOLD CLARK VEHICLE MANAGEMENT,311.03,CAR LEASING CTRL A/C,VEHICLE LEASING CHARGES,5902397296,1000079116
10.01.2020,ENVIRONMENT DIRECTORATE,ARNOLD CLARK VEHICLE MANAGEMENT,305.32,CAR LEASING CTRL A/C,VEHICLE LEASING CHARGES,5902397048,1000079116
10.01.2020,ENVIRONMENT DIRECTORATE,ARNOLD CLARK VEHICLE MANAGEMENT,305.32,CAR LEASING CTRL A/C,VEHICLE LEASING CHARGES,5902397293,1000079116
10.01.2020,ENVIRONMENT DIRECTORATE,ARNOLD CLARK VEHICLE MANAGEMENT,265.75,CAR LEASING CTRL A/C,VEHICLE LEASING CHARGES,5902397019,1000079116
10.01.2020,ENVIRONMENT DIRECTORATE,ARNOLD CLARK VEHICLE MANAGEMENT,265.75,CAR LEASING CTRL A/C,VEHICLE LEASING CHARGES,5902397033,1000079116
10.01.2020,ENVIRONMENT DIRECTORATE,ARNOLD CLARK VEHICLE MANAGEMENT,252.91,CAR LEASING CTRL A/C,VEHICLE LEASING CHARGES,5902397020,1000079116
10.01.2020,ENVIRONMENT DIRECTORATE,LEX AUTOLEASE,-362.96,CAR LEASING CTRL A/C,VEHICLE LEASING CHARGES,5902396884,1000069462
10.01.2020,ENVIRONMENT DIRECTORATE,LEX AUTOLEASE,-395.2,CAR LEASING CTRL A/C,VEHICLE LEASING CHARGES,5902396421,1000069462
10.01.2020,ENVIRONMENT DIRECTORATE,LEX AUTOLEASE,-428.24,CAR LEASING CTRL A/C,VEHICLE LEASING CHARGES,5902396474,1000069462
10.01.2020,ENVIRONMENT DIRECTORATE,LEX AUTOLEASE,-677.16,CAR LEASING CTRL A/C,VEHICLE LEASING CHARGES,5902396434,1000069462
10.01.2020,ENVIRONMENT DIRECTORATE,LEX AUTOLEASE,-705.56,CAR LEASING CTRL A/C,VEHICLE LEASING CHARGES,5902396432,1000069462
10.01.2020,ENVIRONMENT DIRECTORATE,LEX AUTOLEASE,-834.6,CAR LEASING CTRL A/C,VEHICLE LEASING CHARGES,5902396886,1000069462
